Workbook

Sheet control
A1: Ticker | B1: XOM US
A2: Currency | B2: USD
A4: Name | B4: =_xll.BDP($B$1&" Equity",C4) -> EXXON MOBIL CORP | C4: Name
A5: Most Recent End Date | B5: =_xll.BDP($B$1&" Equity",C5) -> 09/30/2014 | C5: most_recent_period_end_dt
A7: Name | B7: EXXON MOBIL CORP
A8: Most Recent End Date | B8: 09/30/2014
... 1 more rows

Sheet Forecast (hidden)

Sheet RangeValue
C2: sales_rev_turn | F2: FRGEGDP INDEX | G2: FRGEIMP INDEX | H2: CPI INDEX | I2: Cl5 COMDTY | J2: XAU CURNCY | K2: CO1 COMDTY | L2: C 1 Comdty | M2: ho1 comdty | N2: xag curncy | O2: NHSPS1 INDEX | P2: lb1 comdty | Q2: GPGSDEF Index | R2: GPGSTOT Index
B3: x | C3: Revenue_Concurrent | D3: Revenue_Lagged_1Q | E3: Revenue_Lagged_1Y | F3: USA_Nominal_GDP | G3: USA_Housing_Starts | H3: USA_CPI | I3: OIL | J3: GOLD | K3: BRENT_CRUDE | L3: CORN | M3: heat_oil | N3: silver | O3: one_UNIT_STARTS | P3: Lumber | Q3: US_Defense_Spending | R3: US_Gov_Spending
B4: x
A5: -44FQ | B5: 2003-09-30 | E5: 52860
A6: -43FQ | B6: 2003-12-31 | E6: 55711
A7: -42FQ | B7: 2004-03-31 | E7: 59644
A8: -41FQ | B8: 2004-06-30 | D8: 62706 | E8: 62706
A9: -40FQ | B9: 2004-09-30 | C9: 67809 | D9: 67809 | E9: 67809 | F9: 473.486 | G9: 116.315 | H9: 188.1666667 | I9: 42.05707692 | J9: 401.8470149 | K9: 40.64878788 | L9: 225.3076923 | M9: 117.924 | N9: 6.462723881 | O9: 4824 | P9: 407.2692308 | Q9: 585.6 | R9: 2381.8
A10: -39FQ | B10: 2004-12-31 | C10: 73830 | D10: 73830 | E10: 73830 | F10: 476.91 | G10: 118.399 | H10: 189.3666667 | I10: 47.26666667 | J10: 434.5828358 | K10: 44.76276923 | L10: 201.4960938 | M10: 139.5952381 | N10: 7.227723881 | O10: 4921 | P10: 322.8707692 | Q10: 575.8 | R10: 2401.2
A11: -38FQ | B11: 2005-03-31 | C11: 72237 | D11: 72237 | E11: 72237 | F11: 477.244 | G11: 120.637 | H11: 191.4 | I11: 50.31344262 | J11: 427.8650769 | K11: 47.84048387 | L11: 205.1311475 | M11: 140.7998361 | N11: 6.978346154 | O11: 4832 | P11: 388.0064516 | Q11: 596.8 | R11: 2442.2
A12: -37FQ | B12: 2005-06-30 | C12: 79107 | D12: 79107 | E12: 79107 | F12: 478.183 | G12: 121.567 | H12: 192.3666667 | I12: 55.70169231 | J12: 427.7619697 | K12: 52.9121875 | L12: 212.7576923 | M12: 151.9273846 | N12: 7.152992424 | O12: 5114 | P12: 354.2738462 | Q12: 605 | R12: 2469.7
A13: -36FQ | B13: 2005-09-30 | C13: 88571 | D13: 88571 | E13: 88571 | F13: 480.899 | G13: 122.68 | H13: 193.6666667 | I13: 65.09323077 | J13: 439.9528358 | K13: 61.81287879 | L13: 218.1230769 | M13: 183.2207692 | N13: 7.070559701 | O13: 5091 | P13: 308.8492308 | Q13: 623.4 | R13: 2521.6
A14: -35FQ | B14: 2005-12-31 | C14: 88298 | D14: 88298 | E14: 88298 | F14: 484.521 | G14: 125.341 | H14: 196.6 | I14: 61.53238095 | J14: 485.7621212 | K14: 57.84892308 | L14: 199.0585938 | M14: 180.7866667 | N14: 8.064186364 | O14: 5241 | P14: 318.2953125 | Q14: 607.8 | R14: 2541.3
A15: -34FQ | B15: 2006-03-31 | C15: 78653 | D15: 78653 | E15: 78653 | F15: 487.809 | G15: 129.572 | H15: 198.4333333 | I15: 66.29935484 | J15: 554.7278462 | K15: 62.71109375 | L15: 220.1048387 | M15: 175.3375806 | N15: 9.734384615 | O15: 5176 | P15: 344.6951613 | Q15: 633.5 | R15: 2592.2
A16: -33FQ | B16: 2006-06-30 | C16: 87813 | D16: 87813 | E16: 87813 | F16: 492.973 | G16: 130.903 | H16: 199.4666667 | I16: 73.41859375 | J16: 627.5701515 | K16: 70.29203125 | L16: 240.2304688 | M16: 197.6179688 | N16: 12.30636364 | O16: 5228 | P16: 316.496875 | Q16: 641.4 | R16: 2630.7
A17: -32FQ | B17: 2006-09-30 | C17: 88504 | D17: 88504 | E17: 88504 | F17: 492.838 | G17: 132.21 | H17: 201.2666667 | I17: 73.736875 | J17: 621.1857576 | K17: 70.74469697 | L17: 238.21875 | M17: 193.4090625 | N17: 11.7055303 | O17: 4532 | P17: 275.7734375 | Q17: 638.7 | R17: 2655.4
A18: -31FQ | B18: 2006-12-31 | C18: 80116 | D18: 80116 | E18: 80116 | F18: 496.868 | G18: 131.258 | H18: 203.1666667 | I18: 64.37269841 | J18: 614.3553846 | K18: 60.61140625 | L18: 341.8412698 | M18: 170.3996825 | N18: 12.59930615 | O18: 4172 | P18: 253.2222222 | Q18: 655.9 | R18: 2690.6
A19: -30FQ | B19: 2007-03-31 | C19: 76890 | D19: 76890 | E19: 76890 | F19: 500.484 | G19: 134.618 | H19: 202.3333333 | I19: 61.58377049 | J19: 649.5781538 | K19: 58.6221875 | L19: 401.0524194 | M19: 166.3436066 | N19: 13.28257846 | O19: 3751 | P19: 256.6774194 | Q19: 654.5 | R19: 2735.6
A20: -29FQ | B20: 2007-06-30 | C20: 87249 | D20: 87249 | E20: 87249 | F20: 503.606 | G20: 136.42 | H20: 204.317 | I20: 68.55492063 | J20: 667.5887692 | K20: 68.65734375 | L20: 371.0753968 | M20: 191.1222222 | N20: 13.33223538 | O20: 3521 | P20: 259.7825397 | Q20: 672.6 | R20: 2782.5
A21: -28FQ | B21: 2007-09-30 | C21: 91160 | D21: 91160 | E21: 91160 | F21: 505.455 | G21: 139.683 | H21: 206.631 | I21: 73.41095238 | J21: 680.47 | K21: 74.55153846 | L21: 335.3253968 | M21: 208.5371429 | N21: 12.69221385 | O21: 3458 | P21: 268.1206349 | Q21: 690.7 | R21: 2824.3
A22: -27FQ | B22: 2007-12-31 | C22: 103301 | D22: 103301 | E22: 103301 | F22: 506.554 | G22: 141.77 | H22: 207.939 | I22: 87.8084375 | J22: 789.3043939 | K22: 88.52738462 | L22: 386.234375 | M22: 248.5198438 | N22: 14.23598485 | O22: 2934 | P22: 240.1703125 | Q22: 697.1 | R22: 2865.3
A23: -26FQ | B23: 2008-03-31 | C23: 104791 | D23: 104791 | E23: 104791 | F23: 509.054 | G23: 141.209 | H23: 210.4896667 | I23: 95.91290323 | J23: 922.434697 | K23: 96.2696875 | L23: 515.9798387 | M23: 273.6070968 | N23: 17.48666667 | O23: 2516 | P23: 217.7612903 | Q23: 719.7 | R23: 2923.8
A24: -25FQ | B24: 2008-06-30 | C24: 124238 | D24: 124238 | E24: 124238 | F24: 506.501 | G24: 143.655 | H24: 212.7696667 | I24: 122.5424615 | J24: 897.6315152 | K24: 122.4448485 | L24: 628.5076923 | M24: 352.5626154 | N24: 17.21087121 | O24: 2225 | P24: 233.5769231 | Q24: 741.2 | R24: 2983.4
A25: -24FQ | B25: 2008-09-30 | C25: 122758 | D25: 122758 | E25: 122758 | F25: 505.257 | G25: 142.125 | H25: 215.5376667 | I25: 119.5444615 | J25: 870.9423881 | K25: 117.4932836 | L25: 580.1923077 | M25: 331.8043077 | N25: 15.03800299 | O25: 2008 | P25: 246.1030769 | Q25: 776.6 | R25: 3055.9
A26: -23FQ | B26: 2008-12-31 | C26: 73284 | D26: 73284 | E26: 73284 | F26: 497.124 | G26: 141.789 | H26: 218.861 | I26: 63.92707692 | J26: 799.8876119 | K26: 58.10575758 | L26: 385.4269231 | M26: 185.9301538 | N26: 10.25397612 | O26: 1759 | P26: 186.2907692 | Q26: 778.9 | R26: 3049.7
A27: -22FQ | B27: 2009-03-31 | C27: 56222 | D27: 56222 | E27: 56222 | F27: 489.096 | G27: 137.312 | H27: 213.8486667 | I27: 51.15016129 | J27: 909.0850769 | K27: 45.7203125 | L27: 377.1774194 | M27: 134.4787097 | N27: 12.63200308 | O27: 1404 | P27: 156.7129032 | Q27: 760.2 | R27: 3035.4
A28: -21FQ | B28: 2009-06-30 | C28: 65951 | D28: 65951 | E28: 65951 | F28: 488.786 | G28: 129.4 | H28: 212.3776667 | I28: 63.8003125 | J28: 922.0883333 | K28: 59.734 | L28: 405.78125 | M28: 155.66875 | N28: 13.74863788 | O28: 1069 | P28: 182.91875 | Q28: 785.4 | R28: 3086.5
A29: -20FQ | B29: 2009-09-30 | C29: 73285 | D29: 73285 | E29: 73285 | F29: 489.446 | G29: 125.903 | H29: 213.507 | I29: 71.74061538 | J29: 960.1765672 | K29: 68.88059701 | L29: 327.5576923 | M29: 176.6578462 | N29: 14.73244328 | O29: 1277 | P29: 182.8523077 | Q29: 802.8 | R29: 3112.5
A30: -19FQ | B30: 2009-12-31 | C30: 80106 | D30: 80106 | E30: 80106 | F30: 492.765 | G30: 125.941 | H30: 215.344 | I30: 78.99676923 | J30: 1099.726269 | K30: 75.44621212 | L30: 385.0461538 | M30: 198.7223077 | N30: 17.57503582 | O30: 1506 | P30: 199.3138462 | Q30: 804.6 | R30: 3122
A31: -18FQ | B31: 2010-03-31 | C31: 80222 | D31: 80222 | E31: 80222 | F31: 494.682 | G31: 131.401 | H31: 217.03 | I31: 80.67645161 | J31: 1110.033692 | K31: 77.38140625 | L31: 370.9919355 | M31: 205.1641935 | N31: 16.92446154 | O31: 1457 | P31: 255.8 | Q31: 811.9 | R31: 3135.7
A32: -17FQ | B32: 2010-06-30 | C32: 82747 | D32: 82747 | E32: 82747 | F32: 497.971 | G32: 132.918 | H32: 217.3406667 | I32: 82.35390625 | J32: 1195.339091 | K32: 79.46107692 | L32: 354.6523438 | M32: 210.9189063 | N32: 18.33587121 | O32: 1578 | P32: 253.68125 | Q32: 829.3 | R32: 3181.5
A33: -16FQ | B33: 2010-09-30 | C33: 85181 | D33: 85181 | E33: 85181 | F33: 500.806 | G33: 138 | H33: 217.32 | I33: 79.14276923 | J33: 1227.941493 | K33: 76.93373134 | L33: 420.8346154 | M33: 205.6641538 | N33: 18.98298209 | O33: 1468 | P33: 210.7123077 | Q33: 846.3 | R33: 3194.7
A34: -15FQ | B34: 2010-12-31 | C34: 93428 | D34: 93428 | E34: 93428 | F34: 503.63 | G34: 142.02 | H34: 217.99 | I34: 87.24292308 | J34: 1369.62 | K34: 87.37223881 | L34: 560.4961538 | M34: 236.0890769 | N34: 26.51427463 | O34: 1292 | P34: 259.9861538 | Q34: 843.5 | R34: 3184.2
A35: -14FQ | B35: 2011-03-31 | C35: 101335 | D35: 101335 | E35: 101335 | F35: 509.091 | G35: 143.389 | H35: 219.6683333 | I35: 98.93 | J35: 1388.207846 | K35: 105.3521538 | L35: 669.468254 | M35: 281.8057143 | N35: 31.94265077 | O35: 1319 | P35: 302.947619 | Q35: 823.4 | R35: 3153.8
A36: -13FQ | B36: 2011-06-30 | C36: 112781 | D36: 112781 | E36: 112781 | F36: 508.725 | G36: 149.867 | H36: 221.951 | I36: 103.9559375 | J36: 1508.034848 | K36: 116.9921538 | L36: 730.8007812 | M36: 304.611875 | N36: 38.49341818 | O36: 1250 | P36: 237.334375 | Q36: 844.9 | R36: 3183.8
A37: -12FQ | B37: 2011-09-30 | C37: 111991 | D37: 111991 | E37: 111991 | F37: 509.913 | G37: 148.262 | H37: 224.6546667 | I37: 91.05276923 | J37: 1703.271194 | K37: 112.0976119 | L37: 695.1615385 | M37: 298.3907692 | N37: 38.80706716 | O37: 1264 | P37: 239.2276923 | Q37: 851.5 | R37: 3176.8
A38: -11FQ | B38: 2011-12-31 | C38: 107419 | D38: 107419 | E38: 107419 | F38: 511.035 | G38: 148.444 | H38: 226.1253333 | I38: 94.06796875 | J38: 1682.40803 | K38: 108.9272308 | L38: 619.953125 | M38: 297.3626562 | N38: 31.81259848 | O38: 1272 | P38: 227.984375 | Q38: 828 | R38: 3160.4
A39: -10FQ | B39: 2012-03-31 | C39: 110696 | D39: 110696 | E39: 110696 | F39: 512.189 | G39: 145.904 | H39: 226.9966667 | I39: 104.4716129 | J39: 1691.046308 | K39: 118.4490625 | L39: 641.0080645 | M39: 315.8316129 | N39: 32.66717846 | O39: 1426 | P39: 259.2580645 | Q39: 818.6 | R39: 3166.2
A40: -9FQ | B40: 2012-06-30 | C40: 104718 | D40: 104718 | E40: 104718 | F40: 510.962 | G40: 146.556 | H40: 228.1786667 | I40: 94.66793651 | J40: 1611.937846 | K40: 108.763125 | L40: 617.781746 | M40: 289.248254 | N40: 29.46931692 | O40: 1456 | P40: 278.8047619 | Q40: 817.1 | R40: 3163.3
A41: -8FQ | B41: 2012-09-30 | C41: 102852 | D41: 102852 | E41: 102852 | F41: 512.191 | G41: 146.701 | H41: 228.9643333 | I41: 93.66634921 | J41: 1653.420154 | K41: 109.4184615 | L41: 782.6706349 | M41: 300.1419048 | N41: 29.94087692 | O41: 1546 | P41: 287.4 | Q41: 840.9 | R41: 3190.5
A42: -7FQ | B42: 2012-12-31 | C42: 101409 | D42: 101409 | E42: 101409 | F42: 510.899 | G42: 146.578 | H42: 229.939 | I42: 90.26640625 | J42: 1717.809848 | K42: 110.1306154 | L42: 736.78125 | M42: 305.2909375 | N42: 32.57644091 | O42: 1647 | P42: 322.925 | Q42: 795.4 | R42: 3156.6
A43: -6FQ | B43: 2013-03-31 | C43: 96336 | D43: 96336 | E43: 96336 | F43: 510.918 | G43: 145.482 | H43: 231.3136667 | I43: 95.55442623 | J43: 1632.6 | K43: 112.6112698 | L43: 715.8032787 | M43: 304.2686885 | N43: 30.10167538 | O43: 1795 | P43: 378.1098361 | Q43: 775.1 | R43: 3135.9
A44: -5FQ | B44: 2013-06-30 | C44: 95498 | D44: 95498 | E44: 95498 | F44: 514.351 | G44: 146.075 | H44: 231.9983333 | I44: 93.8584375 | J44: 1416.95 | K44: 103.3466154 | L44: 660.7539062 | M44: 288.970625 | N44: 23.22339538 | O44: 1881 | P44: 327 | Q44: 772.2 | R44: 3142.4
A45: -4FQ | B45: 2013-09-30 | C45: 100508 | D45: 100508 | E45: 100508 | F45: 513.883 | G45: 148.986 | H45: 232.2303333 | I45: 101.2795312 | J45: 1329.87697 | K45: 109.6522727 | L45: 514.265625 | M45: 304.6195312 | N45: 21.45453636 | O45: 1789 | P45: 321.4765625 | Q45: 774.9 | R45: 3154.7
A46: -3FQ | B46: 2013-12-31 | C46: 98355 | D46: 98355 | F46: 514.944 | G46: 150.346 | H46: 233.476 | I46: 96.94 | J46: 1272.333284 | K46: 109.3366667 | L46: 430.0884615 | M46: 299.08 | N46: 20.81659403 | O46: 1795 | P46: 357.1338462 | Q46: 757.5 | R46: 3142.7
A47: -2FQ | B47: 2014-03-31 | C47: 94344 | D47: 94344 | F47: 515.09 | G47: 150.984 | H47: 234.1363333 | I47: 95.96306452 | J47: 1290.758615 | K47: 107.9171875 | L47: 451.9879032 | M47: 301.4417742 | N47: 20.44099385 | O47: 1988 | P47: 354.1741935 | Q47: 749.9 | R47: 3139.1
A48: -1FQ | B48: 2014-06-30 | C48: 98287 | D48: 98287 | F48: 514.567 | G48: 152.115 | H48: 235.2473333 | I48: 99.428125 | J48: 1289.941212 | K48: 109.7264615 | L48: 479.546875 | M48: 294.955625 | N48: 19.65979242 | O48: 1807 | P48: 325.6265625 | Q48: 754.6 | R48: 3163.1
A49: -0FQ | B49: 09/30/2014 | C49: 96047 | F49: 515.989 | G49: 152.502 | H49: 237.01 | I49: 94.99661538 | J49: 1282.744776 | K49: 103.5891045 | L49: 360.7115385 | M49: 283.0893846 | N49: 19.72753731 | O49: 1876 | P49: 337.9184615 | Q49: 784.1 | R49: 3207.7
A50: Next Q | B50: 2014-12-31

Sheet Forecast Data (hidden)
B2: FRGEGDP INDEX | C2: FRGEIMP INDEX | D2: CPI INDEX | E2: Cla COMDTY | F2: XAU CURNCY | G2: CO1 COMDTY | H2: C 1 Comdty | I2: ho1 comdty | J2: JGDYCGDP INDEX | K2: xag curncy | L2: NHSPS1 INDEX | M2: lb1 comdty | N2: GPGSDEF Index | O2: GPGSTOT Index
A3: x | B3: USA_Nominal_GDP | C3: USA_Housing_Starts | D3: USA_CPI | E3: OIL | F3: GOLD | G3: BRENT_CRUDE | H3: CORN | I3: heat_oil | J3: Japan_GDP | K3: silver | L3: one_UNIT_STARTS | M3: Lumber | N3: US_Defense_Spending | O3: US_Gov_Spending
A4: x
A5: =EOMONTH(A6,-3) -> 2014-09-30
A6: =RangeValue!B50 -> 2014-12-31 | B6: =_xll.BDH(B$2,"PX LAST",EOMONTH(A6,-MOD(MONTH(A6),3)),EOMONTH(A6,-MOD(MONTH(A6),3))) ->  | C6: =SUM(_xll.BDH(C$2,"PX LAST",EOMONTH($A5,-2),$A5,"array=true","dts=H")) ->  | D6: =AVERAGE(_xll.BDH($D$2,"PX LAST",EOMONTH($A5,-2),$A5,"dts=h","array=true")) ->  | E6: =AVERAGE(_xll.BDH(E$2,"px last",$A5,$A6,"dts=H","array=TRUE")) ->  | F6: =AVERAGE(_xll.BDH(F$2,"px last",$A5,$A6,"dts=H","array=TRUE")) ->  | G6: =AVERAGE(_xll.BDH(G$2,"px last",$A5,$A6,"dts=H","array=TRUE")) ->  | H6: =AVERAGE(_xll.BDH(H$2,"px last",$A5,$A6,"dts=H","array=TRUE")) ->  | I6: =AVERAGE(_xll.BDH(I$2,"px last",$A5,$A6,"dts=H","array=TRUE")) ->  | J6: =IFERROR(_xll.BDH($J$2,"PX LAST",$A6,$A6),"-") -> - | K6: =AVERAGE(_xll.BDH($K$2,"PX LAST",$A5,$A6,"dts=h","array=true")) ->  | L6: =SUM(_xll.BDH($L$2,"PX LAST",EOMONTH($A5,-2),$A5,"dts=h","array=true")) ->  | M6: =AVERAGE(_xll.BDH($M$2,"PX LAST",$A5,$A6,"dts=h","array=true")) ->  | N6: =_xll.BDH($N$2,"PX LAST",EOMONTH(A6,-MOD(MONTH(A6),3)),EOMONTH(A6,-MOD(MONTH(A6),3))) ->  | O6: =_xll.BDH($O$2,"PX LAST",EOMONTH(A6,-MOD(MONTH(A6),3)),EOMONTH(A6,-MOD(MONTH(A6),3))) -> 
A7: =EOMONTH(A6,3) -> 2015-03-31 | B7: =_xll.BDH(B$2,"PX LAST",EOMONTH(A7,-MOD(MONTH(A7),3)),EOMONTH(A7,-MOD(MONTH(A7),3))) ->  | C7: =SUM(_xll.BDH(C$2,"PX LAST",EOMONTH($A6,-2),$A6,"array=true","dts=H")) ->  | D7: =AVERAGE(_xll.BDH($D$2,"PX LAST",EOMONTH($A6,-2),$A6,"dts=h","array=true")) ->  | E7: =_xll.BDP(E$2,"px last",$A7,$A7) -> #N/A Invalid Parameter: Invalid override field: 42094 | F7: =AVERAGE(_xll.BDH(F$2,"px last",$A6,$A7,"dts=H","array=TRUE")) ->  | G7: =AVERAGE(_xll.BDH(G$2,"px last",$A6,$A7,"dts=H","array=TRUE")) ->  | H7: =AVERAGE(_xll.BDH(H$2,"px last",$A6,$A7,"dts=H","array=TRUE")) ->  | I7: =AVERAGE(_xll.BDH(I$2,"px last",$A6,$A7,"dts=H","array=TRUE")) ->  | J7: =_xll.BDH($J$2,"PX LAST",$A7,$A7) ->  | K7: =AVERAGE(_xll.BDH($K$2,"PX LAST",$A6,$A7,"dts=h","array=true")) ->  | L7: =SUM(_xll.BDH($L$2,"PX LAST",EOMONTH($A6,-2),$A6,"dts=h","array=true")) ->  | M7: =AVERAGE(_xll.BDH($M$2,"PX LAST",$A6,$A7,"dts=h","array=true")) ->  | N7: =_xll.BDH($N$2,"PX LAST",EOMONTH(A7,-MOD(MONTH(A7),3)),EOMONTH(A7,-MOD(MONTH(A7),3))) ->  | O7: =_xll.BDH($O$2,"PX LAST",EOMONTH(A7,-MOD(MONTH(A7),3)),EOMONTH(A7,-MOD(MONTH(A7),3))) -> 
A8: =EOMONTH(A7,3) -> 2015-06-30 | B8: =_xll.BDH(B$2,"PX LAST",EOMONTH(A8,-MOD(MONTH(A8),3)),EOMONTH(A8,-MOD(MONTH(A8),3))) ->  | C8: =SUM(_xll.BDH(C$2,"PX LAST",EOMONTH($A7,-2),$A7,"array=true","dts=H")) ->  | D8: =AVERAGE(_xll.BDH($D$2,"PX LAST",EOMONTH($A7,-2),$A7,"dts=h","array=true")) ->  | E8: =AVERAGE(_xll.BDH(E$2,"px last",$A7,$A8,"dts=H","array=TRUE")) ->  | F8: =AVERAGE(_xll.BDH(F$2,"px last",$A7,$A8,"dts=H","array=TRUE")) ->  | G8: =AVERAGE(_xll.BDH(G$2,"px last",$A7,$A8,"dts=H","array=TRUE")) ->  | H8: =AVERAGE(_xll.BDH(H$2,"px last",$A7,$A8,"dts=H","array=TRUE")) ->  | I8: =AVERAGE(_xll.BDH(I$2,"px last",$A7,$A8,"dts=H","array=TRUE")) ->  | J8: =_xll.BDH($J$2,"PX LAST",$A8,$A8) ->  | K8: =AVERAGE(_xll.BDH($K$2,"PX LAST",$A7,$A8,"dts=h","array=true")) ->  | L8: =SUM(_xll.BDH($L$2,"PX LAST",EOMONTH($A7,-2),$A7,"dts=h","array=true")) ->  | M8: =AVERAGE(_xll.BDH($M$2,"PX LAST",$A7,$A8,"dts=h","array=true")) ->  | N8: =_xll.BDH($N$2,"PX LAST",EOMONTH(A8,-MOD(MONTH(A8),3)),EOMONTH(A8,-MOD(MONTH(A8),3))) ->  | O8: =_xll.BDH($O$2,"PX LAST",EOMONTH(A8,-MOD(MONTH(A8),3)),EOMONTH(A8,-MOD(MONTH(A8),3))) -> 
A9: 2015-09-30 | B9: =_xll.BDH(B$2,"PX LAST",EOMONTH(A9,-MOD(MONTH(A9),3)),EOMONTH(A9,-MOD(MONTH(A9),3))) ->  | C9: =SUM(_xll.BDH(C$2,"PX LAST",EOMONTH($A8,-2),$A8,"array=true","dts=H")) ->  | D9: =AVERAGE(_xll.BDH($D$2,"PX LAST",EOMONTH($A8,-2),$A8,"dts=h","array=true")) ->  | E9: =AVERAGE(_xll.BDH(E$2,"px last",$A8,$A9,"dts=H","array=TRUE")) ->  | F9: =AVERAGE(_xll.BDH(F$2,"px last",$A8,$A9,"dts=H","array=TRUE")) ->  | G9: =AVERAGE(_xll.BDH(G$2,"px last",$A8,$A9,"dts=H","array=TRUE")) ->  | H9: =AVERAGE(_xll.BDH(H$2,"px last",$A8,$A9,"dts=H","array=TRUE")) ->  | I9: =AVERAGE(_xll.BDH(I$2,"px last",$A8,$A9,"dts=H","array=TRUE")) ->  | J9: =_xll.BDH($J$2,"PX LAST",$A9,$A9) ->  | K9: =AVERAGE(_xll.BDH($K$2,"PX LAST",$A8,$A9,"dts=h","array=true")) ->  | L9: =SUM(_xll.BDH($L$2,"PX LAST",EOMONTH($A8,-2),$A8,"dts=h","array=true")) ->  | M9: =AVERAGE(_xll.BDH($M$2,"PX LAST",$A8,$A9,"dts=h","array=true")) ->  | N9: =_xll.BDH($N$2,"PX LAST",EOMONTH(A9,-MOD(MONTH(A9),3)),EOMONTH(A9,-MOD(MONTH(A9),3))) ->  | O9: =_xll.BDH($O$2,"PX LAST",EOMONTH(A9,-MOD(MONTH(A9),3)),EOMONTH(A9,-MOD(MONTH(A9),3))) -> 
A10: 2015-12-31 | B10: =_xll.BDH(B$2,"PX LAST",EOMONTH(A10,-MOD(MONTH(A10),3)),EOMONTH(A10,-MOD(MONTH(A10),3))) ->  | C10: =SUM(_xll.BDH(C$2,"PX LAST",EOMONTH($A9,-2),$A9,"array=true","dts=H")) ->  | D10: =AVERAGE(_xll.BDH($D$2,"PX LAST",EOMONTH($A9,-2),$A9,"dts=h","array=true")) ->  | E10: =AVERAGE(_xll.BDH(E$2,"px last",$A9,$A10,"dts=H","array=TRUE")) ->  | F10: =AVERAGE(_xll.BDH(F$2,"px last",$A9,$A10,"dts=H","array=TRUE")) ->  | G10: =AVERAGE(_xll.BDH(G$2,"px last",$A9,$A10,"dts=H","array=TRUE")) ->  | H10: =AVERAGE(_xll.BDH(H$2,"px last",$A9,$A10,"dts=H","array=TRUE")) ->  | I10: =AVERAGE(_xll.BDH(I$2,"px last",$A9,$A10,"dts=H","array=TRUE")) ->  | J10: =_xll.BDH($J$2,"PX LAST",$A10,$A10) ->  | K10: =AVERAGE(_xll.BDH($K$2,"PX LAST",$A9,$A10,"dts=h","array=true")) ->  | L10: =SUM(_xll.BDH($L$2,"PX LAST",EOMONTH($A9,-2),$A9,"dts=h","array=true")) ->  | M10: =AVERAGE(_xll.BDH($M$2,"PX LAST",$A9,$A10,"dts=h","array=true")) ->  | N10: =_xll.BDH($N$2,"PX LAST",EOMONTH(A10,-MOD(MONTH(A10),3)),EOMONTH(A10,-MOD(MONTH(A10),3))) ->  | O10: =_xll.BDH($O$2,"PX LAST",EOMONTH(A10,-MOD(MONTH(A10),3)),EOMONTH(A10,-MOD(MONTH(A10),3))) -> 
A11: 2016-03-31 | B11: =_xll.BDH(B$2,"PX LAST",EOMONTH(A11,-MOD(MONTH(A11),3)),EOMONTH(A11,-MOD(MONTH(A11),3))) ->  | C11: =SUM(_xll.BDH(C$2,"PX LAST",EOMONTH($A10,-2),$A10,"array=true","dts=H")) ->  | D11: =AVERAGE(_xll.BDH($D$2,"PX LAST",EOMONTH($A10,-2),$A10,"dts=h","array=true")) ->  | E11: =AVERAGE(_xll.BDH(E$2,"px last",$A10,$A11,"dts=H","array=TRUE")) ->  | F11: =AVERAGE(_xll.BDH(F$2,"px last",$A10,$A11,"dts=H","array=TRUE")) ->  | G11: =AVERAGE(_xll.BDH(G$2,"px last",$A10,$A11,"dts=H","array=TRUE")) ->  | H11: =AVERAGE(_xll.BDH(H$2,"px last",$A10,$A11,"dts=H","array=TRUE")) ->  | I11: =AVERAGE(_xll.BDH(I$2,"px last",$A10,$A11,"dts=H","array=TRUE")) ->  | J11: =_xll.BDH($J$2,"PX LAST",$A11,$A11) ->  | K11: =AVERAGE(_xll.BDH($K$2,"PX LAST",$A10,$A11,"dts=h","array=true")) ->  | L11: =SUM(_xll.BDH($L$2,"PX LAST",EOMONTH($A10,-2),$A10,"dts=h","array=true")) ->  | M11: =AVERAGE(_xll.BDH($M$2,"PX LAST",$A10,$A11,"dts=h","array=true")) ->  | N11: =_xll.BDH($N$2,"PX LAST",EOMONTH(A11,-MOD(MONTH(A11),3)),EOMONTH(A11,-MOD(MONTH(A11),3))) ->  | O11: =_xll.BDH($O$2,"PX LAST",EOMONTH(A11,-MOD(MONTH(A11),3)),EOMONTH(A11,-MOD(MONTH(A11),3))) -> 
A12: 2016-06-30 | B12: =_xll.BDH(B$2,"PX LAST",EOMONTH(A12,-MOD(MONTH(A12),3)),EOMONTH(A12,-MOD(MONTH(A12),3))) ->  | C12: =SUM(_xll.BDH(C$2,"PX LAST",EOMONTH($A11,-2),$A11,"array=true","dts=H")) ->  | D12: =AVERAGE(_xll.BDH($D$2,"PX LAST",EOMONTH($A11,-2),$A11,"dts=h","array=true")) ->  | E12: =AVERAGE(_xll.BDH(E$2,"px last",$A11,$A12,"dts=H","array=TRUE")) ->  | F12: =AVERAGE(_xll.BDH(F$2,"px last",$A11,$A12,"dts=H","array=TRUE")) ->  | G12: =AVERAGE(_xll.BDH(G$2,"px last",$A11,$A12,"dts=H","array=TRUE")) ->  | H12: =AVERAGE(_xll.BDH(H$2,"px last",$A11,$A12,"dts=H","array=TRUE")) ->  | I12: =AVERAGE(_xll.BDH(I$2,"px last",$A11,$A12,"dts=H","array=TRUE")) ->  | J12: =_xll.BDH($J$2,"PX LAST",$A12,$A12) ->  | K12: =AVERAGE(_xll.BDH($K$2,"PX LAST",$A11,$A12,"dts=h","array=true")) ->  | L12: =SUM(_xll.BDH($L$2,"PX LAST",EOMONTH($A11,-2),$A11,"dts=h","array=true")) ->  | M12: =AVERAGE(_xll.BDH($M$2,"PX LAST",$A11,$A12,"dts=h","array=true")) ->  | N12: =_xll.BDH($N$2,"PX LAST",EOMONTH(A12,-MOD(MONTH(A12),3)),EOMONTH(A12,-MOD(MONTH(A12),3))) ->  | O12: =_xll.BDH($O$2,"PX LAST",EOMONTH(A12,-MOD(MONTH(A12),3)),EOMONTH(A12,-MOD(MONTH(A12),3))) -> 
A13: 2016-09-30 | B13: =_xll.BDH(B$2,"PX LAST",EOMONTH(A13,-MOD(MONTH(A13),3)),EOMONTH(A13,-MOD(MONTH(A13),3))) ->  | C13: =SUM(_xll.BDH(C$2,"PX LAST",EOMONTH($A12,-2),$A12,"array=true","dts=H")) ->  | D13: =AVERAGE(_xll.BDH($D$2,"PX LAST",EOMONTH($A12,-2),$A12,"dts=h","array=true")) ->  | E13: =AVERAGE(_xll.BDH(E$2,"px last",$A12,$A13,"dts=H","array=TRUE")) ->  | F13: =AVERAGE(_xll.BDH(F$2,"px last",$A12,$A13,"dts=H","array=TRUE")) ->  | G13: =AVERAGE(_xll.BDH(G$2,"px last",$A12,$A13,"dts=H","array=TRUE")) ->  | H13: =AVERAGE(_xll.BDH(H$2,"px last",$A12,$A13,"dts=H","array=TRUE")) ->  | I13: =AVERAGE(_xll.BDH(I$2,"px last",$A12,$A13,"dts=H","array=TRUE")) ->  | J13: =_xll.BDH($J$2,"PX LAST",$A13,$A13) ->  | K13: =AVERAGE(_xll.BDH($K$2,"PX LAST",$A12,$A13,"dts=h","array=true")) ->  | L13: =SUM(_xll.BDH($L$2,"PX LAST",EOMONTH($A12,-2),$A12,"dts=h","array=true")) ->  | M13: =AVERAGE(_xll.BDH($M$2,"PX LAST",$A12,$A13,"dts=h","array=true")) ->  | N13: =_xll.BDH($N$2,"PX LAST",EOMONTH(A13,-MOD(MONTH(A13),3)),EOMONTH(A13,-MOD(MONTH(A13),3))) ->  | O13: =_xll.BDH($O$2,"PX LAST",EOMONTH(A13,-MOD(MONTH(A13),3)),EOMONTH(A13,-MOD(MONTH(A13),3))) -> 
A14: =EOMONTH(A13,3) -> 2016-12-31 | B14: =_xll.BDH(B$2,"PX LAST",EOMONTH(A14,-MOD(MONTH(A14),3)),EOMONTH(A14,-MOD(MONTH(A14),3))) ->  | C14: =SUM(_xll.BDH(C$2,"PX LAST",EOMONTH($A13,-2),$A13,"array=true","dts=H")) ->  | D14: =AVERAGE(_xll.BDH($D$2,"PX LAST",EOMONTH($A13,-2),$A13,"dts=h","array=true")) ->  | E14: =AVERAGE(_xll.BDH(E$2,"px last",$A13,$A14,"dts=H","array=TRUE")) ->  | F14: =AVERAGE(_xll.BDH(F$2,"px last",$A13,$A14,"dts=H","array=TRUE")) ->  | G14: =AVERAGE(_xll.BDH(G$2,"px last",$A13,$A14,"dts=H","array=TRUE")) ->  | H14: =AVERAGE(_xll.BDH(H$2,"px last",$A13,$A14,"dts=H","array=TRUE")) ->  | I14: =AVERAGE(_xll.BDH(I$2,"px last",$A13,$A14,"dts=H","array=TRUE")) ->  | J14: =_xll.BDH($J$2,"PX LAST",$A14,$A14) ->  | K14: =AVERAGE(_xll.BDH($K$2,"PX LAST",$A13,$A14,"dts=h","array=true")) ->  | L14: =SUM(_xll.BDH($L$2,"PX LAST",EOMONTH($A13,-2),$A13,"dts=h","array=true")) ->  | M14: =AVERAGE(_xll.BDH($M$2,"PX LAST",$A13,$A14,"dts=h","array=true")) ->  | N14: =_xll.BDH($N$2,"PX LAST",EOMONTH(A14,-MOD(MONTH(A14),3)),EOMONTH(A14,-MOD(MONTH(A14),3))) ->  | O14: =_xll.BDH($O$2,"PX LAST",EOMONTH(A14,-MOD(MONTH(A14),3)),EOMONTH(A14,-MOD(MONTH(A14),3))) -> 
A15: 2017-03-31 | B15: =_xll.BDH(B$2,"PX LAST",EOMONTH(A15,-MOD(MONTH(A15),3)),EOMONTH(A15,-MOD(MONTH(A15),3))) ->  | C15: =SUM(_xll.BDH(C$2,"PX LAST",EOMONTH($A14,-2),$A14,"array=true","dts=H")) ->  | D15: =AVERAGE(_xll.BDH($D$2,"PX LAST",EOMONTH($A14,-2),$A14,"dts=h","array=true")) ->  | E15: =AVERAGE(_xll.BDH(E$2,"px last",$A14,$A15,"dts=H","array=TRUE")) ->  | F15: =AVERAGE(_xll.BDH(F$2,"px last",$A14,$A15,"dts=H","array=TRUE")) ->  | G15: =AVERAGE(_xll.BDH(G$2,"px last",$A14,$A15,"dts=H","array=TRUE")) ->  | H15: =AVERAGE(_xll.BDH(H$2,"px last",$A14,$A15,"dts=H","array=TRUE")) ->  | I15: =AVERAGE(_xll.BDH(I$2,"px last",$A14,$A15,"dts=H","array=TRUE")) ->  | J15: =_xll.BDH($J$2,"PX LAST",$A15,$A15) ->  | K15: =AVERAGE(_xll.BDH($K$2,"PX LAST",$A14,$A15,"dts=h","array=true")) ->  | L15: =SUM(_xll.BDH($L$2,"PX LAST",EOMONTH($A14,-2),$A14,"dts=h","array=true")) ->  | M15: =AVERAGE(_xll.BDH($M$2,"PX LAST",$A14,$A15,"dts=h","array=true")) ->  | N15: =_xll.BDH($N$2,"PX LAST",EOMONTH(A15,-MOD(MONTH(A15),3)),EOMONTH(A15,-MOD(MONTH(A15),3))) ->  | O15: =_xll.BDH($O$2,"PX LAST",EOMONTH(A15,-MOD(MONTH(A15),3)),EOMONTH(A15,-MOD(MONTH(A15),3))) -> 
A16: 2017-06-30 | B16: =_xll.BDH(B$2,"PX LAST",EOMONTH(A16,-MOD(MONTH(A16),3)),EOMONTH(A16,-MOD(MONTH(A16),3))) ->  | C16: =SUM(_xll.BDH(C$2,"PX LAST",EOMONTH($A15,-2),$A15,"array=true","dts=H")) ->  | D16: =AVERAGE(_xll.BDH($D$2,"PX LAST",EOMONTH($A15,-2),$A15,"dts=h","array=true")) ->  | E16: =AVERAGE(_xll.BDH(E$2,"px last",$A15,$A16,"dts=H","array=TRUE")) ->  | F16: =AVERAGE(_xll.BDH(F$2,"px last",$A15,$A16,"dts=H","array=TRUE")) ->  | G16: =AVERAGE(_xll.BDH(G$2,"px last",$A15,$A16,"dts=H","array=TRUE")) ->  | H16: =AVERAGE(_xll.BDH(H$2,"px last",$A15,$A16,"dts=H","array=TRUE")) ->  | I16: =AVERAGE(_xll.BDH(I$2,"px last",$A15,$A16,"dts=H","array=TRUE")) ->  | J16: =_xll.BDH($J$2,"PX LAST",$A16,$A16) ->  | K16: =AVERAGE(_xll.BDH($K$2,"PX LAST",$A15,$A16,"dts=h","array=true")) ->  | L16: =SUM(_xll.BDH($L$2,"PX LAST",EOMONTH($A15,-2),$A15,"dts=h","array=true")) ->  | M16: =AVERAGE(_xll.BDH($M$2,"PX LAST",$A15,$A16,"dts=h","array=true")) ->  | N16: =_xll.BDH($N$2,"PX LAST",EOMONTH(A16,-MOD(MONTH(A16),3)),EOMONTH(A16,-MOD(MONTH(A16),3))) ->  | O16: =_xll.BDH($O$2,"PX LAST",EOMONTH(A16,-MOD(MONTH(A16),3)),EOMONTH(A16,-MOD(MONTH(A16),3))) -> 
A17: 2017-09-30 | B17: =_xll.BDH(B$2,"PX LAST",EOMONTH(A17,-MOD(MONTH(A17),3)),EOMONTH(A17,-MOD(MONTH(A17),3))) ->  | C17: =SUM(_xll.BDH(C$2,"PX LAST",EOMONTH($A16,-2),$A16,"array=true","dts=H")) ->  | D17: =AVERAGE(_xll.BDH($D$2,"PX LAST",EOMONTH($A16,-2),$A16,"dts=h","array=true")) ->  | E17: =AVERAGE(_xll.BDH(E$2,"px last",$A16,$A17,"dts=H","array=TRUE")) ->  | F17: =AVERAGE(_xll.BDH(F$2,"px last",$A16,$A17,"dts=H","array=TRUE")) ->  | G17: =AVERAGE(_xll.BDH(G$2,"px last",$A16,$A17,"dts=H","array=TRUE")) ->  | H17: =AVERAGE(_xll.BDH(H$2,"px last",$A16,$A17,"dts=H","array=TRUE")) ->  | I17: =AVERAGE(_xll.BDH(I$2,"px last",$A16,$A17,"dts=H","array=TRUE")) ->  | J17: =_xll.BDH($J$2,"PX LAST",$A17,$A17) ->  | K17: =AVERAGE(_xll.BDH($K$2,"PX LAST",$A16,$A17,"dts=h","array=true")) ->  | L17: =SUM(_xll.BDH($L$2,"PX LAST",EOMONTH($A16,-2),$A16,"dts=h","array=true")) ->  | M17: =AVERAGE(_xll.BDH($M$2,"PX LAST",$A16,$A17,"dts=h","array=true")) ->  | N17: =_xll.BDH($N$2,"PX LAST",EOMONTH(A17,-MOD(MONTH(A17),3)),EOMONTH(A17,-MOD(MONTH(A17),3))) ->  | O17: =_xll.BDH($O$2,"PX LAST",EOMONTH(A17,-MOD(MONTH(A17),3)),EOMONTH(A17,-MOD(MONTH(A17),3))) -> 
A18: 2017-12-31 | B18: =_xll.BDH(B$2,"PX LAST",EOMONTH(A18,-MOD(MONTH(A18),3)),EOMONTH(A18,-MOD(MONTH(A18),3))) ->  | C18: =SUM(_xll.BDH(C$2,"PX LAST",EOMONTH($A17,-2),$A17,"array=true","dts=H")) ->  | D18: =AVERAGE(_xll.BDH($D$2,"PX LAST",EOMONTH($A17,-2),$A17,"dts=h","array=true")) ->  | E18: =AVERAGE(_xll.BDH(E$2,"px last",$A17,$A18,"dts=H","array=TRUE")) ->  | F18: =AVERAGE(_xll.BDH(F$2,"px last",$A17,$A18,"dts=H","array=TRUE")) ->  | G18: =AVERAGE(_xll.BDH(G$2,"px last",$A17,$A18,"dts=H","array=TRUE")) ->  | H18: =AVERAGE(_xll.BDH(H$2,"px last",$A17,$A18,"dts=H","array=TRUE")) ->  | I18: =AVERAGE(_xll.BDH(I$2,"px last",$A17,$A18,"dts=H","array=TRUE")) ->  | J18: =_xll.BDH($J$2,"PX LAST",$A18,$A18) ->  | K18: =AVERAGE(_xll.BDH($K$2,"PX LAST",$A17,$A18,"dts=h","array=true")) ->  | L18: =SUM(_xll.BDH($L$2,"PX LAST",EOMONTH($A17,-2),$A17,"dts=h","array=true")) ->  | M18: =AVERAGE(_xll.BDH($M$2,"PX LAST",$A17,$A18,"dts=h","array=true")) ->  | N18: =_xll.BDH($N$2,"PX LAST",EOMONTH(A18,-MOD(MONTH(A18),3)),EOMONTH(A18,-MOD(MONTH(A18),3))) ->  | O18: =_xll.BDH($O$2,"PX LAST",EOMONTH(A18,-MOD(MONTH(A18),3)),EOMONTH(A18,-MOD(MONTH(A18),3))) -> 

Sheet Data
C2: sales_rev_turn | F2: FRGEGDP INDEX | G2: FRGEIMP INDEX | H2: CPI INDEX | I2: Cl5 COMDTY | J2: XAU CURNCY | K2: CO1 COMDTY | L2: C 1 Comdty | M2: ho1 comdty | N2: xag curncy | O2: NHSPS1 INDEX | P2: lb1 comdty | Q2: GPGSDEF Index | R2: GPGSTOT Index
B3: x | C3: Revenue_Concurrent | D3: Revenue_Lagged_1Q | E3: Revenue_Lagged_1Y | F3: USA_Nominal_GDP | G3: USA_Housing_Starts | H3: USA_CPI | I3: OIL | J3: GOLD | K3: BRENT_CRUDE | L3: CORN | M3: heat_oil | N3: silver | O3: one_UNIT_STARTS | P3: Lumber | Q3: US_Defense_Spending | R3: US_Gov_Spending
B4: x
A5: -44FQ | B5: =EOMONTH(B6,-3) -> 2003-09-30 | E5: =_xll.BDP(control!$B$1&" EQUITY",C$2, "EQY_FUND_RELATIVE_PERIOD", $A5, "EQY_FUND_CRNCY", control!$B$2, "EQY_CONSOLIDATED","Y", "FILL=0") -> 52860
A6: ="-"&MID(A5,2,FIND("F",A5)-2)-1&"FQ" -> -43FQ | B6: =EOMONTH(B7,-3) -> 2003-12-31 | E6: =_xll.BDP(control!$B$1&" EQUITY",C$2, "EQY_FUND_RELATIVE_PERIOD", $A6, "EQY_FUND_CRNCY", control!$B$2, "EQY_CONSOLIDATED","Y", "FILL=0") -> 55711
A7: ="-"&MID(A6,2,FIND("F",A6)-2)-1&"FQ" -> -42FQ | B7: =EOMONTH(B8,-3) -> 2004-03-31 | E7: =_xll.BDP(control!$B$1&" EQUITY",C$2, "EQY_FUND_RELATIVE_PERIOD", $A7, "EQY_FUND_CRNCY", control!$B$2, "EQY_CONSOLIDATED","Y", "FILL=0") -> 59644
A8: ="-"&MID(A7,2,FIND("F",A7)-2)-1&"FQ" -> -41FQ | B8: 2004-06-30 | D8: =_xll.BDP(control!$B$1&" EQUITY",C$2, "EQY_FUND_RELATIVE_PERIOD", $A8, "EQY_FUND_CRNCY", control!$B$2, "EQY_CONSOLIDATED","Y", "FILL=0") -> 62706 | E8: =_xll.BDP(control!$B$1&" EQUITY",C$2, "EQY_FUND_RELATIVE_PERIOD", $A8, "EQY_FUND_CRNCY", control!$B$2, "EQY_CONSOLIDATED","Y", "FILL=0") -> 62706
A9: -40FQ | B9: 2004-09-30 | C9: =_xll.BDP(control!$B$1&" EQUITY",C$2, "EQY_FUND_RELATIVE_PERIOD", $A9, "EQY_FUND_CRNCY", control!$B$2, "EQY_CONSOLIDATED","Y", "FILL=0") -> 67809 | D9: =_xll.BDP(control!$B$1&" EQUITY",C$2, "EQY_FUND_RELATIVE_PERIOD", $A9, "EQY_FUND_CRNCY", control!$B$2, "EQY_CONSOLIDATED","Y", "FILL=0") -> 67809 | E9: =_xll.BDP(control!$B$1&" EQUITY",C$2, "EQY_FUND_RELATIVE_PERIOD", $A9, "EQY_FUND_CRNCY", control!$B$2, "EQY_CONSOLIDATED","Y", "FILL=0") -> 67809 | F9: =_xll.BDH(F$2,"PX LAST",EOMONTH(B9,-MOD(MONTH(B9),3)),EOMONTH(B9,-MOD(MONTH(B9),3))) -> 473.486 | G9: =SUM(_xll.BDH(G$2,"PX LAST",EOMONTH($B8,-2),$B8,"array=true","dts=H")) -> 116.315 | H9: =AVERAGE(_xll.BDH($H$2,"PX LAST",EOMONTH($B8,-2),$B8,"dts=h","array=true")) -> 188.1666667 | I9: =AVERAGE(_xll.BDH(I$2,"px last",$B8,$B9,"dts=H","array=TRUE")) -> 42.05707692 | J9: =AVERAGE(_xll.BDH(J$2,"px last",$B8,$B9,"dts=H","array=TRUE")) -> 401.8470149 | K9: =AVERAGE(_xll.BDH(K$2,"px last",$B8,$B9,"dts=H","array=TRUE")) -> 40.64878788 | L9: =AVERAGE(_xll.BDH(L$2,"px last",$B8,$B9,"dts=H","array=TRUE")) -> 225.3076923 | M9: =AVERAGE(_xll.BDH(M$2,"px last",$B8,$B9,"dts=H","array=TRUE")) -> 117.924 | N9: =AVERAGE(_xll.BDH($N$2,"PX LAST",$B8,$B9,"dts=h","array=true")) -> 6.462723881 | O9: =SUM(_xll.BDH($O$2,"PX LAST",EOMONTH($B8,-2),$B8,"dts=h","array=true")) -> 4824 | P9: =AVERAGE(_xll.BDH($P$2,"PX LAST",$B8,$B9,"dts=h","array=true")) -> 407.2692308 | Q9: =_xll.BDH($Q$2,"PX LAST",EOMONTH(B9,-MOD(MONTH(B9),3)),EOMONTH(B9,-MOD(MONTH(B9),3))) -> 585.6 | R9: =_xll.BDH($R$2,"PX LAST",EOMONTH(B9,-MOD(MONTH(B9),3)),EOMONTH(B9,-MOD(MONTH(B9),3))) -> 2381.8
A10: ="-"&MID(A9,2,FIND("F",A9)-2)-1&"FQ" -> -39FQ | B10: 2004-12-31 | C10: =_xll.BDP(control!$B$1&" EQUITY",C$2, "EQY_FUND_RELATIVE_PERIOD", $A10, "EQY_FUND_CRNCY", control!$B$2, "EQY_CONSOLIDATED","Y", "FILL=0") -> 73830 | D10: =_xll.BDP(control!$B$1&" EQUITY",C$2, "EQY_FUND_RELATIVE_PERIOD", $A10, "EQY_FUND_CRNCY", control!$B$2, "EQY_CONSOLIDATED","Y", "FILL=0") -> 73830 | E10: =_xll.BDP(control!$B$1&" EQUITY",C$2, "EQY_FUND_RELATIVE_PERIOD", $A10, "EQY_FUND_CRNCY", control!$B$2, "EQY_CONSOLIDATED","Y", "FILL=0") -> 73830 | F10: =_xll.BDH(F$2,"PX LAST",EOMONTH(B10,-MOD(MONTH(B10),3)),EOMONTH(B10,-MOD(MONTH(B10),3))) -> 476.91 | G10: =SUM(_xll.BDH(G$2,"PX LAST",EOMONTH($B9,-2),$B9,"array=true","dts=H")) -> 118.399 | H10: =AVERAGE(_xll.BDH($H$2,"PX LAST",EOMONTH($B9,-2),$B9,"dts=h","array=true")) -> 189.3666667 | I10: =AVERAGE(_xll.BDH(I$2,"px last",$B9,$B10,"dts=H","array=TRUE")) -> 47.26666667 | J10: =AVERAGE(_xll.BDH(J$2,"px last",$B9,$B10,"dts=H","array=TRUE")) -> 434.5828358 | K10: =AVERAGE(_xll.BDH(K$2,"px last",$B9,$B10,"dts=H","array=TRUE")) -> 44.76276923 | L10: =AVERAGE(_xll.BDH(L$2,"px last",$B9,$B10,"dts=H","array=TRUE")) -> 201.4960938 | M10: =AVERAGE(_xll.BDH(M$2,"px last",$B9,$B10,"dts=H","array=TRUE")) -> 139.5952381 | N10: =AVERAGE(_xll.BDH($N$2,"PX LAST",$B9,$B10,"dts=h","array=true")) -> 7.227723881 | O10: =SUM(_xll.BDH($O$2,"PX LAST",EOMONTH($B9,-2),$B9,"dts=h","array=true")) -> 4921 | P10: =AVERAGE(_xll.BDH($P$2,"PX LAST",$B9,$B10,"dts=h","array=true")) -> 322.8707692 | Q10: =_xll.BDH($Q$2,"PX LAST",EOMONTH(B10,-MOD(MONTH(B10),3)),EOMONTH(B10,-MOD(MONTH(B10),3))) -> 575.8 | R10: =_xll.BDH($R$2,"PX LAST",EOMONTH(B10,-MOD(MONTH(B10),3)),EOMONTH(B10,-MOD(MONTH(B10),3))) -> 2401.2
A11: ="-"&MID(A10,2,FIND("F",A10)-2)-1&"FQ" -> -38FQ | B11: 2005-03-31 | C11: =_xll.BDP(control!$B$1&" EQUITY",C$2, "EQY_FUND_RELATIVE_PERIOD", $A11, "EQY_FUND_CRNCY", control!$B$2, "EQY_CONSOLIDATED","Y", "FILL=0") -> 72237 | D11: =_xll.BDP(control!$B$1&" EQUITY",C$2, "EQY_FUND_RELATIVE_PERIOD", $A11, "EQY_FUND_CRNCY", control!$B$2, "EQY_CONSOLIDATED","Y", "FILL=0") -> 72237 | E11: =_xll.BDP(control!$B$1&" EQUITY",C$2, "EQY_FUND_RELATIVE_PERIOD", $A11, "EQY_FUND_CRNCY", control!$B$2, "EQY_CONSOLIDATED","Y", "FILL=0") -> 72237 | F11: =_xll.BDH(F$2,"PX LAST",EOMONTH(B11,-MOD(MONTH(B11),3)),EOMONTH(B11,-MOD(MONTH(B11),3))) -> 477.244 | G11: =SUM(_xll.BDH(G$2,"PX LAST",EOMONTH($B10,-2),$B10,"array=true","dts=H")) -> 120.637 | H11: =AVERAGE(_xll.BDH($H$2,"PX LAST",EOMONTH($B10,-2),$B10,"dts=h","array=true")) -> 191.4 | I11: =AVERAGE(_xll.BDH(I$2,"px last",$B10,$B11,"dts=H","array=TRUE")) -> 50.31344262 | J11: =AVERAGE(_xll.BDH(J$2,"px last",$B10,$B11,"dts=H","array=TRUE")) -> 427.8650769 | K11: =AVERAGE(_xll.BDH(K$2,"px last",$B10,$B11,"dts=H","array=TRUE")) -> 47.84048387 | L11: =AVERAGE(_xll.BDH(L$2,"px last",$B10,$B11,"dts=H","array=TRUE")) -> 205.1311475 | M11: =AVERAGE(_xll.BDH(M$2,"px last",$B10,$B11,"dts=H","array=TRUE")) -> 140.7998361 | N11: =AVERAGE(_xll.BDH($N$2,"PX LAST",$B10,$B11,"dts=h","array=true")) -> 6.978346154 | O11: =SUM(_xll.BDH($O$2,"PX LAST",EOMONTH($B10,-2),$B10,"dts=h","array=true")) -> 4832 | P11: =AVERAGE(_xll.BDH($P$2,"PX LAST",$B10,$B11,"dts=h","array=true")) -> 388.0064516 | Q11: =_xll.BDH($Q$2,"PX LAST",EOMONTH(B11,-MOD(MONTH(B11),3)),EOMONTH(B11,-MOD(MONTH(B11),3))) -> 596.8 | R11: =_xll.BDH($R$2,"PX LAST",EOMONTH(B11,-MOD(MONTH(B11),3)),EOMONTH(B11,-MOD(MONTH(B11),3))) -> 2442.2
A12: -37FQ | B12: 2005-06-30 | C12: =_xll.BDP(control!$B$1&" EQUITY",C$2, "EQY_FUND_RELATIVE_PERIOD", $A12, "EQY_FUND_CRNCY", control!$B$2, "EQY_CONSOLIDATED","Y", "FILL=0") -> 79107 | D12: =_xll.BDP(control!$B$1&" EQUITY",C$2, "EQY_FUND_RELATIVE_PERIOD", $A12, "EQY_FUND_CRNCY", control!$B$2, "EQY_CONSOLIDATED","Y", "FILL=0") -> 79107 | E12: =_xll.BDP(control!$B$1&" EQUITY",C$2, "EQY_FUND_RELATIVE_PERIOD", $A12, "EQY_FUND_CRNCY", control!$B$2, "EQY_CONSOLIDATED","Y", "FILL=0") -> 79107 | F12: =_xll.BDH(F$2,"PX LAST",EOMONTH(B12,-MOD(MONTH(B12),3)),EOMONTH(B12,-MOD(MONTH(B12),3))) -> 478.183 | G12: =SUM(_xll.BDH(G$2,"PX LAST",EOMONTH($B11,-2),$B11,"array=true","dts=H")) -> 121.567 | H12: =AVERAGE(_xll.BDH($H$2,"PX LAST",EOMONTH($B11,-2),$B11,"dts=h","array=true")) -> 192.3666667 | I12: =AVERAGE(_xll.BDH(I$2,"px last",$B11,$B12,"dts=H","array=TRUE")) -> 55.70169231 | J12: =AVERAGE(_xll.BDH(J$2,"px last",$B11,$B12,"dts=H","array=TRUE")) -> 427.7619697 | K12: =AVERAGE(_xll.BDH(K$2,"px last",$B11,$B12,"dts=H","array=TRUE")) -> 52.9121875 | L12: =AVERAGE(_xll.BDH(L$2,"px last",$B11,$B12,"dts=H","array=TRUE")) -> 212.7576923 | M12: =AVERAGE(_xll.BDH(M$2,"px last",$B11,$B12,"dts=H","array=TRUE")) -> 151.9273846 | N12: =AVERAGE(_xll.BDH($N$2,"PX LAST",$B11,$B12,"dts=h","array=true")) -> 7.152992424 | O12: =SUM(_xll.BDH($O$2,"PX LAST",EOMONTH($B11,-2),$B11,"dts=h","array=true")) -> 5114 | P12: =AVERAGE(_xll.BDH($P$2,"PX LAST",$B11,$B12,"dts=h","array=true")) -> 354.2738462 | Q12: =_xll.BDH($Q$2,"PX LAST",EOMONTH(B12,-MOD(MONTH(B12),3)),EOMONTH(B12,-MOD(MONTH(B12),3))) -> 605 | R12: =_xll.BDH($R$2,"PX LAST",EOMONTH(B12,-MOD(MONTH(B12),3)),EOMONTH(B12,-MOD(MONTH(B12),3))) -> 2469.7
A13: -36FQ | B13: 2005-09-30 | C13: =_xll.BDP(control!$B$1&" EQUITY",C$2, "EQY_FUND_RELATIVE_PERIOD", $A13, "EQY_FUND_CRNCY", control!$B$2, "EQY_CONSOLIDATED","Y", "FILL=0") -> 88571 | D13: =_xll.BDP(control!$B$1&" EQUITY",C$2, "EQY_FUND_RELATIVE_PERIOD", $A13, "EQY_FUND_CRNCY", control!$B$2, "EQY_CONSOLIDATED","Y", "FILL=0") -> 88571 | E13: =_xll.BDP(control!$B$1&" EQUITY",C$2, "EQY_FUND_RELATIVE_PERIOD", $A13, "EQY_FUND_CRNCY", control!$B$2, "EQY_CONSOLIDATED","Y", "FILL=0") -> 88571 | F13: =_xll.BDH(F$2,"PX LAST",EOMONTH(B13,-MOD(MONTH(B13),3)),EOMONTH(B13,-MOD(MONTH(B13),3))) -> 480.899 | G13: =SUM(_xll.BDH(G$2,"PX LAST",EOMONTH($B12,-2),$B12,"array=true","dts=H")) -> 122.68 | H13: =AVERAGE(_xll.BDH($H$2,"PX LAST",EOMONTH($B12,-2),$B12,"dts=h","array=true")) -> 193.6666667 | I13: =AVERAGE(_xll.BDH(I$2,"px last",$B12,$B13,"dts=H","array=TRUE")) -> 65.09323077 | J13: =AVERAGE(_xll.BDH(J$2,"px last",$B12,$B13,"dts=H","array=TRUE")) -> 439.9528358 | K13: =AVERAGE(_xll.BDH(K$2,"px last",$B12,$B13,"dts=H","array=TRUE")) -> 61.81287879 | L13: =AVERAGE(_xll.BDH(L$2,"px last",$B12,$B13,"dts=H","array=TRUE")) -> 218.1230769 | M13: =AVERAGE(_xll.BDH(M$2,"px last",$B12,$B13,"dts=H","array=TRUE")) -> 183.2207692 | N13: =AVERAGE(_xll.BDH($N$2,"PX LAST",$B12,$B13,"dts=h","array=true")) -> 7.070559701 | O13: =SUM(_xll.BDH($O$2,"PX LAST",EOMONTH($B12,-2),$B12,"dts=h","array=true")) -> 5091 | P13: =AVERAGE(_xll.BDH($P$2,"PX LAST",$B12,$B13,"dts=h","array=true")) -> 308.8492308 | Q13: =_xll.BDH($Q$2,"PX LAST",EOMONTH(B13,-MOD(MONTH(B13),3)),EOMONTH(B13,-MOD(MONTH(B13),3))) -> 623.4 | R13: =_xll.BDH($R$2,"PX LAST",EOMONTH(B13,-MOD(MONTH(B13),3)),EOMONTH(B13,-MOD(MONTH(B13),3))) -> 2521.6
A14: -35FQ | B14: 2005-12-31 | C14: =_xll.BDP(control!$B$1&" EQUITY",C$2, "EQY_FUND_RELATIVE_PERIOD", $A14, "EQY_FUND_CRNCY", control!$B$2, "EQY_CONSOLIDATED","Y", "FILL=0") -> 88298 | D14: =_xll.BDP(control!$B$1&" EQUITY",C$2, "EQY_FUND_RELATIVE_PERIOD", $A14, "EQY_FUND_CRNCY", control!$B$2, "EQY_CONSOLIDATED","Y", "FILL=0") -> 88298 | E14: =_xll.BDP(control!$B$1&" EQUITY",C$2, "EQY_FUND_RELATIVE_PERIOD", $A14, "EQY_FUND_CRNCY", control!$B$2, "EQY_CONSOLIDATED","Y", "FILL=0") -> 88298 | F14: =_xll.BDH(F$2,"PX LAST",EOMONTH(B14,-MOD(MONTH(B14),3)),EOMONTH(B14,-MOD(MONTH(B14),3))) -> 484.521 | G14: =SUM(_xll.BDH(G$2,"PX LAST",EOMONTH($B13,-2),$B13,"array=true","dts=H")) -> 125.341 | H14: =AVERAGE(_xll.BDH($H$2,"PX LAST",EOMONTH($B13,-2),$B13,"dts=h","array=true")) -> 196.6 | I14: =AVERAGE(_xll.BDH(I$2,"px last",$B13,$B14,"dts=H","array=TRUE")) -> 61.53238095 | J14: =AVERAGE(_xll.BDH(J$2,"px last",$B13,$B14,"dts=H","array=TRUE")) -> 485.7621212 | K14: =AVERAGE(_xll.BDH(K$2,"px last",$B13,$B14,"dts=H","array=TRUE")) -> 57.84892308 | L14: =AVERAGE(_xll.BDH(L$2,"px last",$B13,$B14,"dts=H","array=TRUE")) -> 199.0585938 | M14: =AVERAGE(_xll.BDH(M$2,"px last",$B13,$B14,"dts=H","array=TRUE")) -> 180.7866667 | N14: =AVERAGE(_xll.BDH($N$2,"PX LAST",$B13,$B14,"dts=h","array=true")) -> 8.064186364 | O14: =SUM(_xll.BDH($O$2,"PX LAST",EOMONTH($B13,-2),$B13,"dts=h","array=true")) -> 5241 | P14: =AVERAGE(_xll.BDH($P$2,"PX LAST",$B13,$B14,"dts=h","array=true")) -> 318.2953125 | Q14: =_xll.BDH($Q$2,"PX LAST",EOMONTH(B14,-MOD(MONTH(B14),3)),EOMONTH(B14,-MOD(MONTH(B14),3))) -> 607.8 | R14: =_xll.BDH($R$2,"PX LAST",EOMONTH(B14,-MOD(MONTH(B14),3)),EOMONTH(B14,-MOD(MONTH(B14),3))) -> 2541.3
A15: -34FQ | B15: 2006-03-31 | C15: =_xll.BDP(control!$B$1&" EQUITY",C$2, "EQY_FUND_RELATIVE_PERIOD", $A15, "EQY_FUND_CRNCY", control!$B$2, "EQY_CONSOLIDATED","Y", "FILL=0") -> 78653 | D15: =_xll.BDP(control!$B$1&" EQUITY",C$2, "EQY_FUND_RELATIVE_PERIOD", $A15, "EQY_FUND_CRNCY", control!$B$2, "EQY_CONSOLIDATED","Y", "FILL=0") -> 78653 | E15: =_xll.BDP(control!$B$1&" EQUITY",C$2, "EQY_FUND_RELATIVE_PERIOD", $A15, "EQY_FUND_CRNCY", control!$B$2, "EQY_CONSOLIDATED","Y", "FILL=0") -> 78653 | F15: =_xll.BDH(F$2,"PX LAST",EOMONTH(B15,-MOD(MONTH(B15),3)),EOMONTH(B15,-MOD(MONTH(B15),3))) -> 487.809 | G15: =SUM(_xll.BDH(G$2,"PX LAST",EOMONTH($B14,-2),$B14,"array=true","dts=H")) -> 129.572 | H15: =AVERAGE(_xll.BDH($H$2,"PX LAST",EOMONTH($B14,-2),$B14,"dts=h","array=true")) -> 198.4333333 | I15: =AVERAGE(_xll.BDH(I$2,"px last",$B14,$B15,"dts=H","array=TRUE")) -> 66.29935484 | J15: =AVERAGE(_xll.BDH(J$2,"px last",$B14,$B15,"dts=H","array=TRUE")) -> 554.7278462 | K15: =AVERAGE(_xll.BDH(K$2,"px last",$B14,$B15,"dts=H","array=TRUE")) -> 62.71109375 | L15: =AVERAGE(_xll.BDH(L$2,"px last",$B14,$B15,"dts=H","array=TRUE")) -> 220.1048387 | M15: =AVERAGE(_xll.BDH(M$2,"px last",$B14,$B15,"dts=H","array=TRUE")) -> 175.3375806 | N15: =AVERAGE(_xll.BDH($N$2,"PX LAST",$B14,$B15,"dts=h","array=true")) -> 9.734384615 | O15: =SUM(_xll.BDH($O$2,"PX LAST",EOMONTH($B14,-2),$B14,"dts=h","array=true")) -> 5176 | P15: =AVERAGE(_xll.BDH($P$2,"PX LAST",$B14,$B15,"dts=h","array=true")) -> 344.6951613 | Q15: =_xll.BDH($Q$2,"PX LAST",EOMONTH(B15,-MOD(MONTH(B15),3)),EOMONTH(B15,-MOD(MONTH(B15),3))) -> 633.5 | R15: =_xll.BDH($R$2,"PX LAST",EOMONTH(B15,-MOD(MONTH(B15),3)),EOMONTH(B15,-MOD(MONTH(B15),3))) -> 2592.2
A16: -33FQ | B16: 2006-06-30 | C16: =_xll.BDP(control!$B$1&" EQUITY",C$2, "EQY_FUND_RELATIVE_PERIOD", $A16, "EQY_FUND_CRNCY", control!$B$2, "EQY_CONSOLIDATED","Y", "FILL=0") -> 87813 | D16: =_xll.BDP(control!$B$1&" EQUITY",C$2, "EQY_FUND_RELATIVE_PERIOD", $A16, "EQY_FUND_CRNCY", control!$B$2, "EQY_CONSOLIDATED","Y", "FILL=0") -> 87813 | E16: =_xll.BDP(control!$B$1&" EQUITY",C$2, "EQY_FUND_RELATIVE_PERIOD", $A16, "EQY_FUND_CRNCY", control!$B$2, "EQY_CONSOLIDATED","Y", "FILL=0") -> 87813 | F16: =_xll.BDH(F$2,"PX LAST",EOMONTH(B16,-MOD(MONTH(B16),3)),EOMONTH(B16,-MOD(MONTH(B16),3))) -> 492.973 | G16: =SUM(_xll.BDH(G$2,"PX LAST",EOMONTH($B15,-2),$B15,"array=true","dts=H")) -> 130.903 | H16: =AVERAGE(_xll.BDH($H$2,"PX LAST",EOMONTH($B15,-2),$B15,"dts=h","array=true")) -> 199.4666667 | I16: =AVERAGE(_xll.BDH(I$2,"px last",$B15,$B16,"dts=H","array=TRUE")) -> 73.41859375 | J16: =AVERAGE(_xll.BDH(J$2,"px last",$B15,$B16,"dts=H","array=TRUE")) -> 627.5701515 | K16: =AVERAGE(_xll.BDH(K$2,"px last",$B15,$B16,"dts=H","array=TRUE")) -> 70.29203125 | L16: =AVERAGE(_xll.BDH(L$2,"px last",$B15,$B16,"dts=H","array=TRUE")) -> 240.2304688 | M16: =AVERAGE(_xll.BDH(M$2,"px last",$B15,$B16,"dts=H","array=TRUE")) -> 197.6179688 | N16: =AVERAGE(_xll.BDH($N$2,"PX LAST",$B15,$B16,"dts=h","array=true")) -> 12.30636364 | O16: =SUM(_xll.BDH($O$2,"PX LAST",EOMONTH($B15,-2),$B15,"dts=h","array=true")) -> 5228 | P16: =AVERAGE(_xll.BDH($P$2,"PX LAST",$B15,$B16,"dts=h","array=true")) -> 316.496875 | Q16: =_xll.BDH($Q$2,"PX LAST",EOMONTH(B16,-MOD(MONTH(B16),3)),EOMONTH(B16,-MOD(MONTH(B16),3))) -> 641.4 | R16: =_xll.BDH($R$2,"PX LAST",EOMONTH(B16,-MOD(MONTH(B16),3)),EOMONTH(B16,-MOD(MONTH(B16),3))) -> 2630.7
A17: -32FQ | B17: 2006-09-30 | C17: =_xll.BDP(control!$B$1&" EQUITY",C$2, "EQY_FUND_RELATIVE_PERIOD", $A17, "EQY_FUND_CRNCY", control!$B$2, "EQY_CONSOLIDATED","Y", "FILL=0") -> 88504 | D17: =_xll.BDP(control!$B$1&" EQUITY",C$2, "EQY_FUND_RELATIVE_PERIOD", $A17, "EQY_FUND_CRNCY", control!$B$2, "EQY_CONSOLIDATED","Y", "FILL=0") -> 88504 | E17: =_xll.BDP(control!$B$1&" EQUITY",C$2, "EQY_FUND_RELATIVE_PERIOD", $A17, "EQY_FUND_CRNCY", control!$B$2, "EQY_CONSOLIDATED","Y", "FILL=0") -> 88504 | F17: =_xll.BDH(F$2,"PX LAST",EOMONTH(B17,-MOD(MONTH(B17),3)),EOMONTH(B17,-MOD(MONTH(B17),3))) -> 492.838 | G17: =SUM(_xll.BDH(G$2,"PX LAST",EOMONTH($B16,-2),$B16,"array=true","dts=H")) -> 132.21 | H17: =AVERAGE(_xll.BDH($H$2,"PX LAST",EOMONTH($B16,-2),$B16,"dts=h","array=true")) -> 201.2666667 | I17: =AVERAGE(_xll.BDH(I$2,"px last",$B16,$B17,"dts=H","array=TRUE")) -> 73.736875 | J17: =AVERAGE(_xll.BDH(J$2,"px last",$B16,$B17,"dts=H","array=TRUE")) -> 621.1857576 | K17: =AVERAGE(_xll.BDH(K$2,"px last",$B16,$B17,"dts=H","array=TRUE")) -> 70.74469697 | L17: =AVERAGE(_xll.BDH(L$2,"px last",$B16,$B17,"dts=H","array=TRUE")) -> 238.21875 | M17: =AVERAGE(_xll.BDH(M$2,"px last",$B16,$B17,"dts=H","array=TRUE")) -> 193.4090625 | N17: =AVERAGE(_xll.BDH($N$2,"PX LAST",$B16,$B17,"dts=h","array=true")) -> 11.7055303 | O17: =SUM(_xll.BDH($O$2,"PX LAST",EOMONTH($B16,-2),$B16,"dts=h","array=true")) -> 4532 | P17: =AVERAGE(_xll.BDH($P$2,"PX LAST",$B16,$B17,"dts=h","array=true")) -> 275.7734375 | Q17: =_xll.BDH($Q$2,"PX LAST",EOMONTH(B17,-MOD(MONTH(B17),3)),EOMONTH(B17,-MOD(MONTH(B17),3))) -> 638.7 | R17: =_xll.BDH($R$2,"PX LAST",EOMONTH(B17,-MOD(MONTH(B17),3)),EOMONTH(B17,-MOD(MONTH(B17),3))) -> 2655.4
A18: -31FQ | B18: 2006-12-31 | C18: =_xll.BDP(control!$B$1&" EQUITY",C$2, "EQY_FUND_RELATIVE_PERIOD", $A18, "EQY_FUND_CRNCY", control!$B$2, "EQY_CONSOLIDATED","Y", "FILL=0") -> 80116 | D18: =_xll.BDP(control!$B$1&" EQUITY",C$2, "EQY_FUND_RELATIVE_PERIOD", $A18, "EQY_FUND_CRNCY", control!$B$2, "EQY_CONSOLIDATED","Y", "FILL=0") -> 80116 | E18: =_xll.BDP(control!$B$1&" EQUITY",C$2, "EQY_FUND_RELATIVE_PERIOD", $A18, "EQY_FUND_CRNCY", control!$B$2, "EQY_CONSOLIDATED","Y", "FILL=0") -> 80116 | F18: =_xll.BDH(F$2,"PX LAST",EOMONTH(B18,-MOD(MONTH(B18),3)),EOMONTH(B18,-MOD(MONTH(B18),3))) -> 496.868 | G18: =SUM(_xll.BDH(G$2,"PX LAST",EOMONTH($B17,-2),$B17,"array=true","dts=H")) -> 131.258 | H18: =AVERAGE(_xll.BDH($H$2,"PX LAST",EOMONTH($B17,-2),$B17,"dts=h","array=true")) -> 203.1666667 | I18: =AVERAGE(_xll.BDH(I$2,"px last",$B17,$B18,"dts=H","array=TRUE")) -> 64.37269841 | J18: =AVERAGE(_xll.BDH(J$2,"px last",$B17,$B18,"dts=H","array=TRUE")) -> 614.3553846 | K18: =AVERAGE(_xll.BDH(K$2,"px last",$B17,$B18,"dts=H","array=TRUE")) -> 60.61140625 | L18: =AVERAGE(_xll.BDH(L$2,"px last",$B17,$B18,"dts=H","array=TRUE")) -> 341.8412698 | M18: =AVERAGE(_xll.BDH(M$2,"px last",$B17,$B18,"dts=H","array=TRUE")) -> 170.3996825 | N18: =AVERAGE(_xll.BDH($N$2,"PX LAST",$B17,$B18,"dts=h","array=true")) -> 12.59930615 | O18: =SUM(_xll.BDH($O$2,"PX LAST",EOMONTH($B17,-2),$B17,"dts=h","array=true")) -> 4172 | P18: =AVERAGE(_xll.BDH($P$2,"PX LAST",$B17,$B18,"dts=h","array=true")) -> 253.2222222 | Q18: =_xll.BDH($Q$2,"PX LAST",EOMONTH(B18,-MOD(MONTH(B18),3)),EOMONTH(B18,-MOD(MONTH(B18),3))) -> 655.9 | R18: =_xll.BDH($R$2,"PX LAST",EOMONTH(B18,-MOD(MONTH(B18),3)),EOMONTH(B18,-MOD(MONTH(B18),3))) -> 2690.6
A19: -30FQ | B19: 2007-03-31 | C19: =_xll.BDP(control!$B$1&" EQUITY",C$2, "EQY_FUND_RELATIVE_PERIOD", $A19, "EQY_FUND_CRNCY", control!$B$2, "EQY_CONSOLIDATED","Y", "FILL=0") -> 76890 | D19: =_xll.BDP(control!$B$1&" EQUITY",C$2, "EQY_FUND_RELATIVE_PERIOD", $A19, "EQY_FUND_CRNCY", control!$B$2, "EQY_CONSOLIDATED","Y", "FILL=0") -> 76890 | E19: =_xll.BDP(control!$B$1&" EQUITY",C$2, "EQY_FUND_RELATIVE_PERIOD", $A19, "EQY_FUND_CRNCY", control!$B$2, "EQY_CONSOLIDATED","Y", "FILL=0") -> 76890 | F19: =_xll.BDH(F$2,"PX LAST",EOMONTH(B19,-MOD(MONTH(B19),3)),EOMONTH(B19,-MOD(MONTH(B19),3))) -> 500.484 | G19: =SUM(_xll.BDH(G$2,"PX LAST",EOMONTH($B18,-2),$B18,"array=true","dts=H")) -> 134.618 | H19: =AVERAGE(_xll.BDH($H$2,"PX LAST",EOMONTH($B18,-2),$B18,"dts=h","array=true")) -> 202.3333333 | I19: =AVERAGE(_xll.BDH(I$2,"px last",$B18,$B19,"dts=H","array=TRUE")) -> 61.58377049 | J19: =AVERAGE(_xll.BDH(J$2,"px last",$B18,$B19,"dts=H","array=TRUE")) -> 649.5781538 | K19: =AVERAGE(_xll.BDH(K$2,"px last",$B18,$B19,"dts=H","array=TRUE")) -> 58.6221875 | L19: =AVERAGE(_xll.BDH(L$2,"px last",$B18,$B19,"dts=H","array=TRUE")) -> 401.0524194 | M19: =AVERAGE(_xll.BDH(M$2,"px last",$B18,$B19,"dts=H","array=TRUE")) -> 166.3436066 | N19: =AVERAGE(_xll.BDH($N$2,"PX LAST",$B18,$B19,"dts=h","array=true")) -> 13.28257846 | O19: =SUM(_xll.BDH($O$2,"PX LAST",EOMONTH($B18,-2),$B18,"dts=h","array=true")) -> 3751 | P19: =AVERAGE(_xll.BDH($P$2,"PX LAST",$B18,$B19,"dts=h","array=true")) -> 256.6774194 | Q19: =_xll.BDH($Q$2,"PX LAST",EOMONTH(B19,-MOD(MONTH(B19),3)),EOMONTH(B19,-MOD(MONTH(B19),3))) -> 654.5 | R19: =_xll.BDH($R$2,"PX LAST",EOMONTH(B19,-MOD(MONTH(B19),3)),EOMONTH(B19,-MOD(MONTH(B19),3))) -> 2735.6
A20: -29FQ | B20: 2007-06-30 | C20: =_xll.BDP(control!$B$1&" EQUITY",C$2, "EQY_FUND_RELATIVE_PERIOD", $A20, "EQY_FUND_CRNCY", control!$B$2, "EQY_CONSOLIDATED","Y", "FILL=0") -> 87249 | D20: =_xll.BDP(control!$B$1&" EQUITY",C$2, "EQY_FUND_RELATIVE_PERIOD", $A20, "EQY_FUND_CRNCY", control!$B$2, "EQY_CONSOLIDATED","Y", "FILL=0") -> 87249 | E20: =_xll.BDP(control!$B$1&" EQUITY",C$2, "EQY_FUND_RELATIVE_PERIOD", $A20, "EQY_FUND_CRNCY", control!$B$2, "EQY_CONSOLIDATED","Y", "FILL=0") -> 87249 | F20: =_xll.BDH(F$2,"PX LAST",EOMONTH(B20,-MOD(MONTH(B20),3)),EOMONTH(B20,-MOD(MONTH(B20),3))) -> 503.606 | G20: =SUM(_xll.BDH(G$2,"PX LAST",EOMONTH($B19,-2),$B19,"array=true","dts=H")) -> 136.42 | H20: =AVERAGE(_xll.BDH($H$2,"PX LAST",EOMONTH($B19,-2),$B19,"dts=h","array=true")) -> 204.317 | I20: =AVERAGE(_xll.BDH(I$2,"px last",$B19,$B20,"dts=H","array=TRUE")) -> 68.55492063 | J20: =AVERAGE(_xll.BDH(J$2,"px last",$B19,$B20,"dts=H","array=TRUE")) -> 667.5887692 | K20: =AVERAGE(_xll.BDH(K$2,"px last",$B19,$B20,"dts=H","array=TRUE")) -> 68.65734375 | L20: =AVERAGE(_xll.BDH(L$2,"px last",$B19,$B20,"dts=H","array=TRUE")) -> 371.0753968 | M20: =AVERAGE(_xll.BDH(M$2,"px last",$B19,$B20,"dts=H","array=TRUE")) -> 191.1222222 | N20: =AVERAGE(_xll.BDH($N$2,"PX LAST",$B19,$B20,"dts=h","array=true")) -> 13.33223538 | O20: =SUM(_xll.BDH($O$2,"PX LAST",EOMONTH($B19,-2),$B19,"dts=h","array=true")) -> 3521 | P20: =AVERAGE(_xll.BDH($P$2,"PX LAST",$B19,$B20,"dts=h","array=true")) -> 259.7825397 | Q20: =_xll.BDH($Q$2,"PX LAST",EOMONTH(B20,-MOD(MONTH(B20),3)),EOMONTH(B20,-MOD(MONTH(B20),3))) -> 672.6 | R20: =_xll.BDH($R$2,"PX LAST",EOMONTH(B20,-MOD(MONTH(B20),3)),EOMONTH(B20,-MOD(MONTH(B20),3))) -> 2782.5
A21: -28FQ | B21: 2007-09-30 | C21: =_xll.BDP(control!$B$1&" EQUITY",C$2, "EQY_FUND_RELATIVE_PERIOD", $A21, "EQY_FUND_CRNCY", control!$B$2, "EQY_CONSOLIDATED","Y", "FILL=0") -> 91160 | D21: =_xll.BDP(control!$B$1&" EQUITY",C$2, "EQY_FUND_RELATIVE_PERIOD", $A21, "EQY_FUND_CRNCY", control!$B$2, "EQY_CONSOLIDATED","Y", "FILL=0") -> 91160 | E21: =_xll.BDP(control!$B$1&" EQUITY",C$2, "EQY_FUND_RELATIVE_PERIOD", $A21, "EQY_FUND_CRNCY", control!$B$2, "EQY_CONSOLIDATED","Y", "FILL=0") -> 91160 | F21: =_xll.BDH(F$2,"PX LAST",EOMONTH(B21,-MOD(MONTH(B21),3)),EOMONTH(B21,-MOD(MONTH(B21),3))) -> 505.455 | G21: =SUM(_xll.BDH(G$2,"PX LAST",EOMONTH($B20,-2),$B20,"array=true","dts=H")) -> 139.683 | H21: =AVERAGE(_xll.BDH($H$2,"PX LAST",EOMONTH($B20,-2),$B20,"dts=h","array=true")) -> 206.631 | I21: =AVERAGE(_xll.BDH(I$2,"px last",$B20,$B21,"dts=H","array=TRUE")) -> 73.41095238 | J21: =AVERAGE(_xll.BDH(J$2,"px last",$B20,$B21,"dts=H","array=TRUE")) -> 680.47 | K21: =AVERAGE(_xll.BDH(K$2,"px last",$B20,$B21,"dts=H","array=TRUE")) -> 74.55153846 | L21: =AVERAGE(_xll.BDH(L$2,"px last",$B20,$B21,"dts=H","array=TRUE")) -> 335.3253968 | M21: =AVERAGE(_xll.BDH(M$2,"px last",$B20,$B21,"dts=H","array=TRUE")) -> 208.5371429 | N21: =AVERAGE(_xll.BDH($N$2,"PX LAST",$B20,$B21,"dts=h","array=true")) -> 12.69221385 | O21: =SUM(_xll.BDH($O$2,"PX LAST",EOMONTH($B20,-2),$B20,"dts=h","array=true")) -> 3458 | P21: =AVERAGE(_xll.BDH($P$2,"PX LAST",$B20,$B21,"dts=h","array=true")) -> 268.1206349 | Q21: =_xll.BDH($Q$2,"PX LAST",EOMONTH(B21,-MOD(MONTH(B21),3)),EOMONTH(B21,-MOD(MONTH(B21),3))) -> 690.7 | R21: =_xll.BDH($R$2,"PX LAST",EOMONTH(B21,-MOD(MONTH(B21),3)),EOMONTH(B21,-MOD(MONTH(B21),3))) -> 2824.3
A22: -27FQ | B22: 2007-12-31 | C22: =_xll.BDP(control!$B$1&" EQUITY",C$2, "EQY_FUND_RELATIVE_PERIOD", $A22, "EQY_FUND_CRNCY", control!$B$2, "EQY_CONSOLIDATED","Y", "FILL=0") -> 103301 | D22: =_xll.BDP(control!$B$1&" EQUITY",C$2, "EQY_FUND_RELATIVE_PERIOD", $A22, "EQY_FUND_CRNCY", control!$B$2, "EQY_CONSOLIDATED","Y", "FILL=0") -> 103301 | E22: =_xll.BDP(control!$B$1&" EQUITY",C$2, "EQY_FUND_RELATIVE_PERIOD", $A22, "EQY_FUND_CRNCY", control!$B$2, "EQY_CONSOLIDATED","Y", "FILL=0") -> 103301 | F22: =_xll.BDH(F$2,"PX LAST",EOMONTH(B22,-MOD(MONTH(B22),3)),EOMONTH(B22,-MOD(MONTH(B22),3))) -> 506.554 | G22: =SUM(_xll.BDH(G$2,"PX LAST",EOMONTH($B21,-2),$B21,"array=true","dts=H")) -> 141.77 | H22: =AVERAGE(_xll.BDH($H$2,"PX LAST",EOMONTH($B21,-2),$B21,"dts=h","array=true")) -> 207.939 | I22: =AVERAGE(_xll.BDH(I$2,"px last",$B21,$B22,"dts=H","array=TRUE")) -> 87.8084375 | J22: =AVERAGE(_xll.BDH(J$2,"px last",$B21,$B22,"dts=H","array=TRUE")) -> 789.3043939 | K22: =AVERAGE(_xll.BDH(K$2,"px last",$B21,$B22,"dts=H","array=TRUE")) -> 88.52738462 | L22: =AVERAGE(_xll.BDH(L$2,"px last",$B21,$B22,"dts=H","array=TRUE")) -> 386.234375 | M22: =AVERAGE(_xll.BDH(M$2,"px last",$B21,$B22,"dts=H","array=TRUE")) -> 248.5198438 | N22: =AVERAGE(_xll.BDH($N$2,"PX LAST",$B21,$B22,"dts=h","array=true")) -> 14.23598485 | O22: =SUM(_xll.BDH($O$2,"PX LAST",EOMONTH($B21,-2),$B21,"dts=h","array=true")) -> 2934 | P22: =AVERAGE(_xll.BDH($P$2,"PX LAST",$B21,$B22,"dts=h","array=true")) -> 240.1703125 | Q22: =_xll.BDH($Q$2,"PX LAST",EOMONTH(B22,-MOD(MONTH(B22),3)),EOMONTH(B22,-MOD(MONTH(B22),3))) -> 697.1 | R22: =_xll.BDH($R$2,"PX LAST",EOMONTH(B22,-MOD(MONTH(B22),3)),EOMONTH(B22,-MOD(MONTH(B22),3))) -> 2865.3
A23: -26FQ | B23: 2008-03-31 | C23: =_xll.BDP(control!$B$1&" EQUITY",C$2, "EQY_FUND_RELATIVE_PERIOD", $A23, "EQY_FUND_CRNCY", control!$B$2, "EQY_CONSOLIDATED","Y", "FILL=0") -> 104791 | D23: =_xll.BDP(control!$B$1&" EQUITY",C$2, "EQY_FUND_RELATIVE_PERIOD", $A23, "EQY_FUND_CRNCY", control!$B$2, "EQY_CONSOLIDATED","Y", "FILL=0") -> 104791 | E23: =_xll.BDP(control!$B$1&" EQUITY",C$2, "EQY_FUND_RELATIVE_PERIOD", $A23, "EQY_FUND_CRNCY", control!$B$2, "EQY_CONSOLIDATED","Y", "FILL=0") -> 104791 | F23: =_xll.BDH(F$2,"PX LAST",EOMONTH(B23,-MOD(MONTH(B23),3)),EOMONTH(B23,-MOD(MONTH(B23),3))) -> 509.054 | G23: =SUM(_xll.BDH(G$2,"PX LAST",EOMONTH($B22,-2),$B22,"array=true","dts=H")) -> 141.209 | H23: =AVERAGE(_xll.BDH($H$2,"PX LAST",EOMONTH($B22,-2),$B22,"dts=h","array=true")) -> 210.4896667 | I23: =AVERAGE(_xll.BDH(I$2,"px last",$B22,$B23,"dts=H","array=TRUE")) -> 95.91290323 | J23: =AVERAGE(_xll.BDH(J$2,"px last",$B22,$B23,"dts=H","array=TRUE")) -> 922.434697 | K23: =AVERAGE(_xll.BDH(K$2,"px last",$B22,$B23,"dts=H","array=TRUE")) -> 96.2696875 | L23: =AVERAGE(_xll.BDH(L$2,"px last",$B22,$B23,"dts=H","array=TRUE")) -> 515.9798387 | M23: =AVERAGE(_xll.BDH(M$2,"px last",$B22,$B23,"dts=H","array=TRUE")) -> 273.6070968 | N23: =AVERAGE(_xll.BDH($N$2,"PX LAST",$B22,$B23,"dts=h","array=true")) -> 17.48666667 | O23: =SUM(_xll.BDH($O$2,"PX LAST",EOMONTH($B22,-2),$B22,"dts=h","array=true")) -> 2516 | P23: =AVERAGE(_xll.BDH($P$2,"PX LAST",$B22,$B23,"dts=h","array=true")) -> 217.7612903 | Q23: =_xll.BDH($Q$2,"PX LAST",EOMONTH(B23,-MOD(MONTH(B23),3)),EOMONTH(B23,-MOD(MONTH(B23),3))) -> 719.7 | R23: =_xll.BDH($R$2,"PX LAST",EOMONTH(B23,-MOD(MONTH(B23),3)),EOMONTH(B23,-MOD(MONTH(B23),3))) -> 2923.8
A24: -25FQ | B24: 2008-06-30 | C24: =_xll.BDP(control!$B$1&" EQUITY",C$2, "EQY_FUND_RELATIVE_PERIOD", $A24, "EQY_FUND_CRNCY", control!$B$2, "EQY_CONSOLIDATED","Y", "FILL=0") -> 124238 | D24: =_xll.BDP(control!$B$1&" EQUITY",C$2, "EQY_FUND_RELATIVE_PERIOD", $A24, "EQY_FUND_CRNCY", control!$B$2, "EQY_CONSOLIDATED","Y", "FILL=0") -> 124238 | E24: =_xll.BDP(control!$B$1&" EQUITY",C$2, "EQY_FUND_RELATIVE_PERIOD", $A24, "EQY_FUND_CRNCY", control!$B$2, "EQY_CONSOLIDATED","Y", "FILL=0") -> 124238 | F24: =_xll.BDH(F$2,"PX LAST",EOMONTH(B24,-MOD(MONTH(B24),3)),EOMONTH(B24,-MOD(MONTH(B24),3))) -> 506.501 | G24: =SUM(_xll.BDH(G$2,"PX LAST",EOMONTH($B23,-2),$B23,"array=true","dts=H")) -> 143.655 | H24: =AVERAGE(_xll.BDH($H$2,"PX LAST",EOMONTH($B23,-2),$B23,"dts=h","array=true")) -> 212.7696667 | I24: =AVERAGE(_xll.BDH(I$2,"px last",$B23,$B24,"dts=H","array=TRUE")) -> 122.5424615 | J24: =AVERAGE(_xll.BDH(J$2,"px last",$B23,$B24,"dts=H","array=TRUE")) -> 897.6315152 | K24: =AVERAGE(_xll.BDH(K$2,"px last",$B23,$B24,"dts=H","array=TRUE")) -> 122.4448485 | L24: =AVERAGE(_xll.BDH(L$2,"px last",$B23,$B24,"dts=H","array=TRUE")) -> 628.5076923 | M24: =AVERAGE(_xll.BDH(M$2,"px last",$B23,$B24,"dts=H","array=TRUE")) -> 352.5626154 | N24: =AVERAGE(_xll.BDH($N$2,"PX LAST",$B23,$B24,"dts=h","array=true")) -> 17.21087121 | O24: =SUM(_xll.BDH($O$2,"PX LAST",EOMONTH($B23,-2),$B23,"dts=h","array=true")) -> 2225 | P24: =AVERAGE(_xll.BDH($P$2,"PX LAST",$B23,$B24,"dts=h","array=true")) -> 233.5769231 | Q24: =_xll.BDH($Q$2,"PX LAST",EOMONTH(B24,-MOD(MONTH(B24),3)),EOMONTH(B24,-MOD(MONTH(B24),3))) -> 741.2 | R24: =_xll.BDH($R$2,"PX LAST",EOMONTH(B24,-MOD(MONTH(B24),3)),EOMONTH(B24,-MOD(MONTH(B24),3))) -> 2983.4
A25: -24FQ | B25: 2008-09-30 | C25: =_xll.BDP(control!$B$1&" EQUITY",C$2, "EQY_FUND_RELATIVE_PERIOD", $A25, "EQY_FUND_CRNCY", control!$B$2, "EQY_CONSOLIDATED","Y", "FILL=0") -> 122758 | D25: =_xll.BDP(control!$B$1&" EQUITY",C$2, "EQY_FUND_RELATIVE_PERIOD", $A25, "EQY_FUND_CRNCY", control!$B$2, "EQY_CONSOLIDATED","Y", "FILL=0") -> 122758 | E25: =_xll.BDP(control!$B$1&" EQUITY",C$2, "EQY_FUND_RELATIVE_PERIOD", $A25, "EQY_FUND_CRNCY", control!$B$2, "EQY_CONSOLIDATED","Y", "FILL=0") -> 122758 | F25: =_xll.BDH(F$2,"PX LAST",EOMONTH(B25,-MOD(MONTH(B25),3)),EOMONTH(B25,-MOD(MONTH(B25),3))) -> 505.257 | G25: =SUM(_xll.BDH(G$2,"PX LAST",EOMONTH($B24,-2),$B24,"array=true","dts=H")) -> 142.125 | H25: =AVERAGE(_xll.BDH($H$2,"PX LAST",EOMONTH($B24,-2),$B24,"dts=h","array=true")) -> 215.5376667 | I25: =AVERAGE(_xll.BDH(I$2,"px last",$B24,$B25,"dts=H","array=TRUE")) -> 119.5444615 | J25: =AVERAGE(_xll.BDH(J$2,"px last",$B24,$B25,"dts=H","array=TRUE")) -> 870.9423881 | K25: =AVERAGE(_xll.BDH(K$2,"px last",$B24,$B25,"dts=H","array=TRUE")) -> 117.4932836 | L25: =AVERAGE(_xll.BDH(L$2,"px last",$B24,$B25,"dts=H","array=TRUE")) -> 580.1923077 | M25: =AVERAGE(_xll.BDH(M$2,"px last",$B24,$B25,"dts=H","array=TRUE")) -> 331.8043077 | N25: =AVERAGE(_xll.BDH($N$2,"PX LAST",$B24,$B25,"dts=h","array=true")) -> 15.03800299 | O25: =SUM(_xll.BDH($O$2,"PX LAST",EOMONTH($B24,-2),$B24,"dts=h","array=true")) -> 2008 | P25: =AVERAGE(_xll.BDH($P$2,"PX LAST",$B24,$B25,"dts=h","array=true")) -> 246.1030769 | Q25: =_xll.BDH($Q$2,"PX LAST",EOMONTH(B25,-MOD(MONTH(B25),3)),EOMONTH(B25,-MOD(MONTH(B25),3))) -> 776.6 | R25: =_xll.BDH($R$2,"PX LAST",EOMONTH(B25,-MOD(MONTH(B25),3)),EOMONTH(B25,-MOD(MONTH(B25),3))) -> 3055.9
A26: -23FQ | B26: 2008-12-31 | C26: =_xll.BDP(control!$B$1&" EQUITY",C$2, "EQY_FUND_RELATIVE_PERIOD", $A26, "EQY_FUND_CRNCY", control!$B$2, "EQY_CONSOLIDATED","Y", "FILL=0") -> 73284 | D26: =_xll.BDP(control!$B$1&" EQUITY",C$2, "EQY_FUND_RELATIVE_PERIOD", $A26, "EQY_FUND_CRNCY", control!$B$2, "EQY_CONSOLIDATED","Y", "FILL=0") -> 73284 | E26: =_xll.BDP(control!$B$1&" EQUITY",C$2, "EQY_FUND_RELATIVE_PERIOD", $A26, "EQY_FUND_CRNCY", control!$B$2, "EQY_CONSOLIDATED","Y", "FILL=0") -> 73284 | F26: =_xll.BDH(F$2,"PX LAST",EOMONTH(B26,-MOD(MONTH(B26),3)),EOMONTH(B26,-MOD(MONTH(B26),3))) -> 497.124 | G26: =SUM(_xll.BDH(G$2,"PX LAST",EOMONTH($B25,-2),$B25,"array=true","dts=H")) -> 141.789 | H26: =AVERAGE(_xll.BDH($H$2,"PX LAST",EOMONTH($B25,-2),$B25,"dts=h","array=true")) -> 218.861 | I26: =AVERAGE(_xll.BDH(I$2,"px last",$B25,$B26,"dts=H","array=TRUE")) -> 63.92707692 | J26: =AVERAGE(_xll.BDH(J$2,"px last",$B25,$B26,"dts=H","array=TRUE")) -> 799.8876119 | K26: =AVERAGE(_xll.BDH(K$2,"px last",$B25,$B26,"dts=H","array=TRUE")) -> 58.10575758 | L26: =AVERAGE(_xll.BDH(L$2,"px last",$B25,$B26,"dts=H","array=TRUE")) -> 385.4269231 | M26: =AVERAGE(_xll.BDH(M$2,"px last",$B25,$B26,"dts=H","array=TRUE")) -> 185.9301538 | N26: =AVERAGE(_xll.BDH($N$2,"PX LAST",$B25,$B26,"dts=h","array=true")) -> 10.25397612 | O26: =SUM(_xll.BDH($O$2,"PX LAST",EOMONTH($B25,-2),$B25,"dts=h","array=true")) -> 1759 | P26: =AVERAGE(_xll.BDH($P$2,"PX LAST",$B25,$B26,"dts=h","array=true")) -> 186.2907692 | Q26: =_xll.BDH($Q$2,"PX LAST",EOMONTH(B26,-MOD(MONTH(B26),3)),EOMONTH(B26,-MOD(MONTH(B26),3))) -> 778.9 | R26: =_xll.BDH($R$2,"PX LAST",EOMONTH(B26,-MOD(MONTH(B26),3)),EOMONTH(B26,-MOD(MONTH(B26),3))) -> 3049.7
A27: -22FQ | B27: 2009-03-31 | C27: =_xll.BDP(control!$B$1&" EQUITY",C$2, "EQY_FUND_RELATIVE_PERIOD", $A27, "EQY_FUND_CRNCY", control!$B$2, "EQY_CONSOLIDATED","Y", "FILL=0") -> 56222 | D27: =_xll.BDP(control!$B$1&" EQUITY",C$2, "EQY_FUND_RELATIVE_PERIOD", $A27, "EQY_FUND_CRNCY", control!$B$2, "EQY_CONSOLIDATED","Y", "FILL=0") -> 56222 | E27: =_xll.BDP(control!$B$1&" EQUITY",C$2, "EQY_FUND_RELATIVE_PERIOD", $A27, "EQY_FUND_CRNCY", control!$B$2, "EQY_CONSOLIDATED","Y", "FILL=0") -> 56222 | F27: =_xll.BDH(F$2,"PX LAST",EOMONTH(B27,-MOD(MONTH(B27),3)),EOMONTH(B27,-MOD(MONTH(B27),3))) -> 489.096 | G27: =SUM(_xll.BDH(G$2,"PX LAST",EOMONTH($B26,-2),$B26,"array=true","dts=H")) -> 137.312 | H27: =AVERAGE(_xll.BDH($H$2,"PX LAST",EOMONTH($B26,-2),$B26,"dts=h","array=true")) -> 213.8486667 | I27: =AVERAGE(_xll.BDH(I$2,"px last",$B26,$B27,"dts=H","array=TRUE")) -> 51.15016129 | J27: =AVERAGE(_xll.BDH(J$2,"px last",$B26,$B27,"dts=H","array=TRUE")) -> 909.0850769 | K27: =AVERAGE(_xll.BDH(K$2,"px last",$B26,$B27,"dts=H","array=TRUE")) -> 45.7203125 | L27: =AVERAGE(_xll.BDH(L$2,"px last",$B26,$B27,"dts=H","array=TRUE")) -> 377.1774194 | M27: =AVERAGE(_xll.BDH(M$2,"px last",$B26,$B27,"dts=H","array=TRUE")) -> 134.4787097 | N27: =AVERAGE(_xll.BDH($N$2,"PX LAST",$B26,$B27,"dts=h","array=true")) -> 12.63200308 | O27: =SUM(_xll.BDH($O$2,"PX LAST",EOMONTH($B26,-2),$B26,"dts=h","array=true")) -> 1404 | P27: =AVERAGE(_xll.BDH($P$2,"PX LAST",$B26,$B27,"dts=h","array=true")) -> 156.7129032 | Q27: =_xll.BDH($Q$2,"PX LAST",EOMONTH(B27,-MOD(MONTH(B27),3)),EOMONTH(B27,-MOD(MONTH(B27),3))) -> 760.2 | R27: =_xll.BDH($R$2,"PX LAST",EOMONTH(B27,-MOD(MONTH(B27),3)),EOMONTH(B27,-MOD(MONTH(B27),3))) -> 3035.4
A28: -21FQ | B28: 2009-06-30 | C28: =_xll.BDP(control!$B$1&" EQUITY",C$2, "EQY_FUND_RELATIVE_PERIOD", $A28, "EQY_FUND_CRNCY", control!$B$2, "EQY_CONSOLIDATED","Y", "FILL=0") -> 65951 | D28: =_xll.BDP(control!$B$1&" EQUITY",C$2, "EQY_FUND_RELATIVE_PERIOD", $A28, "EQY_FUND_CRNCY", control!$B$2, "EQY_CONSOLIDATED","Y", "FILL=0") -> 65951 | E28: =_xll.BDP(control!$B$1&" EQUITY",C$2, "EQY_FUND_RELATIVE_PERIOD", $A28, "EQY_FUND_CRNCY", control!$B$2, "EQY_CONSOLIDATED","Y", "FILL=0") -> 65951 | F28: =_xll.BDH(F$2,"PX LAST",EOMONTH(B28,-MOD(MONTH(B28),3)),EOMONTH(B28,-MOD(MONTH(B28),3))) -> 488.786 | G28: =SUM(_xll.BDH(G$2,"PX LAST",EOMONTH($B27,-2),$B27,"array=true","dts=H")) -> 129.4 | H28: =AVERAGE(_xll.BDH($H$2,"PX LAST",EOMONTH($B27,-2),$B27,"dts=h","array=true")) -> 212.3776667 | I28: =AVERAGE(_xll.BDH(I$2,"px last",$B27,$B28,"dts=H","array=TRUE")) -> 63.8003125 | J28: =AVERAGE(_xll.BDH(J$2,"px last",$B27,$B28,"dts=H","array=TRUE")) -> 922.0883333 | K28: =AVERAGE(_xll.BDH(K$2,"px last",$B27,$B28,"dts=H","array=TRUE")) -> 59.734 | L28: =AVERAGE(_xll.BDH(L$2,"px last",$B27,$B28,"dts=H","array=TRUE")) -> 405.78125 | M28: =AVERAGE(_xll.BDH(M$2,"px last",$B27,$B28,"dts=H","array=TRUE")) -> 155.66875 | N28: =AVERAGE(_xll.BDH($N$2,"PX LAST",$B27,$B28,"dts=h","array=true")) -> 13.74863788 | O28: =SUM(_xll.BDH($O$2,"PX LAST",EOMONTH($B27,-2),$B27,"dts=h","array=true")) -> 1069 | P28: =AVERAGE(_xll.BDH($P$2,"PX LAST",$B27,$B28,"dts=h","array=true")) -> 182.91875 | Q28: =_xll.BDH($Q$2,"PX LAST",EOMONTH(B28,-MOD(MONTH(B28),3)),EOMONTH(B28,-MOD(MONTH(B28),3))) -> 785.4 | R28: =_xll.BDH($R$2,"PX LAST",EOMONTH(B28,-MOD(MONTH(B28),3)),EOMONTH(B28,-MOD(MONTH(B28),3))) -> 3086.5
A29: -20FQ | B29: 2009-09-30 | C29: =_xll.BDP(control!$B$1&" EQUITY",C$2, "EQY_FUND_RELATIVE_PERIOD", $A29, "EQY_FUND_CRNCY", control!$B$2, "EQY_CONSOLIDATED","Y", "FILL=0") -> 73285 | D29: =_xll.BDP(control!$B$1&" EQUITY",C$2, "EQY_FUND_RELATIVE_PERIOD", $A29, "EQY_FUND_CRNCY", control!$B$2, "EQY_CONSOLIDATED","Y", "FILL=0") -> 73285 | E29: =_xll.BDP(control!$B$1&" EQUITY",C$2, "EQY_FUND_RELATIVE_PERIOD", $A29, "EQY_FUND_CRNCY", control!$B$2, "EQY_CONSOLIDATED","Y", "FILL=0") -> 73285 | F29: =_xll.BDH(F$2,"PX LAST",EOMONTH(B29,-MOD(MONTH(B29),3)),EOMONTH(B29,-MOD(MONTH(B29),3))) -> 489.446 | G29: =SUM(_xll.BDH(G$2,"PX LAST",EOMONTH($B28,-2),$B28,"array=true","dts=H")) -> 125.903 | H29: =AVERAGE(_xll.BDH($H$2,"PX LAST",EOMONTH($B28,-2),$B28,"dts=h","array=true")) -> 213.507 | I29: =AVERAGE(_xll.BDH(I$2,"px last",$B28,$B29,"dts=H","array=TRUE")) -> 71.74061538 | J29: =AVERAGE(_xll.BDH(J$2,"px last",$B28,$B29,"dts=H","array=TRUE")) -> 960.1765672 | K29: =AVERAGE(_xll.BDH(K$2,"px last",$B28,$B29,"dts=H","array=TRUE")) -> 68.88059701 | L29: =AVERAGE(_xll.BDH(L$2,"px last",$B28,$B29,"dts=H","array=TRUE")) -> 327.5576923 | M29: =AVERAGE(_xll.BDH(M$2,"px last",$B28,$B29,"dts=H","array=TRUE")) -> 176.6578462 | N29: =AVERAGE(_xll.BDH($N$2,"PX LAST",$B28,$B29,"dts=h","array=true")) -> 14.73244328 | O29: =SUM(_xll.BDH($O$2,"PX LAST",EOMONTH($B28,-2),$B28,"dts=h","array=true")) -> 1277 | P29: =AVERAGE(_xll.BDH($P$2,"PX LAST",$B28,$B29,"dts=h","array=true")) -> 182.8523077 | Q29: =_xll.BDH($Q$2,"PX LAST",EOMONTH(B29,-MOD(MONTH(B29),3)),EOMONTH(B29,-MOD(MONTH(B29),3))) -> 802.8 | R29: =_xll.BDH($R$2,"PX LAST",EOMONTH(B29,-MOD(MONTH(B29),3)),EOMONTH(B29,-MOD(MONTH(B29),3))) -> 3112.5
A30: -19FQ | B30: 2009-12-31 | C30: =_xll.BDP(control!$B$1&" EQUITY",C$2, "EQY_FUND_RELATIVE_PERIOD", $A30, "EQY_FUND_CRNCY", control!$B$2, "EQY_CONSOLIDATED","Y", "FILL=0") -> 80106 | D30: =_xll.BDP(control!$B$1&" EQUITY",C$2, "EQY_FUND_RELATIVE_PERIOD", $A30, "EQY_FUND_CRNCY", control!$B$2, "EQY_CONSOLIDATED","Y", "FILL=0") -> 80106 | E30: =_xll.BDP(control!$B$1&" EQUITY",C$2, "EQY_FUND_RELATIVE_PERIOD", $A30, "EQY_FUND_CRNCY", control!$B$2, "EQY_CONSOLIDATED","Y", "FILL=0") -> 80106 | F30: =_xll.BDH(F$2,"PX LAST",EOMONTH(B30,-MOD(MONTH(B30),3)),EOMONTH(B30,-MOD(MONTH(B30),3))) -> 492.765 | G30: =SUM(_xll.BDH(G$2,"PX LAST",EOMONTH($B29,-2),$B29,"array=true","dts=H")) -> 125.941 | H30: =AVERAGE(_xll.BDH($H$2,"PX LAST",EOMONTH($B29,-2),$B29,"dts=h","array=true")) -> 215.344 | I30: =AVERAGE(_xll.BDH(I$2,"px last",$B29,$B30,"dts=H","array=TRUE")) -> 78.99676923 | J30: =AVERAGE(_xll.BDH(J$2,"px last",$B29,$B30,"dts=H","array=TRUE")) -> 1099.726269 | K30: =AVERAGE(_xll.BDH(K$2,"px last",$B29,$B30,"dts=H","array=TRUE")) -> 75.44621212 | L30: =AVERAGE(_xll.BDH(L$2,"px last",$B29,$B30,"dts=H","array=TRUE")) -> 385.0461538 | M30: =AVERAGE(_xll.BDH(M$2,"px last",$B29,$B30,"dts=H","array=TRUE")) -> 198.7223077 | N30: =AVERAGE(_xll.BDH($N$2,"PX LAST",$B29,$B30,"dts=h","array=true")) -> 17.57503582 | O30: =SUM(_xll.BDH($O$2,"PX LAST",EOMONTH($B29,-2),$B29,"dts=h","array=true")) -> 1506 | P30: =AVERAGE(_xll.BDH($P$2,"PX LAST",$B29,$B30,"dts=h","array=true")) -> 199.3138462 | Q30: =_xll.BDH($Q$2,"PX LAST",EOMONTH(B30,-MOD(MONTH(B30),3)),EOMONTH(B30,-MOD(MONTH(B30),3))) -> 804.6 | R30: =_xll.BDH($R$2,"PX LAST",EOMONTH(B30,-MOD(MONTH(B30),3)),EOMONTH(B30,-MOD(MONTH(B30),3))) -> 3122
A31: -18FQ | B31: 2010-03-31 | C31: =_xll.BDP(control!$B$1&" EQUITY",C$2, "EQY_FUND_RELATIVE_PERIOD", $A31, "EQY_FUND_CRNCY", control!$B$2, "EQY_CONSOLIDATED","Y", "FILL=0") -> 80222 | D31: =_xll.BDP(control!$B$1&" EQUITY",C$2, "EQY_FUND_RELATIVE_PERIOD", $A31, "EQY_FUND_CRNCY", control!$B$2, "EQY_CONSOLIDATED","Y", "FILL=0") -> 80222 | E31: =_xll.BDP(control!$B$1&" EQUITY",C$2, "EQY_FUND_RELATIVE_PERIOD", $A31, "EQY_FUND_CRNCY", control!$B$2, "EQY_CONSOLIDATED","Y", "FILL=0") -> 80222 | F31: =_xll.BDH(F$2,"PX LAST",EOMONTH(B31,-MOD(MONTH(B31),3)),EOMONTH(B31,-MOD(MONTH(B31),3))) -> 494.682 | G31: =SUM(_xll.BDH(G$2,"PX LAST",EOMONTH($B30,-2),$B30,"array=true","dts=H")) -> 131.401 | H31: =AVERAGE(_xll.BDH($H$2,"PX LAST",EOMONTH($B30,-2),$B30,"dts=h","array=true")) -> 217.03 | I31: =AVERAGE(_xll.BDH(I$2,"px last",$B30,$B31,"dts=H","array=TRUE")) -> 80.67645161 | J31: =AVERAGE(_xll.BDH(J$2,"px last",$B30,$B31,"dts=H","array=TRUE")) -> 1110.033692 | K31: =AVERAGE(_xll.BDH(K$2,"px last",$B30,$B31,"dts=H","array=TRUE")) -> 77.38140625 | L31: =AVERAGE(_xll.BDH(L$2,"px last",$B30,$B31,"dts=H","array=TRUE")) -> 370.9919355 | M31: =AVERAGE(_xll.BDH(M$2,"px last",$B30,$B31,"dts=H","array=TRUE")) -> 205.1641935 | N31: =AVERAGE(_xll.BDH($N$2,"PX LAST",$B30,$B31,"dts=h","array=true")) -> 16.92446154 | O31: =SUM(_xll.BDH($O$2,"PX LAST",EOMONTH($B30,-2),$B30,"dts=h","array=true")) -> 1457 | P31: =AVERAGE(_xll.BDH($P$2,"PX LAST",$B30,$B31,"dts=h","array=true")) -> 255.8 | Q31: =_xll.BDH($Q$2,"PX LAST",EOMONTH(B31,-MOD(MONTH(B31),3)),EOMONTH(B31,-MOD(MONTH(B31),3))) -> 811.9 | R31: =_xll.BDH($R$2,"PX LAST",EOMONTH(B31,-MOD(MONTH(B31),3)),EOMONTH(B31,-MOD(MONTH(B31),3))) -> 3135.7
A32: -17FQ | B32: 2010-06-30 | C32: =_xll.BDP(control!$B$1&" EQUITY",C$2, "EQY_FUND_RELATIVE_PERIOD", $A32, "EQY_FUND_CRNCY", control!$B$2, "EQY_CONSOLIDATED","Y", "FILL=0") -> 82747 | D32: =_xll.BDP(control!$B$1&" EQUITY",C$2, "EQY_FUND_RELATIVE_PERIOD", $A32, "EQY_FUND_CRNCY", control!$B$2, "EQY_CONSOLIDATED","Y", "FILL=0") -> 82747 | E32: =_xll.BDP(control!$B$1&" EQUITY",C$2, "EQY_FUND_RELATIVE_PERIOD", $A32, "EQY_FUND_CRNCY", control!$B$2, "EQY_CONSOLIDATED","Y", "FILL=0") -> 82747 | F32: =_xll.BDH(F$2,"PX LAST",EOMONTH(B32,-MOD(MONTH(B32),3)),EOMONTH(B32,-MOD(MONTH(B32),3))) -> 497.971 | G32: =SUM(_xll.BDH(G$2,"PX LAST",EOMONTH($B31,-2),$B31,"array=true","dts=H")) -> 132.918 | H32: =AVERAGE(_xll.BDH($H$2,"PX LAST",EOMONTH($B31,-2),$B31,"dts=h","array=true")) -> 217.3406667 | I32: =AVERAGE(_xll.BDH(I$2,"px last",$B31,$B32,"dts=H","array=TRUE")) -> 82.35390625 | J32: =AVERAGE(_xll.BDH(J$2,"px last",$B31,$B32,"dts=H","array=TRUE")) -> 1195.339091 | K32: =AVERAGE(_xll.BDH(K$2,"px last",$B31,$B32,"dts=H","array=TRUE")) -> 79.46107692 | L32: =AVERAGE(_xll.BDH(L$2,"px last",$B31,$B32,"dts=H","array=TRUE")) -> 354.6523438 | M32: =AVERAGE(_xll.BDH(M$2,"px last",$B31,$B32,"dts=H","array=TRUE")) -> 210.9189063 | N32: =AVERAGE(_xll.BDH($N$2,"PX LAST",$B31,$B32,"dts=h","array=true")) -> 18.33587121 | O32: =SUM(_xll.BDH($O$2,"PX LAST",EOMONTH($B31,-2),$B31,"dts=h","array=true")) -> 1578 | P32: =AVERAGE(_xll.BDH($P$2,"PX LAST",$B31,$B32,"dts=h","array=true")) -> 253.68125 | Q32: =_xll.BDH($Q$2,"PX LAST",EOMONTH(B32,-MOD(MONTH(B32),3)),EOMONTH(B32,-MOD(MONTH(B32),3))) -> 829.3 | R32: =_xll.BDH($R$2,"PX LAST",EOMONTH(B32,-MOD(MONTH(B32),3)),EOMONTH(B32,-MOD(MONTH(B32),3))) -> 3181.5
A33: -16FQ | B33: 2010-09-30 | C33: =_xll.BDP(control!$B$1&" EQUITY",C$2, "EQY_FUND_RELATIVE_PERIOD", $A33, "EQY_FUND_CRNCY", control!$B$2, "EQY_CONSOLIDATED","Y", "FILL=0") -> 85181 | D33: =_xll.BDP(control!$B$1&" EQUITY",C$2, "EQY_FUND_RELATIVE_PERIOD", $A33, "EQY_FUND_CRNCY", control!$B$2, "EQY_CONSOLIDATED","Y", "FILL=0") -> 85181 | E33: =_xll.BDP(control!$B$1&" EQUITY",C$2, "EQY_FUND_RELATIVE_PERIOD", $A33, "EQY_FUND_CRNCY", control!$B$2, "EQY_CONSOLIDATED","Y", "FILL=0") -> 85181 | F33: =_xll.BDH(F$2,"PX LAST",EOMONTH(B33,-MOD(MONTH(B33),3)),EOMONTH(B33,-MOD(MONTH(B33),3))) -> 500.806 | G33: =SUM(_xll.BDH(G$2,"PX LAST",EOMONTH($B32,-2),$B32,"array=true","dts=H")) -> 138 | H33: =AVERAGE(_xll.BDH($H$2,"PX LAST",EOMONTH($B32,-2),$B32,"dts=h","array=true")) -> 217.32 | I33: =AVERAGE(_xll.BDH(I$2,"px last",$B32,$B33,"dts=H","array=TRUE")) -> 79.14276923 | J33: =AVERAGE(_xll.BDH(J$2,"px last",$B32,$B33,"dts=H","array=TRUE")) -> 1227.941493 | K33: =AVERAGE(_xll.BDH(K$2,"px last",$B32,$B33,"dts=H","array=TRUE")) -> 76.93373134 | L33: =AVERAGE(_xll.BDH(L$2,"px last",$B32,$B33,"dts=H","array=TRUE")) -> 420.8346154 | M33: =AVERAGE(_xll.BDH(M$2,"px last",$B32,$B33,"dts=H","array=TRUE")) -> 205.6641538 | N33: =AVERAGE(_xll.BDH($N$2,"PX LAST",$B32,$B33,"dts=h","array=true")) -> 18.98298209 | O33: =SUM(_xll.BDH($O$2,"PX LAST",EOMONTH($B32,-2),$B32,"dts=h","array=true")) -> 1468 | P33: =AVERAGE(_xll.BDH($P$2,"PX LAST",$B32,$B33,"dts=h","array=true")) -> 210.7123077 | Q33: =_xll.BDH($Q$2,"PX LAST",EOMONTH(B33,-MOD(MONTH(B33),3)),EOMONTH(B33,-MOD(MONTH(B33),3))) -> 846.3 | R33: =_xll.BDH($R$2,"PX LAST",EOMONTH(B33,-MOD(MONTH(B33),3)),EOMONTH(B33,-MOD(MONTH(B33),3))) -> 3194.7
A34: -15FQ | B34: 2010-12-31 | C34: =_xll.BDP(control!$B$1&" EQUITY",C$2, "EQY_FUND_RELATIVE_PERIOD", $A34, "EQY_FUND_CRNCY", control!$B$2, "EQY_CONSOLIDATED","Y", "FILL=0") -> 93428 | D34: =_xll.BDP(control!$B$1&" EQUITY",C$2, "EQY_FUND_RELATIVE_PERIOD", $A34, "EQY_FUND_CRNCY", control!$B$2, "EQY_CONSOLIDATED","Y", "FILL=0") -> 93428 | E34: =_xll.BDP(control!$B$1&" EQUITY",C$2, "EQY_FUND_RELATIVE_PERIOD", $A34, "EQY_FUND_CRNCY", control!$B$2, "EQY_CONSOLIDATED","Y", "FILL=0") -> 93428 | F34: =_xll.BDH(F$2,"PX LAST",EOMONTH(B34,-MOD(MONTH(B34),3)),EOMONTH(B34,-MOD(MONTH(B34),3))) -> 503.63 | G34: =SUM(_xll.BDH(G$2,"PX LAST",EOMONTH($B33,-2),$B33,"array=true","dts=H")) -> 142.02 | H34: =AVERAGE(_xll.BDH($H$2,"PX LAST",EOMONTH($B33,-2),$B33,"dts=h","array=true")) -> 217.99 | I34: =AVERAGE(_xll.BDH(I$2,"px last",$B33,$B34,"dts=H","array=TRUE")) -> 87.24292308 | J34: =AVERAGE(_xll.BDH(J$2,"px last",$B33,$B34,"dts=H","array=TRUE")) -> 1369.62 | K34: =AVERAGE(_xll.BDH(K$2,"px last",$B33,$B34,"dts=H","array=TRUE")) -> 87.37223881 | L34: =AVERAGE(_xll.BDH(L$2,"px last",$B33,$B34,"dts=H","array=TRUE")) -> 560.4961538 | M34: =AVERAGE(_xll.BDH(M$2,"px last",$B33,$B34,"dts=H","array=TRUE")) -> 236.0890769 | N34: =AVERAGE(_xll.BDH($N$2,"PX LAST",$B33,$B34,"dts=h","array=true")) -> 26.51427463 | O34: =SUM(_xll.BDH($O$2,"PX LAST",EOMONTH($B33,-2),$B33,"dts=h","array=true")) -> 1292 | P34: =AVERAGE(_xll.BDH($P$2,"PX LAST",$B33,$B34,"dts=h","array=true")) -> 259.9861538 | Q34: =_xll.BDH($Q$2,"PX LAST",EOMONTH(B34,-MOD(MONTH(B34),3)),EOMONTH(B34,-MOD(MONTH(B34),3))) -> 843.5 | R34: =_xll.BDH($R$2,"PX LAST",EOMONTH(B34,-MOD(MONTH(B34),3)),EOMONTH(B34,-MOD(MONTH(B34),3))) -> 3184.2
A35: -14FQ | B35: 2011-03-31 | C35: =_xll.BDP(control!$B$1&" EQUITY",C$2, "EQY_FUND_RELATIVE_PERIOD", $A35, "EQY_FUND_CRNCY", control!$B$2, "EQY_CONSOLIDATED","Y", "FILL=0") -> 101335 | D35: =_xll.BDP(control!$B$1&" EQUITY",C$2, "EQY_FUND_RELATIVE_PERIOD", $A35, "EQY_FUND_CRNCY", control!$B$2, "EQY_CONSOLIDATED","Y", "FILL=0") -> 101335 | E35: =_xll.BDP(control!$B$1&" EQUITY",C$2, "EQY_FUND_RELATIVE_PERIOD", $A35, "EQY_FUND_CRNCY", control!$B$2, "EQY_CONSOLIDATED","Y", "FILL=0") -> 101335 | F35: =_xll.BDH(F$2,"PX LAST",EOMONTH(B35,-MOD(MONTH(B35),3)),EOMONTH(B35,-MOD(MONTH(B35),3))) -> 509.091 | G35: =SUM(_xll.BDH(G$2,"PX LAST",EOMONTH($B34,-2),$B34,"array=true","dts=H")) -> 143.389 | H35: =AVERAGE(_xll.BDH($H$2,"PX LAST",EOMONTH($B34,-2),$B34,"dts=h","array=true")) -> 219.6683333 | I35: =AVERAGE(_xll.BDH(I$2,"px last",$B34,$B35,"dts=H","array=TRUE")) -> 98.93 | J35: =AVERAGE(_xll.BDH(J$2,"px last",$B34,$B35,"dts=H","array=TRUE")) -> 1388.207846 | K35: =AVERAGE(_xll.BDH(K$2,"px last",$B34,$B35,"dts=H","array=TRUE")) -> 105.3521538 | L35: =AVERAGE(_xll.BDH(L$2,"px last",$B34,$B35,"dts=H","array=TRUE")) -> 669.468254 | M35: =AVERAGE(_xll.BDH(M$2,"px last",$B34,$B35,"dts=H","array=TRUE")) -> 281.8057143 | N35: =AVERAGE(_xll.BDH($N$2,"PX LAST",$B34,$B35,"dts=h","array=true")) -> 31.94265077 | O35: =SUM(_xll.BDH($O$2,"PX LAST",EOMONTH($B34,-2),$B34,"dts=h","array=true")) -> 1319 | P35: =AVERAGE(_xll.BDH($P$2,"PX LAST",$B34,$B35,"dts=h","array=true")) -> 302.947619 | Q35: =_xll.BDH($Q$2,"PX LAST",EOMONTH(B35,-MOD(MONTH(B35),3)),EOMONTH(B35,-MOD(MONTH(B35),3))) -> 823.4 | R35: =_xll.BDH($R$2,"PX LAST",EOMONTH(B35,-MOD(MONTH(B35),3)),EOMONTH(B35,-MOD(MONTH(B35),3))) -> 3153.8
A36: -13FQ | B36: 2011-06-30 | C36: =_xll.BDP(control!$B$1&" EQUITY",C$2, "EQY_FUND_RELATIVE_PERIOD", $A36, "EQY_FUND_CRNCY", control!$B$2, "EQY_CONSOLIDATED","Y", "FILL=0") -> 112781 | D36: =_xll.BDP(control!$B$1&" EQUITY",C$2, "EQY_FUND_RELATIVE_PERIOD", $A36, "EQY_FUND_CRNCY", control!$B$2, "EQY_CONSOLIDATED","Y", "FILL=0") -> 112781 | E36: =_xll.BDP(control!$B$1&" EQUITY",C$2, "EQY_FUND_RELATIVE_PERIOD", $A36, "EQY_FUND_CRNCY", control!$B$2, "EQY_CONSOLIDATED","Y", "FILL=0") -> 112781 | F36: =_xll.BDH(F$2,"PX LAST",EOMONTH(B36,-MOD(MONTH(B36),3)),EOMONTH(B36,-MOD(MONTH(B36),3))) -> 508.725 | G36: =SUM(_xll.BDH(G$2,"PX LAST",EOMONTH($B35,-2),$B35,"array=true","dts=H")) -> 149.867 | H36: =AVERAGE(_xll.BDH($H$2,"PX LAST",EOMONTH($B35,-2),$B35,"dts=h","array=true")) -> 221.951 | I36: =AVERAGE(_xll.BDH(I$2,"px last",$B35,$B36,"dts=H","array=TRUE")) -> 103.9559375 | J36: =AVERAGE(_xll.BDH(J$2,"px last",$B35,$B36,"dts=H","array=TRUE")) -> 1508.034848 | K36: =AVERAGE(_xll.BDH(K$2,"px last",$B35,$B36,"dts=H","array=TRUE")) -> 116.9921538 | L36: =AVERAGE(_xll.BDH(L$2,"px last",$B35,$B36,"dts=H","array=TRUE")) -> 730.8007812 | M36: =AVERAGE(_xll.BDH(M$2,"px last",$B35,$B36,"dts=H","array=TRUE")) -> 304.611875 | N36: =AVERAGE(_xll.BDH($N$2,"PX LAST",$B35,$B36,"dts=h","array=true")) -> 38.49341818 | O36: =SUM(_xll.BDH($O$2,"PX LAST",EOMONTH($B35,-2),$B35,"dts=h","array=true")) -> 1250 | P36: =AVERAGE(_xll.BDH($P$2,"PX LAST",$B35,$B36,"dts=h","array=true")) -> 237.334375 | Q36: =_xll.BDH($Q$2,"PX LAST",EOMONTH(B36,-MOD(MONTH(B36),3)),EOMONTH(B36,-MOD(MONTH(B36),3))) -> 844.9 | R36: =_xll.BDH($R$2,"PX LAST",EOMONTH(B36,-MOD(MONTH(B36),3)),EOMONTH(B36,-MOD(MONTH(B36),3))) -> 3183.8
A37: -12FQ | B37: 2011-09-30 | C37: =_xll.BDP(control!$B$1&" EQUITY",C$2, "EQY_FUND_RELATIVE_PERIOD", $A37, "EQY_FUND_CRNCY", control!$B$2, "EQY_CONSOLIDATED","Y", "FILL=0") -> 111991 | D37: =_xll.BDP(control!$B$1&" EQUITY",C$2, "EQY_FUND_RELATIVE_PERIOD", $A37, "EQY_FUND_CRNCY", control!$B$2, "EQY_CONSOLIDATED","Y", "FILL=0") -> 111991 | E37: =_xll.BDP(control!$B$1&" EQUITY",C$2, "EQY_FUND_RELATIVE_PERIOD", $A37, "EQY_FUND_CRNCY", control!$B$2, "EQY_CONSOLIDATED","Y", "FILL=0") -> 111991 | F37: =_xll.BDH(F$2,"PX LAST",EOMONTH(B37,-MOD(MONTH(B37),3)),EOMONTH(B37,-MOD(MONTH(B37),3))) -> 509.913 | G37: =SUM(_xll.BDH(G$2,"PX LAST",EOMONTH($B36,-2),$B36,"array=true","dts=H")) -> 148.262 | H37: =AVERAGE(_xll.BDH($H$2,"PX LAST",EOMONTH($B36,-2),$B36,"dts=h","array=true")) -> 224.6546667 | I37: =AVERAGE(_xll.BDH(I$2,"px last",$B36,$B37,"dts=H","array=TRUE")) -> 91.05276923 | J37: =AVERAGE(_xll.BDH(J$2,"px last",$B36,$B37,"dts=H","array=TRUE")) -> 1703.271194 | K37: =AVERAGE(_xll.BDH(K$2,"px last",$B36,$B37,"dts=H","array=TRUE")) -> 112.0976119 | L37: =AVERAGE(_xll.BDH(L$2,"px last",$B36,$B37,"dts=H","array=TRUE")) -> 695.1615385 | M37: =AVERAGE(_xll.BDH(M$2,"px last",$B36,$B37,"dts=H","array=TRUE")) -> 298.3907692 | N37: =AVERAGE(_xll.BDH($N$2,"PX LAST",$B36,$B37,"dts=h","array=true")) -> 38.80706716 | O37: =SUM(_xll.BDH($O$2,"PX LAST",EOMONTH($B36,-2),$B36,"dts=h","array=true")) -> 1264 | P37: =AVERAGE(_xll.BDH($P$2,"PX LAST",$B36,$B37,"dts=h","array=true")) -> 239.2276923 | Q37: =_xll.BDH($Q$2,"PX LAST",EOMONTH(B37,-MOD(MONTH(B37),3)),EOMONTH(B37,-MOD(MONTH(B37),3))) -> 851.5 | R37: =_xll.BDH($R$2,"PX LAST",EOMONTH(B37,-MOD(MONTH(B37),3)),EOMONTH(B37,-MOD(MONTH(B37),3))) -> 3176.8
A38: -11FQ | B38: 2011-12-31 | C38: =_xll.BDP(control!$B$1&" EQUITY",C$2, "EQY_FUND_RELATIVE_PERIOD", $A38, "EQY_FUND_CRNCY", control!$B$2, "EQY_CONSOLIDATED","Y", "FILL=0") -> 107419 | D38: =_xll.BDP(control!$B$1&" EQUITY",C$2, "EQY_FUND_RELATIVE_PERIOD", $A38, "EQY_FUND_CRNCY", control!$B$2, "EQY_CONSOLIDATED","Y", "FILL=0") -> 107419 | E38: =_xll.BDP(control!$B$1&" EQUITY",C$2, "EQY_FUND_RELATIVE_PERIOD", $A38, "EQY_FUND_CRNCY", control!$B$2, "EQY_CONSOLIDATED","Y", "FILL=0") -> 107419 | F38: =_xll.BDH(F$2,"PX LAST",EOMONTH(B38,-MOD(MONTH(B38),3)),EOMONTH(B38,-MOD(MONTH(B38),3))) -> 511.035 | G38: =SUM(_xll.BDH(G$2,"PX LAST",EOMONTH($B37,-2),$B37,"array=true","dts=H")) -> 148.444 | H38: =AVERAGE(_xll.BDH($H$2,"PX LAST",EOMONTH($B37,-2),$B37,"dts=h","array=true")) -> 226.1253333 | I38: =AVERAGE(_xll.BDH(I$2,"px last",$B37,$B38,"dts=H","array=TRUE")) -> 94.06796875 | J38: =AVERAGE(_xll.BDH(J$2,"px last",$B37,$B38,"dts=H","array=TRUE")) -> 1682.40803 | K38: =AVERAGE(_xll.BDH(K$2,"px last",$B37,$B38,"dts=H","array=TRUE")) -> 108.9272308 | L38: =AVERAGE(_xll.BDH(L$2,"px last",$B37,$B38,"dts=H","array=TRUE")) -> 619.953125 | M38: =AVERAGE(_xll.BDH(M$2,"px last",$B37,$B38,"dts=H","array=TRUE")) -> 297.3626562 | N38: =AVERAGE(_xll.BDH($N$2,"PX LAST",$B37,$B38,"dts=h","array=true")) -> 31.81259848 | O38: =SUM(_xll.BDH($O$2,"PX LAST",EOMONTH($B37,-2),$B37,"dts=h","array=true")) -> 1272 | P38: =AVERAGE(_xll.BDH($P$2,"PX LAST",$B37,$B38,"dts=h","array=true")) -> 227.984375 | Q38: =_xll.BDH($Q$2,"PX LAST",EOMONTH(B38,-MOD(MONTH(B38),3)),EOMONTH(B38,-MOD(MONTH(B38),3))) -> 828 | R38: =_xll.BDH($R$2,"PX LAST",EOMONTH(B38,-MOD(MONTH(B38),3)),EOMONTH(B38,-MOD(MONTH(B38),3))) -> 3160.4
A39: -10FQ | B39: 2012-03-31 | C39: =_xll.BDP(control!$B$1&" EQUITY",C$2, "EQY_FUND_RELATIVE_PERIOD", $A39, "EQY_FUND_CRNCY", control!$B$2, "EQY_CONSOLIDATED","Y", "FILL=0") -> 110696 | D39: =_xll.BDP(control!$B$1&" EQUITY",C$2, "EQY_FUND_RELATIVE_PERIOD", $A39, "EQY_FUND_CRNCY", control!$B$2, "EQY_CONSOLIDATED","Y", "FILL=0") -> 110696 | E39: =_xll.BDP(control!$B$1&" EQUITY",C$2, "EQY_FUND_RELATIVE_PERIOD", $A39, "EQY_FUND_CRNCY", control!$B$2, "EQY_CONSOLIDATED","Y", "FILL=0") -> 110696 | F39: =_xll.BDH(F$2,"PX LAST",EOMONTH(B39,-MOD(MONTH(B39),3)),EOMONTH(B39,-MOD(MONTH(B39),3))) -> 512.189 | G39: =SUM(_xll.BDH(G$2,"PX LAST",EOMONTH($B38,-2),$B38,"array=true","dts=H")) -> 145.904 | H39: =AVERAGE(_xll.BDH($H$2,"PX LAST",EOMONTH($B38,-2),$B38,"dts=h","array=true")) -> 226.9966667 | I39: =AVERAGE(_xll.BDH(I$2,"px last",$B38,$B39,"dts=H","array=TRUE")) -> 104.4716129 | J39: =AVERAGE(_xll.BDH(J$2,"px last",$B38,$B39,"dts=H","array=TRUE")) -> 1691.046308 | K39: =AVERAGE(_xll.BDH(K$2,"px last",$B38,$B39,"dts=H","array=TRUE")) -> 118.4490625 | L39: =AVERAGE(_xll.BDH(L$2,"px last",$B38,$B39,"dts=H","array=TRUE")) -> 641.0080645 | M39: =AVERAGE(_xll.BDH(M$2,"px last",$B38,$B39,"dts=H","array=TRUE")) -> 315.8316129 | N39: =AVERAGE(_xll.BDH($N$2,"PX LAST",$B38,$B39,"dts=h","array=true")) -> 32.66717846 | O39: =SUM(_xll.BDH($O$2,"PX LAST",EOMONTH($B38,-2),$B38,"dts=h","array=true")) -> 1426 | P39: =AVERAGE(_xll.BDH($P$2,"PX LAST",$B38,$B39,"dts=h","array=true")) -> 259.2580645 | Q39: =_xll.BDH($Q$2,"PX LAST",EOMONTH(B39,-MOD(MONTH(B39),3)),EOMONTH(B39,-MOD(MONTH(B39),3))) -> 818.6 | R39: =_xll.BDH($R$2,"PX LAST",EOMONTH(B39,-MOD(MONTH(B39),3)),EOMONTH(B39,-MOD(MONTH(B39),3))) -> 3166.2
A40: -9FQ | B40: 2012-06-30 | C40: =_xll.BDP(control!$B$1&" EQUITY",C$2, "EQY_FUND_RELATIVE_PERIOD", $A40, "EQY_FUND_CRNCY", control!$B$2, "EQY_CONSOLIDATED","Y", "FILL=0") -> 104718 | D40: =_xll.BDP(control!$B$1&" EQUITY",C$2, "EQY_FUND_RELATIVE_PERIOD", $A40, "EQY_FUND_CRNCY", control!$B$2, "EQY_CONSOLIDATED","Y", "FILL=0") -> 104718 | E40: =_xll.BDP(control!$B$1&" EQUITY",C$2, "EQY_FUND_RELATIVE_PERIOD", $A40, "EQY_FUND_CRNCY", control!$B$2, "EQY_CONSOLIDATED","Y", "FILL=0") -> 104718 | F40: =_xll.BDH(F$2,"PX LAST",EOMONTH(B40,-MOD(MONTH(B40),3)),EOMONTH(B40,-MOD(MONTH(B40),3))) -> 510.962 | G40: =SUM(_xll.BDH(G$2,"PX LAST",EOMONTH($B39,-2),$B39,"array=true","dts=H")) -> 146.556 | H40: =AVERAGE(_xll.BDH($H$2,"PX LAST",EOMONTH($B39,-2),$B39,"dts=h","array=true")) -> 228.1786667 | I40: =AVERAGE(_xll.BDH(I$2,"px last",$B39,$B40,"dts=H","array=TRUE")) -> 94.66793651 | J40: =AVERAGE(_xll.BDH(J$2,"px last",$B39,$B40,"dts=H","array=TRUE")) -> 1611.937846 | K40: =AVERAGE(_xll.BDH(K$2,"px last",$B39,$B40,"dts=H","array=TRUE")) -> 108.763125 | L40: =AVERAGE(_xll.BDH(L$2,"px last",$B39,$B40,"dts=H","array=TRUE")) -> 617.781746 | M40: =AVERAGE(_xll.BDH(M$2,"px last",$B39,$B40,"dts=H","array=TRUE")) -> 289.248254 | N40: =AVERAGE(_xll.BDH($N$2,"PX LAST",$B39,$B40,"dts=h","array=true")) -> 29.46931692 | O40: =SUM(_xll.BDH($O$2,"PX LAST",EOMONTH($B39,-2),$B39,"dts=h","array=true")) -> 1456 | P40: =AVERAGE(_xll.BDH($P$2,"PX LAST",$B39,$B40,"dts=h","array=true")) -> 278.8047619 | Q40: =_xll.BDH($Q$2,"PX LAST",EOMONTH(B40,-MOD(MONTH(B40),3)),EOMONTH(B40,-MOD(MONTH(B40),3))) -> 817.1 | R40: =_xll.BDH($R$2,"PX LAST",EOMONTH(B40,-MOD(MONTH(B40),3)),EOMONTH(B40,-MOD(MONTH(B40),3))) -> 3163.3
A41: -8FQ | B41: 2012-09-30 | C41: =_xll.BDP(control!$B$1&" EQUITY",C$2, "EQY_FUND_RELATIVE_PERIOD", $A41, "EQY_FUND_CRNCY", control!$B$2, "EQY_CONSOLIDATED","Y", "FILL=0") -> 102852 | D41: =_xll.BDP(control!$B$1&" EQUITY",C$2, "EQY_FUND_RELATIVE_PERIOD", $A41, "EQY_FUND_CRNCY", control!$B$2, "EQY_CONSOLIDATED","Y", "FILL=0") -> 102852 | E41: =_xll.BDP(control!$B$1&" EQUITY",C$2, "EQY_FUND_RELATIVE_PERIOD", $A41, "EQY_FUND_CRNCY", control!$B$2, "EQY_CONSOLIDATED","Y", "FILL=0") -> 102852 | F41: =_xll.BDH(F$2,"PX LAST",EOMONTH(B41,-MOD(MONTH(B41),3)),EOMONTH(B41,-MOD(MONTH(B41),3))) -> 512.191 | G41: =SUM(_xll.BDH(G$2,"PX LAST",EOMONTH($B40,-2),$B40,"array=true","dts=H")) -> 146.701 | H41: =AVERAGE(_xll.BDH($H$2,"PX LAST",EOMONTH($B40,-2),$B40,"dts=h","array=true")) -> 228.9643333 | I41: =AVERAGE(_xll.BDH(I$2,"px last",$B40,$B41,"dts=H","array=TRUE")) -> 93.66634921 | J41: =AVERAGE(_xll.BDH(J$2,"px last",$B40,$B41,"dts=H","array=TRUE")) -> 1653.420154 | K41: =AVERAGE(_xll.BDH(K$2,"px last",$B40,$B41,"dts=H","array=TRUE")) -> 109.4184615 | L41: =AVERAGE(_xll.BDH(L$2,"px last",$B40,$B41,"dts=H","array=TRUE")) -> 782.6706349 | M41: =AVERAGE(_xll.BDH(M$2,"px last",$B40,$B41,"dts=H","array=TRUE")) -> 300.1419048 | N41: =AVERAGE(_xll.BDH($N$2,"PX LAST",$B40,$B41,"dts=h","array=true")) -> 29.94087692 | O41: =SUM(_xll.BDH($O$2,"PX LAST",EOMONTH($B40,-2),$B40,"dts=h","array=true")) -> 1546 | P41: =AVERAGE(_xll.BDH($P$2,"PX LAST",$B40,$B41,"dts=h","array=true")) -> 287.4 | Q41: =_xll.BDH($Q$2,"PX LAST",EOMONTH(B41,-MOD(MONTH(B41),3)),EOMONTH(B41,-MOD(MONTH(B41),3))) -> 840.9 | R41: =_xll.BDH($R$2,"PX LAST",EOMONTH(B41,-MOD(MONTH(B41),3)),EOMONTH(B41,-MOD(MONTH(B41),3))) -> 3190.5
A42: -7FQ | B42: 2012-12-31 | C42: =_xll.BDP(control!$B$1&" EQUITY",C$2, "EQY_FUND_RELATIVE_PERIOD", $A42, "EQY_FUND_CRNCY", control!$B$2, "EQY_CONSOLIDATED","Y", "FILL=0") -> 101409 | D42: =_xll.BDP(control!$B$1&" EQUITY",C$2, "EQY_FUND_RELATIVE_PERIOD", $A42, "EQY_FUND_CRNCY", control!$B$2, "EQY_CONSOLIDATED","Y", "FILL=0") -> 101409 | E42: =_xll.BDP(control!$B$1&" EQUITY",C$2, "EQY_FUND_RELATIVE_PERIOD", $A42, "EQY_FUND_CRNCY", control!$B$2, "EQY_CONSOLIDATED","Y", "FILL=0") -> 101409 | F42: =_xll.BDH(F$2,"PX LAST",EOMONTH(B42,-MOD(MONTH(B42),3)),EOMONTH(B42,-MOD(MONTH(B42),3))) -> 510.899 | G42: =SUM(_xll.BDH(G$2,"PX LAST",EOMONTH($B41,-2),$B41,"array=true","dts=H")) -> 146.578 | H42: =AVERAGE(_xll.BDH($H$2,"PX LAST",EOMONTH($B41,-2),$B41,"dts=h","array=true")) -> 229.939 | I42: =AVERAGE(_xll.BDH(I$2,"px last",$B41,$B42,"dts=H","array=TRUE")) -> 90.26640625 | J42: =AVERAGE(_xll.BDH(J$2,"px last",$B41,$B42,"dts=H","array=TRUE")) -> 1717.809848 | K42: =AVERAGE(_xll.BDH(K$2,"px last",$B41,$B42,"dts=H","array=TRUE")) -> 110.1306154 | L42: =AVERAGE(_xll.BDH(L$2,"px last",$B41,$B42,"dts=H","array=TRUE")) -> 736.78125 | M42: =AVERAGE(_xll.BDH(M$2,"px last",$B41,$B42,"dts=H","array=TRUE")) -> 305.2909375 | N42: =AVERAGE(_xll.BDH($N$2,"PX LAST",$B41,$B42,"dts=h","array=true")) -> 32.57644091 | O42: =SUM(_xll.BDH($O$2,"PX LAST",EOMONTH($B41,-2),$B41,"dts=h","array=true")) -> 1647 | P42: =AVERAGE(_xll.BDH($P$2,"PX LAST",$B41,$B42,"dts=h","array=true")) -> 322.925 | Q42: =_xll.BDH($Q$2,"PX LAST",EOMONTH(B42,-MOD(MONTH(B42),3)),EOMONTH(B42,-MOD(MONTH(B42),3))) -> 795.4 | R42: =_xll.BDH($R$2,"PX LAST",EOMONTH(B42,-MOD(MONTH(B42),3)),EOMONTH(B42,-MOD(MONTH(B42),3))) -> 3156.6
A43: -6FQ | B43: 2013-03-31 | C43: =_xll.BDP(control!$B$1&" EQUITY",C$2, "EQY_FUND_RELATIVE_PERIOD", $A43, "EQY_FUND_CRNCY", control!$B$2, "EQY_CONSOLIDATED","Y", "FILL=0") -> 96336 | D43: =_xll.BDP(control!$B$1&" EQUITY",C$2, "EQY_FUND_RELATIVE_PERIOD", $A43, "EQY_FUND_CRNCY", control!$B$2, "EQY_CONSOLIDATED","Y", "FILL=0") -> 96336 | E43: =_xll.BDP(control!$B$1&" EQUITY",C$2, "EQY_FUND_RELATIVE_PERIOD", $A43, "EQY_FUND_CRNCY", control!$B$2, "EQY_CONSOLIDATED","Y", "FILL=0") -> 96336 | F43: =_xll.BDH(F$2,"PX LAST",EOMONTH(B43,-MOD(MONTH(B43),3)),EOMONTH(B43,-MOD(MONTH(B43),3))) -> 510.918 | G43: =SUM(_xll.BDH(G$2,"PX LAST",EOMONTH($B42,-2),$B42,"array=true","dts=H")) -> 145.482 | H43: =AVERAGE(_xll.BDH($H$2,"PX LAST",EOMONTH($B42,-2),$B42,"dts=h","array=true")) -> 231.3136667 | I43: =AVERAGE(_xll.BDH(I$2,"px last",$B42,$B43,"dts=H","array=TRUE")) -> 95.55442623 | J43: =AVERAGE(_xll.BDH(J$2,"px last",$B42,$B43,"dts=H","array=TRUE")) -> 1632.6 | K43: =AVERAGE(_xll.BDH(K$2,"px last",$B42,$B43,"dts=H","array=TRUE")) -> 112.6112698 | L43: =AVERAGE(_xll.BDH(L$2,"px last",$B42,$B43,"dts=H","array=TRUE")) -> 715.8032787 | M43: =AVERAGE(_xll.BDH(M$2,"px last",$B42,$B43,"dts=H","array=TRUE")) -> 304.2686885 | N43: =AVERAGE(_xll.BDH($N$2,"PX LAST",$B42,$B43,"dts=h","array=true")) -> 30.10167538 | O43: =SUM(_xll.BDH($O$2,"PX LAST",EOMONTH($B42,-2),$B42,"dts=h","array=true")) -> 1795 | P43: =AVERAGE(_xll.BDH($P$2,"PX LAST",$B42,$B43,"dts=h","array=true")) -> 378.1098361 | Q43: =_xll.BDH($Q$2,"PX LAST",EOMONTH(B43,-MOD(MONTH(B43),3)),EOMONTH(B43,-MOD(MONTH(B43),3))) -> 775.1 | R43: =_xll.BDH($R$2,"PX LAST",EOMONTH(B43,-MOD(MONTH(B43),3)),EOMONTH(B43,-MOD(MONTH(B43),3))) -> 3135.9
A44: -5FQ | B44: 2013-06-30 | C44: =_xll.BDP(control!$B$1&" EQUITY",C$2, "EQY_FUND_RELATIVE_PERIOD", $A44, "EQY_FUND_CRNCY", control!$B$2, "EQY_CONSOLIDATED","Y", "FILL=0") -> 95498 | D44: =_xll.BDP(control!$B$1&" EQUITY",C$2, "EQY_FUND_RELATIVE_PERIOD", $A44, "EQY_FUND_CRNCY", control!$B$2, "EQY_CONSOLIDATED","Y", "FILL=0") -> 95498 | E44: =_xll.BDP(control!$B$1&" EQUITY",C$2, "EQY_FUND_RELATIVE_PERIOD", $A44, "EQY_FUND_CRNCY", control!$B$2, "EQY_CONSOLIDATED","Y", "FILL=0") -> 95498 | F44: =_xll.BDH(F$2,"PX LAST",EOMONTH(B44,-MOD(MONTH(B44),3)),EOMONTH(B44,-MOD(MONTH(B44),3))) -> 514.351 | G44: =SUM(_xll.BDH(G$2,"PX LAST",EOMONTH($B43,-2),$B43,"array=true","dts=H")) -> 146.075 | H44: =AVERAGE(_xll.BDH($H$2,"PX LAST",EOMONTH($B43,-2),$B43,"dts=h","array=true")) -> 231.9983333 | I44: =AVERAGE(_xll.BDH(I$2,"px last",$B43,$B44,"dts=H","array=TRUE")) -> 93.8584375 | J44: =AVERAGE(_xll.BDH(J$2,"px last",$B43,$B44,"dts=H","array=TRUE")) -> 1416.95 | K44: =AVERAGE(_xll.BDH(K$2,"px last",$B43,$B44,"dts=H","array=TRUE")) -> 103.3466154 | L44: =AVERAGE(_xll.BDH(L$2,"px last",$B43,$B44,"dts=H","array=TRUE")) -> 660.7539062 | M44: =AVERAGE(_xll.BDH(M$2,"px last",$B43,$B44,"dts=H","array=TRUE")) -> 288.970625 | N44: =AVERAGE(_xll.BDH($N$2,"PX LAST",$B43,$B44,"dts=h","array=true")) -> 23.22339538 | O44: =SUM(_xll.BDH($O$2,"PX LAST",EOMONTH($B43,-2),$B43,"dts=h","array=true")) -> 1881 | P44: =AVERAGE(_xll.BDH($P$2,"PX LAST",$B43,$B44,"dts=h","array=true")) -> 327 | Q44: =_xll.BDH($Q$2,"PX LAST",EOMONTH(B44,-MOD(MONTH(B44),3)),EOMONTH(B44,-MOD(MONTH(B44),3))) -> 772.2 | R44: =_xll.BDH($R$2,"PX LAST",EOMONTH(B44,-MOD(MONTH(B44),3)),EOMONTH(B44,-MOD(MONTH(B44),3))) -> 3142.4
A45: -4FQ | B45: 2013-09-30 | C45: =_xll.BDP(control!$B$1&" EQUITY",C$2, "EQY_FUND_RELATIVE_PERIOD", $A45, "EQY_FUND_CRNCY", control!$B$2, "EQY_CONSOLIDATED","Y", "FILL=0") -> 100508 | D45: =_xll.BDP(control!$B$1&" EQUITY",C$2, "EQY_FUND_RELATIVE_PERIOD", $A45, "EQY_FUND_CRNCY", control!$B$2, "EQY_CONSOLIDATED","Y", "FILL=0") -> 100508 | E45: =_xll.BDP(control!$B$1&" EQUITY",C$2, "EQY_FUND_RELATIVE_PERIOD", $A45, "EQY_FUND_CRNCY", control!$B$2, "EQY_CONSOLIDATED","Y", "FILL=0") -> 100508 | F45: =_xll.BDH(F$2,"PX LAST",EOMONTH(B45,-MOD(MONTH(B45),3)),EOMONTH(B45,-MOD(MONTH(B45),3))) -> 513.883 | G45: =SUM(_xll.BDH(G$2,"PX LAST",EOMONTH($B44,-2),$B44,"array=true","dts=H")) -> 148.986 | H45: =AVERAGE(_xll.BDH($H$2,"PX LAST",EOMONTH($B44,-2),$B44,"dts=h","array=true")) -> 232.2303333 | I45: =AVERAGE(_xll.BDH(I$2,"px last",$B44,$B45,"dts=H","array=TRUE")) -> 101.2795312 | J45: =AVERAGE(_xll.BDH(J$2,"px last",$B44,$B45,"dts=H","array=TRUE")) -> 1329.87697 | K45: =AVERAGE(_xll.BDH(K$2,"px last",$B44,$B45,"dts=H","array=TRUE")) -> 109.6522727 | L45: =AVERAGE(_xll.BDH(L$2,"px last",$B44,$B45,"dts=H","array=TRUE")) -> 514.265625 | M45: =AVERAGE(_xll.BDH(M$2,"px last",$B44,$B45,"dts=H","array=TRUE")) -> 304.6195312 | N45: =AVERAGE(_xll.BDH($N$2,"PX LAST",$B44,$B45,"dts=h","array=true")) -> 21.45453636 | O45: =SUM(_xll.BDH($O$2,"PX LAST",EOMONTH($B44,-2),$B44,"dts=h","array=true")) -> 1789 | P45: =AVERAGE(_xll.BDH($P$2,"PX LAST",$B44,$B45,"dts=h","array=true")) -> 321.4765625 | Q45: =_xll.BDH($Q$2,"PX LAST",EOMONTH(B45,-MOD(MONTH(B45),3)),EOMONTH(B45,-MOD(MONTH(B45),3))) -> 774.9 | R45: =_xll.BDH($R$2,"PX LAST",EOMONTH(B45,-MOD(MONTH(B45),3)),EOMONTH(B45,-MOD(MONTH(B45),3))) -> 3154.7
A46: -3FQ | B46: 2013-12-31 | C46: =_xll.BDP(control!$B$1&" EQUITY",C$2, "EQY_FUND_RELATIVE_PERIOD", $A46, "EQY_FUND_CRNCY", control!$B$2, "EQY_CONSOLIDATED","Y", "FILL=0") -> 98355 | D46: =_xll.BDP(control!$B$1&" EQUITY",C$2, "EQY_FUND_RELATIVE_PERIOD", $A46, "EQY_FUND_CRNCY", control!$B$2, "EQY_CONSOLIDATED","Y", "FILL=0") -> 98355 | F46: =_xll.BDH(F$2,"PX LAST",EOMONTH(B46,-MOD(MONTH(B46),3)),EOMONTH(B46,-MOD(MONTH(B46),3))) -> 514.944 | G46: =SUM(_xll.BDH(G$2,"PX LAST",EOMONTH($B45,-2),$B45,"array=true","dts=H")) -> 150.346 | H46: =AVERAGE(_xll.BDH($H$2,"PX LAST",EOMONTH($B45,-2),$B45,"dts=h","array=true")) -> 233.476 | I46: =AVERAGE(_xll.BDH(I$2,"px last",$B45,$B46,"dts=H","array=TRUE")) -> 96.94 | J46: =AVERAGE(_xll.BDH(J$2,"px last",$B45,$B46,"dts=H","array=TRUE")) -> 1272.333284 | K46: =AVERAGE(_xll.BDH(K$2,"px last",$B45,$B46,"dts=H","array=TRUE")) -> 109.3366667 | L46: =AVERAGE(_xll.BDH(L$2,"px last",$B45,$B46,"dts=H","array=TRUE")) -> 430.0884615 | M46: =AVERAGE(_xll.BDH(M$2,"px last",$B45,$B46,"dts=H","array=TRUE")) -> 299.08 | N46: =AVERAGE(_xll.BDH($N$2,"PX LAST",$B45,$B46,"dts=h","array=true")) -> 20.81659403 | O46: =SUM(_xll.BDH($O$2,"PX LAST",EOMONTH($B45,-2),$B45,"dts=h","array=true")) -> 1795 | P46: =AVERAGE(_xll.BDH($P$2,"PX LAST",$B45,$B46,"dts=h","array=true")) -> 357.1338462 | Q46: =_xll.BDH($Q$2,"PX LAST",EOMONTH(B46,-MOD(MONTH(B46),3)),EOMONTH(B46,-MOD(MONTH(B46),3))) -> 757.5 | R46: =_xll.BDH($R$2,"PX LAST",EOMONTH(B46,-MOD(MONTH(B46),3)),EOMONTH(B46,-MOD(MONTH(B46),3))) -> 3142.7
A47: -2FQ | B47: 2014-03-31 | C47: =_xll.BDP(control!$B$1&" EQUITY",C$2, "EQY_FUND_RELATIVE_PERIOD", $A47, "EQY_FUND_CRNCY", control!$B$2, "EQY_CONSOLIDATED","Y", "FILL=0") -> 94344 | D47: =_xll.BDP(control!$B$1&" EQUITY",C$2, "EQY_FUND_RELATIVE_PERIOD", $A47, "EQY_FUND_CRNCY", control!$B$2, "EQY_CONSOLIDATED","Y", "FILL=0") -> 94344 | F47: =_xll.BDH(F$2,"PX LAST",EOMONTH(B47,-MOD(MONTH(B47),3)),EOMONTH(B47,-MOD(MONTH(B47),3))) -> 515.09 | G47: =SUM(_xll.BDH(G$2,"PX LAST",EOMONTH($B46,-2),$B46,"array=true","dts=H")) -> 150.984 | H47: =AVERAGE(_xll.BDH($H$2,"PX LAST",EOMONTH($B46,-2),$B46,"dts=h","array=true")) -> 234.1363333 | I47: =AVERAGE(_xll.BDH(I$2,"px last",$B46,$B47,"dts=H","array=TRUE")) -> 95.96306452 | J47: =AVERAGE(_xll.BDH(J$2,"px last",$B46,$B47,"dts=H","array=TRUE")) -> 1290.758615 | K47: =AVERAGE(_xll.BDH(K$2,"px last",$B46,$B47,"dts=H","array=TRUE")) -> 107.9171875 | L47: =AVERAGE(_xll.BDH(L$2,"px last",$B46,$B47,"dts=H","array=TRUE")) -> 451.9879032 | M47: =AVERAGE(_xll.BDH(M$2,"px last",$B46,$B47,"dts=H","array=TRUE")) -> 301.4417742 | N47: =AVERAGE(_xll.BDH($N$2,"PX LAST",$B46,$B47,"dts=h","array=true")) -> 20.44099385 | O47: =SUM(_xll.BDH($O$2,"PX LAST",EOMONTH($B46,-2),$B46,"dts=h","array=true")) -> 1988 | P47: =AVERAGE(_xll.BDH($P$2,"PX LAST",$B46,$B47,"dts=h","array=true")) -> 354.1741935 | Q47: =_xll.BDH($Q$2,"PX LAST",EOMONTH(B47,-MOD(MONTH(B47),3)),EOMONTH(B47,-MOD(MONTH(B47),3))) -> 749.9 | R47: =_xll.BDH($R$2,"PX LAST",EOMONTH(B47,-MOD(MONTH(B47),3)),EOMONTH(B47,-MOD(MONTH(B47),3))) -> 3139.1
A48: -1FQ | B48: 2014-06-30 | C48: =_xll.BDP(control!$B$1&" EQUITY",C$2, "EQY_FUND_RELATIVE_PERIOD", $A48, "EQY_FUND_CRNCY", control!$B$2, "EQY_CONSOLIDATED","Y", "FILL=0") -> 98287 | D48: =_xll.BDP(control!$B$1&" EQUITY",C$2, "EQY_FUND_RELATIVE_PERIOD", $A48, "EQY_FUND_CRNCY", control!$B$2, "EQY_CONSOLIDATED","Y", "FILL=0") -> 98287 | F48: =_xll.BDH(F$2,"PX LAST",EOMONTH(B48,-MOD(MONTH(B48),3)),EOMONTH(B48,-MOD(MONTH(B48),3))) -> 514.567 | G48: =SUM(_xll.BDH(G$2,"PX LAST",EOMONTH($B47,-2),$B47,"array=true","dts=H")) -> 152.115 | H48: =AVERAGE(_xll.BDH($H$2,"PX LAST",EOMONTH($B47,-2),$B47,"dts=h","array=true")) -> 235.2473333 | I48: =AVERAGE(_xll.BDH(I$2,"px last",$B47,$B48,"dts=H","array=TRUE")) -> 99.428125 | J48: =AVERAGE(_xll.BDH(J$2,"px last",$B47,$B48,"dts=H","array=TRUE")) -> 1289.941212 | K48: =AVERAGE(_xll.BDH(K$2,"px last",$B47,$B48,"dts=H","array=TRUE")) -> 109.7264615 | L48: =AVERAGE(_xll.BDH(L$2,"px last",$B47,$B48,"dts=H","array=TRUE")) -> 479.546875 | M48: =AVERAGE(_xll.BDH(M$2,"px last",$B47,$B48,"dts=H","array=TRUE")) -> 294.955625 | N48: =AVERAGE(_xll.BDH($N$2,"PX LAST",$B47,$B48,"dts=h","array=true")) -> 19.65979242 | O48: =SUM(_xll.BDH($O$2,"PX LAST",EOMONTH($B47,-2),$B47,"dts=h","array=true")) -> 1807 | P48: =AVERAGE(_xll.BDH($P$2,"PX LAST",$B47,$B48,"dts=h","array=true")) -> 325.6265625 | Q48: =_xll.BDH($Q$2,"PX LAST",EOMONTH(B48,-MOD(MONTH(B48),3)),EOMONTH(B48,-MOD(MONTH(B48),3))) -> 754.6 | R48: =_xll.BDH($R$2,"PX LAST",EOMONTH(B48,-MOD(MONTH(B48),3)),EOMONTH(B48,-MOD(MONTH(B48),3))) -> 3163.1
A49: -0FQ | B49: =_xll.BDP(control!$B$1&" Equity","Most_recent_period_end_dt") -> 09/30/2014 | C49: =_xll.BDP(control!$B$1&" EQUITY",C$2, "EQY_FUND_RELATIVE_PERIOD", $A49, "EQY_FUND_CRNCY", control!$B$2, "EQY_CONSOLIDATED","Y", "FILL=0") -> 96047 | F49: =_xll.BDH(F$2,"PX LAST",EOMONTH(B49,-MOD(MONTH(B49),3)),EOMONTH(B49,-MOD(MONTH(B49),3))) -> 515.989 | G49: =SUM(_xll.BDH(G$2,"PX LAST",EOMONTH($B48,-2),$B48,"array=true","dts=H")) -> 152.502 | H49: =AVERAGE(_xll.BDH($H$2,"PX LAST",EOMONTH($B48,-2),$B48,"dts=h","array=true")) -> 237.01 | I49: =AVERAGE(_xll.BDH(I$2,"px last",$B48,$B49,"dts=H","array=TRUE")) -> 94.99661538 | J49: =AVERAGE(_xll.BDH(J$2,"px last",$B48,$B49,"dts=H","array=TRUE")) -> 1282.744776 | K49: =AVERAGE(_xll.BDH(K$2,"px last",$B48,$B49,"dts=H","array=TRUE")) -> 103.5891045 | L49: =AVERAGE(_xll.BDH(L$2,"px last",$B48,$B49,"dts=H","array=TRUE")) -> 360.7115385 | M49: =AVERAGE(_xll.BDH(M$2,"px last",$B48,$B49,"dts=H","array=TRUE")) -> 283.0893846 | N49: =AVERAGE(_xll.BDH($N$2,"PX LAST",$B48,$B49,"dts=h","array=true")) -> 19.72753731 | O49: =SUM(_xll.BDH($O$2,"PX LAST",EOMONTH($B48,-2),$B48,"dts=h","array=true")) -> 1876 | P49: =AVERAGE(_xll.BDH($P$2,"PX LAST",$B48,$B49,"dts=h","array=true")) -> 337.9184615 | Q49: =_xll.BDH($Q$2,"PX LAST",EOMONTH(B49,-MOD(MONTH(B49),3)),EOMONTH(B49,-MOD(MONTH(B49),3))) -> 784.1 | R49: =_xll.BDH($R$2,"PX LAST",EOMONTH(B49,-MOD(MONTH(B49),3)),EOMONTH(B49,-MOD(MONTH(B49),3))) -> 3207.7
A50: Next Q | B50: 2014-12-31

Sheet Linear
B1: slopes | C1: intercepts
A2: USA_Nominal_GDP | B2: =IFERROR(LINEST(Revenue_Concurrent,USA_Nominal_GDP),0) -> 905.0509867 | C2: =IFERROR(INTERCEPT(Revenue_Concurrent,USA_Nominal_GDP),0) -> -361737.3928
A3: USA_Housing_Starts | B3: =IFERROR(LINEST(Revenue_Concurrent,USA_Housing_Starts),0) -> 1044.963539 | C3: =IFERROR(INTERCEPT(Revenue_Concurrent,USA_Housing_Starts),0) -> -52955.84068
A4: USA_CPI | B4: =IFERROR(LINEST(Revenue_Concurrent,USA_CPI),0) -> 551.8808791 | C4: =IFERROR(INTERCEPT(Revenue_Concurrent,USA_CPI),0) -> -27266.0522
A5: OIL | B5: =IFERROR(LINEST(Revenue_Concurrent,OIL),0) -> 714.0927075 | C5: =IFERROR(INTERCEPT(Revenue_Concurrent,OIL),0) -> 33053.64947
A6: GOLD | B6: =IFERROR(LINEST(Revenue_Concurrent,GOLD),0) -> 20.17733601 | C6: =IFERROR(INTERCEPT(Revenue_Concurrent,GOLD),0) -> 70224.39625
A7: BRENT_CRUDE | B7: =IFERROR(LINEST(Revenue_Concurrent,BRENT_CRUDE),0) -> 549.5899391 | C7: =IFERROR(INTERCEPT(Revenue_Concurrent,BRENT_CRUDE),0) -> 44636.52437
A8: CORN | B8: =IFERROR(LINEST(Revenue_Concurrent,CORN),0) -> 61.587446 | C8: =IFERROR(INTERCEPT(Revenue_Concurrent,CORN),0) -> 63816.78023
A9: heat_oil | B9: =IFERROR(LINEST(Revenue_Concurrent,heat_oil),0) -> 214.0360834 | C9: =IFERROR(INTERCEPT(Revenue_Concurrent,heat_oil),0) -> 41052.92625
A10: silver | B10: =IFERROR(LINEST(Revenue_Concurrent,silver),0) -> 1099.678157 | C10: =IFERROR(INTERCEPT(Revenue_Concurrent,silver),0) -> 70702.84946
A11: one_UNIT_STARTS | B11: =IFERROR(LINEST(Revenue_Concurrent,one_UNIT_STARTS),0) -> -3.677475251 | C11: =IFERROR(INTERCEPT(Revenue_Concurrent,one_UNIT_STARTS),0) -> 100728.0342
A12: Lumber | B12: =IFERROR(LINEST(Revenue_Concurrent,Lumber),0) -> 7.683435078 | C12: =IFERROR(INTERCEPT(Revenue_Concurrent,Lumber),0) -> 89031.55557
A13: US_Defense_Spending | B13: =IFERROR(LINEST(Revenue_Concurrent,US_Defense_Spending),0) -> 75.6348891 | C13: =IFERROR(INTERCEPT(Revenue_Concurrent,US_Defense_Spending),0) -> 35158.52761
A14: US_Gov_Spending | B14: =IFERROR(LINEST(Revenue_Concurrent,US_Gov_Spending),0) -> 25.31829551 | C14: =IFERROR(INTERCEPT(Revenue_Concurrent,US_Gov_Spending),0) -> 16436.19663
A15: USA_Nominal_GDP_Lagged_1Q | B15: =IFERROR(LINEST(Revenue_Lagged_1Q,USA_Nominal_GDP),0) -> 927.2755971 | C15: =IFERROR(INTERCEPT(Revenue_Lagged_1Q,USA_Nominal_GDP),0) -> -373672.4849
A16: USA_Housing_Starts_Lagged_1Q | B16: =IFERROR(LINEST(Revenue_Lagged_1Q,USA_Housing_Starts),0) -> 1190.984194 | C16: =IFERROR(INTERCEPT(Revenue_Lagged_1Q,USA_Housing_Starts),0) -> -73910.04582
A17: USA_CPI_Lagged_1Q | B17: =IFERROR(LINEST(Revenue_Lagged_1Q,USA_CPI),0) -> 678.9987476 | C17: =IFERROR(INTERCEPT(Revenue_Lagged_1Q,USA_CPI),0) -> -55361.3039
A18: OIL_Lagged_1Q | B18: =IFERROR(LINEST(Revenue_Lagged_1Q,OIL),0) -> 601.4407088 | C18: =IFERROR(INTERCEPT(Revenue_Lagged_1Q,OIL),0) -> 41409.99757
A19: GOLD_Lagged_1Q | B19: =IFERROR(LINEST(Revenue_Lagged_1Q,GOLD),0) -> 21.05954247 | C19: =IFERROR(INTERCEPT(Revenue_Lagged_1Q,GOLD),0) -> 68495.02326
A20: BRENT_CRUDE_Lagged_1Q | B20: =IFERROR(LINEST(Revenue_Lagged_1Q,BRENT_CRUDE),0) -> 479.3722901 | C20: =IFERROR(INTERCEPT(Revenue_Lagged_1Q,BRENT_CRUDE),0) -> 49769.73117
A21: CORN_Lagged_1Q | B21: =IFERROR(LINEST(Revenue_Lagged_1Q,CORN),0) -> 60.20921928 | C21: =IFERROR(INTERCEPT(Revenue_Lagged_1Q,CORN),0) -> 63615.90047
A22: heat_oil_Lagged_1Q | B22: =IFERROR(LINEST(Revenue_Lagged_1Q,heat_oil),0) -> 193.7240363 | C22: =IFERROR(INTERCEPT(Revenue_Lagged_1Q,heat_oil),0) -> 44996.6731
A23: silver_Lagged_1Q | B23: =IFERROR(LINEST(Revenue_Lagged_1Q,silver),0) -> 1016.249358 | C23: =IFERROR(INTERCEPT(Revenue_Lagged_1Q,silver),0) -> 71443.08725
A24: one_UNIT_STARTS_Lagged_1Q | B24: =IFERROR(LINEST(Revenue_Lagged_1Q,one_UNIT_STARTS),0) -> -4.381655529 | C24: =IFERROR(INTERCEPT(Revenue_Lagged_1Q,one_UNIT_STARTS),0) -> 101743.3892
A25: Lumber_Lagged_1Q | B25: =IFERROR(LINEST(Revenue_Lagged_1Q,Lumber),0) -> -12.87788248 | C25: =IFERROR(INTERCEPT(Revenue_Lagged_1Q,Lumber),0) -> 93964.26295
A26: US_Defense_Spending_Lagged_1Q | B26: =IFERROR(LINEST(Revenue_Lagged_1Q,US_Defense_Spending),0) -> 85.28490003 | C26: =IFERROR(INTERCEPT(Revenue_Lagged_1Q,US_Defense_Spending),0) -> 27197.89891
A27: US_Gov_Spending_Lagged_1Q | B27: =IFERROR(LINEST(Revenue_Lagged_1Q,US_Gov_Spending),0) -> 29.07998772 | C27: =IFERROR(INTERCEPT(Revenue_Lagged_1Q,US_Gov_Spending),0) -> 4518.054896
A28: USA_Nominal_GDP_Lagged_1Y | B28: =IFERROR(LINEST(Revenue_Lagged_1Y,USA_Nominal_GDP),0) -> 824.2596483 | C28: =IFERROR(INTERCEPT(Revenue_Lagged_1Y,USA_Nominal_GDP),0) -> -325114.465
A29: USA_Housing_Starts_Lagged_1Y | B29: =IFERROR(LINEST(Revenue_Lagged_1Y,USA_Housing_Starts),0) -> 1039.018209 | C29: =IFERROR(INTERCEPT(Revenue_Lagged_1Y,USA_Housing_Starts),0) -> -55943.39554
A30: USA_CPI_Lagged_1Y | B30: =IFERROR(LINEST(Revenue_Lagged_1Y,USA_CPI),0) -> 852.1001376 | C30: =IFERROR(INTERCEPT(Revenue_Lagged_1Y,USA_CPI),0) -> -95506.76559
A31: OIL_Lagged_1Y | B31: =IFERROR(LINEST(Revenue_Lagged_1Y,OIL),0) -> 372.8810291 | C31: =IFERROR(INTERCEPT(Revenue_Lagged_1Y,OIL),0) -> 57019.67238
A32: GOLD_Lagged_1Y | B32: =IFERROR(LINEST(Revenue_Lagged_1Y,GOLD),0) -> 22.89535121 | C32: =IFERROR(INTERCEPT(Revenue_Lagged_1Y,GOLD),0) -> 63594.10782
A33: BRENT_CRUDE_Lagged_1Y | B33: =IFERROR(LINEST(Revenue_Lagged_1Y,BRENT_CRUDE),0) -> 329.210971 | C33: =IFERROR(INTERCEPT(Revenue_Lagged_1Y,BRENT_CRUDE),0) -> 59491.77127
A34: CORN_Lagged_1Y | B34: =IFERROR(LINEST(Revenue_Lagged_1Y,CORN),0) -> 53.72692459 | C34: =IFERROR(INTERCEPT(Revenue_Lagged_1Y,CORN),0) -> 63501.42462
A35: heat_oil_Lagged_1Y | B35: =IFERROR(LINEST(Revenue_Lagged_1Y,heat_oil),0) -> 121.8017537 | C35: =IFERROR(INTERCEPT(Revenue_Lagged_1Y,heat_oil),0) -> 58845.96319
A36: silver_Lagged_1Y | B36: =IFERROR(LINEST(Revenue_Lagged_1Y,silver),0) -> 847.7236526 | C36: =IFERROR(INTERCEPT(Revenue_Lagged_1Y,silver),0) -> 71586.59834
A37: one_UNIT_STARTS_Lagged_1Y | B37: =IFERROR(LINEST(Revenue_Lagged_1Y,one_UNIT_STARTS),0) -> -7.206632746 | C37: =IFERROR(INTERCEPT(Revenue_Lagged_1Y,one_UNIT_STARTS),0) -> 106084.6135
A38: Lumber_Lagged_1Y | B38: =IFERROR(LINEST(Revenue_Lagged_1Y,Lumber),0) -> -79.87722893 | C38: =IFERROR(INTERCEPT(Revenue_Lagged_1Y,Lumber),0) -> 109692.9536
A39: US_Defense_Spending_Lagged_1Y | B39: =IFERROR(LINEST(Revenue_Lagged_1Y,US_Defense_Spending),0) -> 108.3262606 | C39: =IFERROR(INTERCEPT(Revenue_Lagged_1Y,US_Defense_Spending),0) -> 7137.535281
A40: US_Gov_Spending_Lagged_1Y | B40: =IFERROR(LINEST(Revenue_Lagged_1Y,US_Gov_Spending),0) -> 40.84787579 | C40: =IFERROR(INTERCEPT(Revenue_Lagged_1Y,US_Gov_Spending),0) -> -33216.51434

Sheet Linear_Corr
B1: Revenue_Concurrent
A2: heat_oil | B2: =IFERROR(CORREL(Revenue_Concurrent,heat_oil)^2,0) -> 0.8375770062
A3: OIL | B3: =IFERROR(CORREL(Revenue_Concurrent,OIL)^2,0) -> 0.8079853724
A4: BRENT_CRUDE | B4: =IFERROR(CORREL(Revenue_Concurrent,BRENT_CRUDE)^2,0) -> 0.8044001669
A5: heat_oil_Lagged_1Q | B5: =IFERROR(CORREL(Revenue_Lagged_1Q,heat_oil)^2,0) -> 0.635329561
A6: USA_Housing_Starts_Lagged_1Q | B6: =IFERROR(CORREL(Revenue_Lagged_1Q,USA_Housing_Starts)^2,0) -> 0.5832957434
A7: BRENT_CRUDE_Lagged_1Q | B7: =IFERROR(CORREL(Revenue_Lagged_1Q,BRENT_CRUDE)^2,0) -> 0.5666589416
A8: OIL_Lagged_1Q | B8: =IFERROR(CORREL(Revenue_Lagged_1Q,OIL)^2,0) -> 0.5307148406
A9: USA_Nominal_GDP | B9: =IFERROR(CORREL(Revenue_Concurrent,USA_Nominal_GDP)^2,0) -> 0.5292608604
A10: USA_Nominal_GDP_Lagged_1Q | B10: =IFERROR(CORREL(Revenue_Lagged_1Q,USA_Nominal_GDP)^2,0) -> 0.5144256759
A11: CORN | B11: =IFERROR(CORREL(Revenue_Concurrent,CORN)^2,0) -> 0.4940191023
A12: USA_Housing_Starts | B12: =IFERROR(CORREL(Revenue_Concurrent,USA_Housing_Starts)^2,0) -> 0.4849509302
A13: USA_CPI_Lagged_1Y | B13: =IFERROR(CORREL(Revenue_Lagged_1Y,USA_CPI)^2,0) -> 0.4380428586
A14: CORN_Lagged_1Q | B14: =IFERROR(CORREL(Revenue_Lagged_1Q,CORN)^2,0) -> 0.4371863907
A15: silver | B15: =IFERROR(CORREL(Revenue_Concurrent,silver)^2,0) -> 0.4192897033
A16: US_Gov_Spending_Lagged_1Y | B16: =IFERROR(CORREL(Revenue_Lagged_1Y,US_Gov_Spending)^2,0) -> 0.3681175927
A17: USA_CPI_Lagged_1Q | B17: =IFERROR(CORREL(Revenue_Lagged_1Q,USA_CPI)^2,0) -> 0.3605980433
A18: USA_Housing_Starts_Lagged_1Y | B18: =IFERROR(CORREL(Revenue_Lagged_1Y,USA_Housing_Starts)^2,0) -> 0.3424309755
A19: one_UNIT_STARTS_Lagged_1Y | B19: =IFERROR(CORREL(Revenue_Lagged_1Y,one_UNIT_STARTS)^2,0) -> 0.3380098244
A20: silver_Lagged_1Q | B20: =IFERROR(CORREL(Revenue_Lagged_1Q,silver)^2,0) -> 0.3315620817
A21: GOLD_Lagged_1Q | B21: =IFERROR(CORREL(Revenue_Lagged_1Q,GOLD)^2,0) -> 0.3183805878
A22: GOLD | B22: =IFERROR(CORREL(Revenue_Concurrent,GOLD)^2,0) -> 0.3156422132
A23: USA_Nominal_GDP_Lagged_1Y | B23: =IFERROR(CORREL(Revenue_Lagged_1Y,USA_Nominal_GDP)^2,0) -> 0.313532791
A24: GOLD_Lagged_1Y | B24: =IFERROR(CORREL(Revenue_Lagged_1Y,GOLD)^2,0) -> 0.29026405
A25: CORN_Lagged_1Y | B25: =IFERROR(CORREL(Revenue_Lagged_1Y,CORN)^2,0) -> 0.2685186901
A26: US_Defense_Spending_Lagged_1Y | B26: =IFERROR(CORREL(Revenue_Lagged_1Y,US_Defense_Spending)^2,0) -> 0.2590843536
A27: USA_CPI | B27: =IFERROR(CORREL(Revenue_Concurrent,USA_CPI)^2,0) -> 0.2572733638
A28: US_Gov_Spending_Lagged_1Q | B28: =IFERROR(CORREL(Revenue_Lagged_1Q,US_Gov_Spending)^2,0) -> 0.2418723047
A29: US_Defense_Spending_Lagged_1Q | B29: =IFERROR(CORREL(Revenue_Lagged_1Q,US_Defense_Spending)^2,0) -> 0.2081939276
A30: BRENT_CRUDE_Lagged_1Y | B30: =IFERROR(CORREL(Revenue_Lagged_1Y,BRENT_CRUDE)^2,0) -> 0.2061457602
A31: US_Gov_Spending | B31: =IFERROR(CORREL(Revenue_Concurrent,US_Gov_Spending)^2,0) -> 0.1980091891
A32: heat_oil_Lagged_1Y | B32: =IFERROR(CORREL(Revenue_Lagged_1Y,heat_oil)^2,0) -> 0.1937265042
A33: silver_Lagged_1Y | B33: =IFERROR(CORREL(Revenue_Lagged_1Y,silver)^2,0) -> 0.1779601671
A34: US_Defense_Spending | B34: =IFERROR(CORREL(Revenue_Concurrent,US_Defense_Spending)^2,0) -> 0.1768425743
A35: one_UNIT_STARTS_Lagged_1Q | B35: =IFERROR(CORREL(Revenue_Lagged_1Q,one_UNIT_STARTS)^2,0) -> 0.1619910765
A36: OIL_Lagged_1Y | B36: =IFERROR(CORREL(Revenue_Lagged_1Y,OIL)^2,0) -> 0.1573497593
A37: one_UNIT_STARTS | B37: =IFERROR(CORREL(Revenue_Concurrent,one_UNIT_STARTS)^2,0) -> 0.1232346556
A38: Lumber_Lagged_1Y | B38: =IFERROR(CORREL(Revenue_Lagged_1Y,Lumber)^2,0) -> 0.07144099125
A39: Lumber_Lagged_1Q | B39: =IFERROR(CORREL(Revenue_Lagged_1Q,Lumber)^2,0) -> 0.002407356964
A40: Lumber | B40: =IFERROR(CORREL(Revenue_Concurrent,Lumber)^2,0) -> 0.0009255100523

Sheet Exponential
B1: Constants | C1: Exponents
A2: USA_Nominal_GDP | B2: =IFERROR(INDEX(LOGEST(Revenue_Concurrent,USA_Nominal_GDP),2),0) -> 504.4275647 | C2: =IFERROR(LN(LOGEST(Revenue_Concurrent,USA_Nominal_GDP)),0) -> 0.01035650886
A3: USA_Housing_Starts | B3: =IFERROR(INDEX(LOGEST(Revenue_Concurrent,USA_Housing_Starts),2),0) -> 17866.98606 | C3: =IFERROR(LN(LOGEST(Revenue_Concurrent,USA_Housing_Starts)),0) -> 0.01171179511
A4: USA_CPI | B4: =IFERROR(INDEX(LOGEST(Revenue_Concurrent,USA_CPI),2),0) -> 23490.50471 | C4: =IFERROR(LN(LOGEST(Revenue_Concurrent,USA_CPI)),0) -> 0.006251961001
A5: OIL | B5: =IFERROR(INDEX(LOGEST(Revenue_Concurrent,OIL),2),0) -> 46974.37022 | C5: =IFERROR(LN(LOGEST(Revenue_Concurrent,OIL)),0) -> 0.007970691572
A6: GOLD | B6: =IFERROR(INDEX(LOGEST(Revenue_Concurrent,GOLD),2),0) -> 70952.5209 | C6: =IFERROR(LN(LOGEST(Revenue_Concurrent,GOLD)),0) -> 0.0002276172568
A7: BRENT_CRUDE | B7: =IFERROR(INDEX(LOGEST(Revenue_Concurrent,BRENT_CRUDE),2),0) -> 53300.73882 | C7: =IFERROR(LN(LOGEST(Revenue_Concurrent,BRENT_CRUDE)),0) -> 0.006169228828
A8: CORN | B8: =IFERROR(INDEX(LOGEST(Revenue_Concurrent,CORN),2),0) -> 66665.96264 | C8: =IFERROR(LN(LOGEST(Revenue_Concurrent,CORN)),0) -> 0.000672324139
A9: heat_oil | B9: =IFERROR(INDEX(LOGEST(Revenue_Concurrent,heat_oil),2),0) -> 51265.11216 | C9: =IFERROR(LN(LOGEST(Revenue_Concurrent,heat_oil)),0) -> 0.0023970928
A10: silver | B10: =IFERROR(INDEX(LOGEST(Revenue_Concurrent,silver),2),0) -> 71404.03803 | C10: =IFERROR(LN(LOGEST(Revenue_Concurrent,silver)),0) -> 0.01235447778
A11: one_UNIT_STARTS | B11: =IFERROR(INDEX(LOGEST(Revenue_Concurrent,one_UNIT_STARTS),2),0) -> 99251.24842 | C11: =IFERROR(LN(LOGEST(Revenue_Concurrent,one_UNIT_STARTS)),0) -> -3.822586284e-05
A12: Lumber | B12: =IFERROR(INDEX(LOGEST(Revenue_Concurrent,Lumber),2),0) -> 84660.73855 | C12: =IFERROR(LN(LOGEST(Revenue_Concurrent,Lumber)),0) -> 0.0002137796443
A13: US_Defense_Spending | B13: =IFERROR(INDEX(LOGEST(Revenue_Concurrent,US_Defense_Spending),2),0) -> 48870.60765 | C13: =IFERROR(LN(LOGEST(Revenue_Concurrent,US_Defense_Spending)),0) -> 0.0008225260717
A14: US_Gov_Spending | B14: =IFERROR(INDEX(LOGEST(Revenue_Concurrent,US_Gov_Spending),2),0) -> 39461.41784 | C14: =IFERROR(LN(LOGEST(Revenue_Concurrent,US_Gov_Spending)),0) -> 0.0002788068186
A15: USA_Nominal_GDP_Lagged_1Q | B15: =IFERROR(INDEX(LOGEST(Revenue_Lagged_1Q,USA_Nominal_GDP),2),0) -> 380.9293425 | C15: =IFERROR(LN(LOGEST(Revenue_Lagged_1Q,USA_Nominal_GDP)),0) -> 0.01089686408
A16: USA_Housing_Starts_Lagged_1Q | B16: =IFERROR(INDEX(LOGEST(Revenue_Lagged_1Q,USA_Housing_Starts),2),0) -> 13200.8452 | C16: =IFERROR(LN(LOGEST(Revenue_Lagged_1Q,USA_Housing_Starts)),0) -> 0.01383075939
A17: USA_CPI_Lagged_1Q | B17: =IFERROR(INDEX(LOGEST(Revenue_Lagged_1Q,USA_CPI),2),0) -> 16729.38303 | C17: =IFERROR(LN(LOGEST(Revenue_Lagged_1Q,USA_CPI)),0) -> 0.007785042198
A18: OIL_Lagged_1Q | B18: =IFERROR(INDEX(LOGEST(Revenue_Lagged_1Q,OIL),2),0) -> 50549.86891 | C18: =IFERROR(LN(LOGEST(Revenue_Lagged_1Q,OIL)),0) -> 0.006941689754
A19: GOLD_Lagged_1Q | B19: =IFERROR(INDEX(LOGEST(Revenue_Lagged_1Q,GOLD),2),0) -> 69240.27778 | C19: =IFERROR(LN(LOGEST(Revenue_Lagged_1Q,GOLD)),0) -> 0.0002411257477
A20: BRENT_CRUDE_Lagged_1Q | B20: =IFERROR(INDEX(LOGEST(Revenue_Lagged_1Q,BRENT_CRUDE),2),0) -> 55668.93551 | C20: =IFERROR(LN(LOGEST(Revenue_Lagged_1Q,BRENT_CRUDE)),0) -> 0.005533089858
A21: CORN_Lagged_1Q | B21: =IFERROR(INDEX(LOGEST(Revenue_Lagged_1Q,CORN),2),0) -> 65823.05267 | C21: =IFERROR(LN(LOGEST(Revenue_Lagged_1Q,CORN)),0) -> 0.0006775570625
A22: heat_oil_Lagged_1Q | B22: =IFERROR(INDEX(LOGEST(Revenue_Lagged_1Q,heat_oil),2),0) -> 52726.07559 | C22: =IFERROR(LN(LOGEST(Revenue_Lagged_1Q,heat_oil)),0) -> 0.002232701964
A23: silver_Lagged_1Q | B23: =IFERROR(INDEX(LOGEST(Revenue_Lagged_1Q,silver),2),0) -> 71518.69025 | C23: =IFERROR(LN(LOGEST(Revenue_Lagged_1Q,silver)),0) -> 0.01170979425
A24: one_UNIT_STARTS_Lagged_1Q | B24: =IFERROR(INDEX(LOGEST(Revenue_Lagged_1Q,one_UNIT_STARTS),2),0) -> 100487.2684 | C24: =IFERROR(LN(LOGEST(Revenue_Lagged_1Q,one_UNIT_STARTS)),0) -> -4.699699531e-05
A25: Lumber_Lagged_1Q | B25: =IFERROR(INDEX(LOGEST(Revenue_Lagged_1Q,Lumber),2),0) -> 90205.55503 | C25: =IFERROR(LN(LOGEST(Revenue_Lagged_1Q,Lumber)),0) -> -5.044663326e-05
A26: US_Defense_Spending_Lagged_1Q | B26: =IFERROR(INDEX(LOGEST(Revenue_Lagged_1Q,US_Defense_Spending),2),0) -> 44276.50297 | C26: =IFERROR(LN(LOGEST(Revenue_Lagged_1Q,US_Defense_Spending)),0) -> 0.0009417734902
A27: US_Gov_Spending_Lagged_1Q | B27: =IFERROR(INDEX(LOGEST(Revenue_Lagged_1Q,US_Gov_Spending),2),0) -> 33872.02081 | C27: =IFERROR(LN(LOGEST(Revenue_Lagged_1Q,US_Gov_Spending)),0) -> 0.0003270212666
A28: USA_Nominal_GDP_Lagged_1Y | B28: =IFERROR(INDEX(LOGEST(Revenue_Lagged_1Y,USA_Nominal_GDP),2),0) -> 379.9004932 | C28: =IFERROR(LN(LOGEST(Revenue_Lagged_1Y,USA_Nominal_GDP)),0) -> 0.01082198636
A29: USA_Housing_Starts_Lagged_1Y | B29: =IFERROR(INDEX(LOGEST(Revenue_Lagged_1Y,USA_Housing_Starts),2),0) -> 13156.32085 | C29: =IFERROR(LN(LOGEST(Revenue_Lagged_1Y,USA_Housing_Starts)),0) -> 0.01356398285
A30: USA_CPI_Lagged_1Y | B30: =IFERROR(INDEX(LOGEST(Revenue_Lagged_1Y,USA_CPI),2),0) -> 9069.812325 | C30: =IFERROR(LN(LOGEST(Revenue_Lagged_1Y,USA_CPI)),0) -> 0.01045039923
A31: OIL_Lagged_1Y | B31: =IFERROR(INDEX(LOGEST(Revenue_Lagged_1Y,OIL),2),0) -> 56781.80011 | C31: =IFERROR(LN(LOGEST(Revenue_Lagged_1Y,OIL)),0) -> 0.005019861153
A32: GOLD_Lagged_1Y | B32: =IFERROR(INDEX(LOGEST(Revenue_Lagged_1Y,GOLD),2),0) -> 63911.97498 | C32: =IFERROR(LN(LOGEST(Revenue_Lagged_1Y,GOLD)),0) -> 0.0002795465371
A33: BRENT_CRUDE_Lagged_1Y | B33: =IFERROR(INDEX(LOGEST(Revenue_Lagged_1Y,BRENT_CRUDE),2),0) -> 59356.75846 | C33: =IFERROR(LN(LOGEST(Revenue_Lagged_1Y,BRENT_CRUDE)),0) -> 0.004301241503
A34: CORN_Lagged_1Y | B34: =IFERROR(INDEX(LOGEST(Revenue_Lagged_1Y,CORN),2),0) -> 63437.55685 | C34: =IFERROR(LN(LOGEST(Revenue_Lagged_1Y,CORN)),0) -> 0.0006702155515
A35: heat_oil_Lagged_1Y | B35: =IFERROR(INDEX(LOGEST(Revenue_Lagged_1Y,heat_oil),2),0) -> 58640.25098 | C35: =IFERROR(LN(LOGEST(Revenue_Lagged_1Y,heat_oil)),0) -> 0.001607205671
A36: silver_Lagged_1Y | B36: =IFERROR(INDEX(LOGEST(Revenue_Lagged_1Y,silver),2),0) -> 69951.98251 | C36: =IFERROR(LN(LOGEST(Revenue_Lagged_1Y,silver)),0) -> 0.01074169102
A37: one_UNIT_STARTS_Lagged_1Y | B37: =IFERROR(INDEX(LOGEST(Revenue_Lagged_1Y,one_UNIT_STARTS),2),0) -> 106790.4986 | C37: =IFERROR(LN(LOGEST(Revenue_Lagged_1Y,one_UNIT_STARTS)),0) -> -8.589766244e-05
A38: Lumber_Lagged_1Y | B38: =IFERROR(INDEX(LOGEST(Revenue_Lagged_1Y,Lumber),2),0) -> 113624.1456 | C38: =IFERROR(LN(LOGEST(Revenue_Lagged_1Y,Lumber)),0) -> -0.001020132632
A39: US_Defense_Spending_Lagged_1Y | B39: =IFERROR(INDEX(LOGEST(Revenue_Lagged_1Y,US_Defense_Spending),2),0) -> 32141.25255 | C39: =IFERROR(LN(LOGEST(Revenue_Lagged_1Y,US_Defense_Spending)),0) -> 0.001319998126
A40: US_Gov_Spending_Lagged_1Y | B40: =IFERROR(INDEX(LOGEST(Revenue_Lagged_1Y,US_Gov_Spending),2),0) -> 19476.64002 | C40: =IFERROR(LN(LOGEST(Revenue_Lagged_1Y,US_Gov_Spending)),0) -> 0.0005008620102

Sheet Exponential_Corr
B1: Revenue_Concurrent
A2: heat_oil | B2: =IFERROR(CORREL(LN(Revenue_Concurrent),heat_oil)^2,0) -> 0.8242023666
A3: BRENT_CRUDE | B3: =IFERROR(CORREL(LN(Revenue_Concurrent),BRENT_CRUDE)^2,0) -> 0.7951879125
A4: OIL | B4: =IFERROR(CORREL(LN(Revenue_Concurrent),OIL)^2,0) -> 0.7897683365
A5: heat_oil_Lagged_1Q | B5: =IFERROR(CORREL(LN(Revenue_Lagged_1Q),heat_oil)^2,0) -> 0.6502177333
A6: USA_Housing_Starts_Lagged_1Q | B6: =IFERROR(CORREL(LN(Revenue_Lagged_1Q),USA_Housing_Starts)^2,0) -> 0.606085815
A7: BRENT_CRUDE_Lagged_1Q | B7: =IFERROR(CORREL(LN(Revenue_Lagged_1Q),BRENT_CRUDE)^2,0) -> 0.5816699072
A8: USA_Nominal_GDP_Lagged_1Q | B8: =IFERROR(CORREL(LN(Revenue_Lagged_1Q),USA_Nominal_GDP)^2,0) -> 0.5473603057
A9: OIL_Lagged_1Q | B9: =IFERROR(CORREL(LN(Revenue_Lagged_1Q),OIL)^2,0) -> 0.5447173989
A10: USA_Nominal_GDP | B10: =IFERROR(CORREL(LN(Revenue_Concurrent),USA_Nominal_GDP)^2,0) -> 0.5437056613
A11: USA_Housing_Starts | B11: =IFERROR(CORREL(LN(Revenue_Concurrent),USA_Housing_Starts)^2,0) -> 0.4779207221
A12: USA_CPI_Lagged_1Y | B12: =IFERROR(CORREL(LN(Revenue_Lagged_1Y),USA_CPI)^2,0) -> 0.4634121143
A13: CORN | B13: =IFERROR(CORREL(LN(Revenue_Concurrent),CORN)^2,0) -> 0.4618810758
A14: CORN_Lagged_1Q | B14: =IFERROR(CORREL(LN(Revenue_Lagged_1Q),CORN)^2,0) -> 0.426577212
A15: silver | B15: =IFERROR(CORREL(LN(Revenue_Concurrent),silver)^2,0) -> 0.4151883816
A16: USA_Housing_Starts_Lagged_1Y | B16: =IFERROR(CORREL(LN(Revenue_Lagged_1Y),USA_Housing_Starts)^2,0) -> 0.4104568193
A17: US_Gov_Spending_Lagged_1Y | B17: =IFERROR(CORREL(LN(Revenue_Lagged_1Y),US_Gov_Spending)^2,0) -> 0.3892692418
A18: USA_Nominal_GDP_Lagged_1Y | B18: =IFERROR(CORREL(LN(Revenue_Lagged_1Y),USA_Nominal_GDP)^2,0) -> 0.3801326202
A19: USA_CPI_Lagged_1Q | B19: =IFERROR(CORREL(LN(Revenue_Lagged_1Q),USA_CPI)^2,0) -> 0.3652351922
A20: silver_Lagged_1Q | B20: =IFERROR(CORREL(LN(Revenue_Lagged_1Q),silver)^2,0) -> 0.3391783115
A21: one_UNIT_STARTS_Lagged_1Y | B21: =IFERROR(CORREL(LN(Revenue_Lagged_1Y),one_UNIT_STARTS)^2,0) -> 0.3377485692
A22: GOLD_Lagged_1Q | B22: =IFERROR(CORREL(LN(Revenue_Lagged_1Q),GOLD)^2,0) -> 0.3215889722
A23: GOLD | B23: =IFERROR(CORREL(LN(Revenue_Concurrent),GOLD)^2,0) -> 0.3151310558
A24: GOLD_Lagged_1Y | B24: =IFERROR(CORREL(LN(Revenue_Lagged_1Y),GOLD)^2,0) -> 0.3043498904
A25: CORN_Lagged_1Y | B25: =IFERROR(CORREL(LN(Revenue_Lagged_1Y),CORN)^2,0) -> 0.2938907002
A26: US_Defense_Spending_Lagged_1Y | B26: =IFERROR(CORREL(LN(Revenue_Lagged_1Y),US_Defense_Spending)^2,0) -> 0.2705743335
A27: USA_CPI | B27: =IFERROR(CORREL(LN(Revenue_Concurrent),USA_CPI)^2,0) -> 0.2590299952
A28: BRENT_CRUDE_Lagged_1Y | B28: =IFERROR(CORREL(LN(Revenue_Lagged_1Y),BRENT_CRUDE)^2,0) -> 0.2475025902
A29: heat_oil_Lagged_1Y | B29: =IFERROR(CORREL(LN(Revenue_Lagged_1Y),heat_oil)^2,0) -> 0.2372417705
A30: US_Gov_Spending_Lagged_1Q | B30: =IFERROR(CORREL(LN(Revenue_Lagged_1Q),US_Gov_Spending)^2,0) -> 0.2356757804
A31: silver_Lagged_1Y | B31: =IFERROR(CORREL(LN(Revenue_Lagged_1Y),silver)^2,0) -> 0.2009674866
A32: OIL_Lagged_1Y | B32: =IFERROR(CORREL(LN(Revenue_Lagged_1Y),OIL)^2,0) -> 0.2005742612
A33: US_Defense_Spending_Lagged_1Q | B33: =IFERROR(CORREL(LN(Revenue_Lagged_1Q),US_Defense_Spending)^2,0) -> 0.1956058988
A34: US_Gov_Spending | B34: =IFERROR(CORREL(LN(Revenue_Concurrent),US_Gov_Spending)^2,0) -> 0.188380786
A35: US_Defense_Spending | B35: =IFERROR(CORREL(LN(Revenue_Concurrent),US_Defense_Spending)^2,0) -> 0.164079843
A36: one_UNIT_STARTS_Lagged_1Q | B36: =IFERROR(CORREL(LN(Revenue_Lagged_1Q),one_UNIT_STARTS)^2,0) -> 0.1435886358
A37: one_UNIT_STARTS | B37: =IFERROR(CORREL(LN(Revenue_Concurrent),one_UNIT_STARTS)^2,0) -> 0.1044627223
A38: Lumber_Lagged_1Y | B38: =IFERROR(CORREL(LN(Revenue_Lagged_1Y),Lumber)^2,0) -> 0.08195605719
A39: Lumber | B39: =IFERROR(CORREL(LN(Revenue_Concurrent),Lumber)^2,0) -> 0.005621036369
A40: Lumber_Lagged_1Q | B40: =IFERROR(CORREL(LN(Revenue_Lagged_1Q),Lumber)^2,0) -> 0.0002846303508

Sheet QUESIONS (hidden)
B1: quetions
U13: 5
U14: =1/U13 -> 0.2 | V14: =SUM(Q14:U14) -> 0.2
V15: =SUM(1/{1;3;5}) -> 1.533333333

Sheet Summary_2
H2: Revenue
C3: 2 | D3: 3 | H3: =YEAR(H4) -> 2010 | I3: 2011 | J3: 2011 | K3: 2011 | L3: 2011 | M3: 2012 | N3: 2012 | O3: 2012 | P3: 2012 | Q3: 2013 | R3: 2013 | S3: 2013 | T3: 2013 | U3: 2014 | V3: 2014 | W3: 2014 | X3: 2014 | Y3: 2015 | Z3: 2015 | AA3: 2015 | AB3: 2015 | AC3: 2016 | AD3: 2016 | AE3: 2016 | AF3: 2016
B4: Type | C4: Constant or Slope | D4: Exponenet or Intercept | E4: R-Squared | G4: Indicator | H4: 2010-12-31 | I4: 2011-03-31 | J4: 2011-06-30 | K4: 2011-09-30 | L4: 2011-12-31 | M4: 2012-03-31 | N4: 2012-06-30 | O4: 2012-09-30 | P4: 2012-12-31 | Q4: 2013-03-31 | R4: 2013-06-30 | S4: 2013-09-30 | T4: 2013-12-31 | U4: 2014-03-31 | V4: 2014-06-30 | W4: 09/30/2014 | X4: 2014-12-31 | Y4: =EOMONTH($X$4,3) -> 2015-03-31 | Z4: =EOMONTH($Y$4,3) -> 2015-06-30 | AA4: =EOMONTH($Z$4,3) -> 2015-09-30 | AB4: =EOMONTH($AA$4,3) -> 2015-12-31 | AC4: =EOMONTH($AB$4,3) -> 2016-03-31 | AD4: =EOMONTH($AC$4,3) -> 2016-06-30 | AE4: =EOMONTH($AD$4,3) -> 2016-09-30 | AF4: =EOMONTH($AE$4,3) -> 2016-12-31
B5: Exponential | C5: =VLOOKUP($G5,INDIRECT(CONCATENATE("",$B5,"!$A$2:$C$43")),C$3,FALSE) -> 51265.11216 | D5: =VLOOKUP($G5,INDIRECT(CONCATENATE("",$B5,"!$A$2:$C$43")),D$3,FALSE) -> 0.0023970928 | E5: =VLOOKUP($G5,INDIRECT(CONCATENATE("",$B5,"_Corr","!$A$2:$C$43")),C$3,FALSE) -> 0.8242023666 | G5: heat_oil | H5: 93428 | I5: 101335 | J5: 112781 | K5: 111991 | L5: 107419 | M5: 110696 | N5: 104718 | O5: 102852 | P5: 101409 | Q5: 96336 | R5: 95498 | S5: 100508 | T5: 98355 | U5: 94344 | V5: 98287 | W5: 96047 | X5: =IF($B5="Exponential",$C5 * EXP($D5 * X13),X13*$C5-$D5) -> 102196.6653 | Y5: =IF($B5="Exponential",$C5 * EXP($D5 * Y13),Y13*$C5-$D5) -> 103377.1753 | Z5: 104591.3181 | AA5: 105840.2926 | AB5: 107125.3499 | AC5: 108447.796 | AD5: 109808.9944 | AE5: 111210.3693 | AF5: 112653.4087
E12: St_Dev | F12: St_Dev_Growth | G12: X's
E13: 0.25 | F13: =_xlfn.STDEV.S($I13:$W13/$H13:$V13-1) -> 0.06659132039 | G13: heat_oil | H13: =INDEX(RangeValue!$B$3:$S$49,MATCH(H$4,RangeValue!$B$3:$B$50,0), MATCH($G13,RangeValue!$B$3:$S$3,0)) -> 236.0890769 | I13: =INDEX(RangeValue!$B$3:$S$49,MATCH(I$4,RangeValue!$B$3:$B$50,0), MATCH($G13,RangeValue!$B$3:$S$3,0)) -> 281.8057143 | J13: =INDEX(RangeValue!$B$3:$S$49,MATCH(J$4,RangeValue!$B$3:$B$50,0), MATCH($G13,RangeValue!$B$3:$S$3,0)) -> 304.611875 | K13: =INDEX(RangeValue!$B$3:$S$49,MATCH(K$4,RangeValue!$B$3:$B$50,0), MATCH($G13,RangeValue!$B$3:$S$3,0)) -> 298.3907692 | L13: =INDEX(RangeValue!$B$3:$S$49,MATCH(L$4,RangeValue!$B$3:$B$50,0), MATCH($G13,RangeValue!$B$3:$S$3,0)) -> 297.3626562 | M13: =INDEX(RangeValue!$B$3:$S$49,MATCH(M$4,RangeValue!$B$3:$B$50,0), MATCH($G13,RangeValue!$B$3:$S$3,0)) -> 315.8316129 | N13: =INDEX(RangeValue!$B$3:$S$49,MATCH(N$4,RangeValue!$B$3:$B$50,0), MATCH($G13,RangeValue!$B$3:$S$3,0)) -> 289.248254 | O13: =INDEX(RangeValue!$B$3:$S$49,MATCH(O$4,RangeValue!$B$3:$B$50,0), MATCH($G13,RangeValue!$B$3:$S$3,0)) -> 300.1419048 | P13: =INDEX(RangeValue!$B$3:$S$49,MATCH(P$4,RangeValue!$B$3:$B$50,0), MATCH($G13,RangeValue!$B$3:$S$3,0)) -> 305.2909375 | Q13: =INDEX(RangeValue!$B$3:$S$49,MATCH(Q$4,RangeValue!$B$3:$B$50,0), MATCH($G13,RangeValue!$B$3:$S$3,0)) -> 304.2686885 | R13: =INDEX(RangeValue!$B$3:$S$49,MATCH(R$4,RangeValue!$B$3:$B$50,0), MATCH($G13,RangeValue!$B$3:$S$3,0)) -> 288.970625 | S13: =INDEX(RangeValue!$B$3:$S$49,MATCH(S$4,RangeValue!$B$3:$B$50,0), MATCH($G13,RangeValue!$B$3:$S$3,0)) -> 304.6195312 | T13: =INDEX(RangeValue!$B$3:$S$49,MATCH(T$4,RangeValue!$B$3:$B$50,0), MATCH($G13,RangeValue!$B$3:$S$3,0)) -> 299.08 | U13: =INDEX(RangeValue!$B$3:$S$49,MATCH(U$4,RangeValue!$B$3:$B$50,0), MATCH($G13,RangeValue!$B$3:$S$3,0)) -> 301.4417742 | V13: =INDEX(RangeValue!$B$3:$S$49,MATCH(V$4,RangeValue!$B$3:$B$50,0), MATCH($G13,RangeValue!$B$3:$S$3,0)) -> 294.955625 | W13: =INDEX(RangeValue!$B$3:$S$49,MATCH(W$4,RangeValue!$B$3:$B$50,0), MATCH($G13,RangeValue!$B$3:$S$3,0)) -> 283.0893846 | X13: =W13 *( 1+$F13 * $E13) -> 287.8022086 | Y13: =X13 *( 1+$F13 * $E13) -> 292.5934909 | Z13: 297.4645376 | AA13: 302.4166767 | AB13: 307.4512581 | AC13: 312.5696544 | AD13: 317.7732609 | AE13: 323.0634962 | AF13: 328.4418024
H20: Summary
H22: 2012 | I22: 2013 | J22: 2014 | K22: 2015 | L22: 2016
G23: =$G$13 -> heat_oil | H23: =SUMIF($H$3:$AF$3,H$22,$H5:$AF5) -> 419675 | I23: =SUMIF($H$3:$AF$3,I$22,$H5:$AF5) -> 390697 | J23: 390874.6653 | K23: 420934.136 | L23: 442120.5684
... 1 more rows
